Service Area,Service Division,Expense Type,Expense Code,Detailed Expense Type,Payment Date,Transaction Number,Amount Exc VAT,Supplier Name
Regeneration and Local Services,Direct Services,Third Party Payments 4THIRD,430100,Rendered by Private Contractors,03/09/2018,3482464-A12813,923.00,AACS LTD.
Regeneration and Local Services,Direct Services,Supplies and Services,304221,Equipment and Materials,03/09/2018,3482466-39238596-61,"1,444.29",ADT FIRE & SECURITY PLC.
Regeneration and Local Services,Direct Services,Third Party Payments 4THIRD,430100,Rendered by Private Contractors,03/09/2018,3482466-39237797-61,"2,950.00",ADT FIRE & SECURITY PLC.
Regeneration and Local Services,Technical Services,Supplies and Services,304221,Equipment and Materials,03/09/2018,3482467-26982905,"1,957.88",AGGREGATE INDUSTRIES UK LTD.
Regeneration and Local Services,Technical Services,Supplies and Services,304221,Equipment and Materials,03/09/2018,3482467-26982908,580.36,AGGREGATE INDUSTRIES UK LTD.
Regeneration and Local Services,Technical Services,Supplies and Services,304221,Equipment and Materials,03/09/2018,3482467-26989733,934.32,AGGREGATE INDUSTRIES UK LTD.
Regeneration and Local Services,Technical Services,Supplies and Services,304221,Equipment and Materials,03/09/2018,3482467-26989734,545.20,AGGREGATE INDUSTRIES UK LTD.
Resources,Legal & Democratic Services,Supplies and Services,338057,Services,03/09/2018,3482468-0000031100,"1,460.00",ALERE FORENSICS.
Resources,Legal & Democratic Services,Supplies and Services,338057,Services,03/09/2018,3482468-0000031206,720.00,ALERE FORENSICS.
Regeneration and Local Services,Culture & Sport,Supplies and Services,304337,Equipment and Materials,03/09/2018,3482470-105975,500.00,ALISON BLACK LTD T/A SPORTMAX.
Regeneration and Local Services,Culture & Sport,Supplies and Services,384999,Miscellaneous Expenses,03/09/2018,3482472-5164,"17,370.00",ALLIANCE LEISURE SERVICES LTD.
Children and Young Peoples Services,Head of Childrens Social Care,Supplies and Services,384507,Miscellaneous Expenses,03/09/2018,3482479-ARC1819-216,"4,006.80",ARC ADOPTION NORTH EAST.
Regeneration and Local Services,Transport and Contracted Services,Third Party Payments 4THIRD,430106,Rendered by Private Contractors,03/09/2018,3482483-114206,"33,183.28",ARRIVA NORTH EAST LTD.
Regeneration and Local Services,Transport and Contracted Services,Third Party Payments 4THIRD,430106,Rendered by Private Contractors,03/09/2018,3482483-114208,"32,120.75",ARRIVA NORTH EAST LTD.
Children and Young Peoples Services,Head of Education and Skills,Supplies and Services,312009,Newspapers books and periodicals E312,03/09/2018,3482486-5806014,692.52,ASKEWS & HOLTS LIBRARY SERVICES LTD.
Children and Young Peoples Services,Head of Education and Skills,Supplies and Services,312009,Newspapers books and periodicals E312,03/09/2018,3482486-5806015,573.52,ASKEWS & HOLTS LIBRARY SERVICES LTD.
Regeneration and Local Services,Technical Services,Third Party Payments 4THIRD,430100,Rendered by Private Contractors,03/09/2018,3482487-IN34698,"1,157.65",BALFOUR BEATTY LIVING PLACES LTD.*
Regeneration and Local Services,Technical Services,Third Party Payments 4THIRD,430100,Rendered by Private Contractors,03/09/2018,3482487-IN34702,"11,429.38",BALFOUR BEATTY LIVING PLACES LTD.*
Regeneration and Local Services,Technical Services,Third Party Payments 4THIRD,430100,Rendered by Private Contractors,03/09/2018,3482487-IN34704,"5,607.93",BALFOUR BEATTY LIVING PLACES LTD.*
Regeneration and Local Services,Technical Services,Third Party Payments 4THIRD,430100,Rendered by Private Contractors,03/09/2018,3482487-IN34705,"51,769.61",BALFOUR BEATTY LIVING PLACES LTD.*
Children and Young Peoples Services,Head of Childrens Social Care,Supplies and Services,338044,Services,03/09/2018,3482488-241001053,"2,000.00",BARNARDO SERVICES LTD.
Children and Young Peoples Services,Head of Education and Skills,Transfer Payments,510027,School Children,03/09/2018,3482494-0015,"1,777.41",BLUE SKY CHILDCARE.
Regeneration and Local Services,Direct Services,Construction work A908,908105,Construction work,03/09/2018,3482502-72126,"3,900.00",CEMETERY DEVELOPMENT SERVICES LTD.
Regeneration and Local Services,Technical Services,Supplies and Services,304221,Equipment and Materials,03/09/2018,3482503-3010748947,"2,022.45",CEMEX UK MATERIALS LTD.
Regeneration and Local Services,Economic Development and Housing,Supplies and Services,338035,Services,03/09/2018,3482506-804948371,802.50,CITY & GUILDS OF LONDON INSTITUTE.
Regeneration and Local Services,Technical Services,Stock A926,926004,Stock,03/09/2018,3482507-400011389,"8,695.20",CLEVELAND POTASH LTD T/A ICL FERTILIZERS.
Regeneration and Local Services,Technical Services,Stock A926,926004,Stock,03/09/2018,3482507-400011425,"10,302.00",CLEVELAND POTASH LTD T/A ICL FERTILIZERS.
Children and Young Peoples Services,Head of Childrens Social Care,Supplies and Services,364359,Grants to Voluntary Organisations,03/09/2018,3482508-CAS-08-2018-056,"1,338.80",CLEVER CLOGS DAY NURSERY (DURHAM) LTD.
Resources,Legal & Democratic Services,Supplies and Services,338025,Services,03/09/2018,3482510-CW/2838,530.00,COCHRANE`S FUNERAL DIRECTORS.
Resources,Legal & Democratic Services,Supplies and Services,338025,Services,03/09/2018,3482510-CW/2839,530.00,COCHRANE`S FUNERAL DIRECTORS.
Regeneration and Local Services,Culture & Sport,Supplies and Services,384540,Miscellaneous Expenses,03/09/2018,3482512-8755,540.00,COMMUNITY NEWSPAPER SUPPORT CIC.
Transformation and Partnerships,Partnerships & Community Engagement Div.,Supplies and Services,308011,Furniture,03/09/2018,3482518-GVGG002,"3,512.00",COUNTY DURHAM FURNITURE HELP SCHEME (CDFHS).
Adult and Health Services,Head of Adults,Third Party Payments 4THIRD,472101,Purchase of Care,03/09/2018,3482523-MMCD01.,"12,617.44",CRG HOMECARE.
Resources,Digital and Customer Services,Vehicles Equipment Furniture and Fittings,912701,Computer equipment,03/09/2018,3482529-7402463252,989.80,DELL COMPUTER CORPORATION LTD.
Resources,Legal & Democratic Services,Supplies and Services,338042,Services,03/09/2018,3482533-326043/INVSPA235,"1,800.00",DERE STREET BARRISTERS.
Resources,Legal & Democratic Services,Supplies and Services,338042,Services,03/09/2018,3482533-337593/INVLW192,"2,900.00",DERE STREET BARRISTERS.
Adult and Health Services,Commissioning inc Supporting People,Third Party Payments 4THIRD,443001,Supporting People E443,03/09/2018,3482535-1968051,737.96,DURHAM ACTION ON SINGLE HOUSING.
Regeneration and Local Services,Direct Services,Supplies and Services,304221,Equipment and Materials,03/09/2018,3482539-059-229061,753.21,EDMUNDSON ELECTRICAL LTD.
Regeneration and Local Services,Direct Services,Transport,230005,Contract Hire,03/09/2018,3482541-8146736,"1,439.06",ENTERPRISE FLEX-E-RENT T/A BURNT TREE GROUP LTD.
Regeneration and Local Services,Direct Services,Transport,230005,Contract Hire,03/09/2018,3482541-8146742,"1,173.35",ENTERPRISE FLEX-E-RENT T/A BURNT TREE GROUP LTD.
Regeneration and Local Services,Culture & Sport,Premises,135005,Water Services,03/09/2018,3482551-045018,"1,263.57",FERRYHILL COMMUNITY PARTNERSHIP CIO.
Regeneration and Local Services,Transport and Contracted Services,Third Party Payments 4THIRD,430106,Rendered by Private Contractors,03/09/2018,3482552-PPT3671AUG18,"5,778.60",FERRYHILL VILLAGE TRAVEL.
Regeneration and Local Services,Direct Services,Supplies and Services,304221,Equipment and Materials,03/09/2018,3482554-SI184262,"1,333.87",FLEET (LINE MARKERS) LTD.
Adult and Health Services,Head of Adults,Supplies and Services,384616,Miscellaneous Expenses,03/09/2018,3482556-01/1819/BELVU006,"6,705.99",FOUR HOUSING GROUP & CARE & REPAIR HANDYPERSON SERVICE.
Regeneration and Local Services,Culture & Sport,Supplies and Services,384199,Miscellaneous Expenses,03/09/2018,3482561-224,"1,450.00",GRAHAM RUSHTON.
Regeneration and Local Services,Direct Services,Supplies and Services,304259,Equipment and Materials,03/09/2018,3482565-46168,974.28,GROUNDSMAN TOOLS AND SUPPLIES LLP.
Regeneration and Local Services,Technical Services,Third Party Payments 4THIRD,430100,Rendered by Private Contractors,03/09/2018,3482567-1808\013,"6,693.11",HALL CONSTRUCTION SERVICES LTD.
Regeneration and Local Services,Technical Services,Third Party Payments 4THIRD,430100,Rendered by Private Contractors,03/09/2018,3482567-1808\018,"16,036.97",HALL CONSTRUCTION SERVICES LTD.
Regeneration and Local Services,Technical Services,Third Party Payments 4THIRD,430100,Rendered by Private Contractors,03/09/2018,3482567-1808\019,"5,667.77",HALL CONSTRUCTION SERVICES LTD.
Regeneration and Local Services,Technical Services,Third Party Payments 4THIRD,430100,Rendered by Private Contractors,03/09/2018,3482567-1808\020,"9,573.40",HALL CONSTRUCTION SERVICES LTD.
Regeneration and Local Services,Transport and Contracted Services,Third Party Payments 4THIRD,430106,Rendered by Private Contractors,03/09/2018,3482572-14168,"4,197.20",HODGSONS COACH OPERATORS LTD.
Transformation and Partnerships,Comms & Information Management,Supplies and Services,384199,Miscellaneous Expenses,03/09/2018,3482576-111245,512.00,IDOX SOFTWARE LTD.
Transformation and Partnerships,Comms & Information Management,Supplies and Services,384199,Miscellaneous Expenses,03/09/2018,3482576-111246,855.00,IDOX SOFTWARE LTD.
Regeneration and Local Services,Economic Development and Housing,Premises,108099,Service Repairs and Maintenance,03/09/2018,3482578-32821033,677.61,INITIAL WASHROOM SOLUTIONS.
Resources,Digital and Customer Services,Stock A926,926900,Stock in hand-Inventory system,03/09/2018,3482579-4007970,"1,716.00",INSIGHT DIRECT (UK) LTD.
Resources,Digital and Customer Services,Stock A926,926900,Stock in hand-Inventory system,03/09/2018,3482579-4008187,720.00,INSIGHT DIRECT (UK) LTD.
Regeneration and Local Services,Transport and Contracted Services,Third Party Payments 4THIRD,430106,Rendered by Private Contractors,03/09/2018,3482584-DCC8/18,"3,492.86",JOHN JAMES BRUNSKILL T/A JSB TRAVEL LTD.
Regeneration and Local Services,Technical Services,Stock A926,926900,Stock in hand-Inventory system,03/09/2018,3482587-BII265499,892.40,JT DOVE LTD.
Regeneration and Local Services,Transport and Contracted Services,Supplies and Services,304245,Equipment and Materials,03/09/2018,3482588-19275,"6,330.00",JUST CHECKING LTD.
Regeneration and Local Services,Direct Services,Vehicles Equipment Furniture and Fittings,912529,Purchase-equipment,03/09/2018,3482591-4317,"1,400.00",KIELDER FOREST PRODUCTS LTD.
Regeneration and Local Services,Technical Services,Third Party Payments 4THIRD,430100,Rendered by Private Contractors,03/09/2018,3482593-2014,"49,849.13",L & G PLANT HIRE & SALES LTD.
Regeneration and Local Services,Direct Services,Supplies and Services,304259,Equipment and Materials,03/09/2018,3482600-SLS/20023003,750.20,MAHA UK LTD.
Regeneration and Local Services,Spatial Policy Planning Assets & Environment,Supplies and Services,338066,Services,03/09/2018,3482601-1178,599.00,MARCUS BYRON.
Regeneration and Local Services,Direct Services,Supplies and Services,304221,Equipment and Materials,03/09/2018,3482603-NE180299,"1,593.78",MCNAUGHTON BLAIR LTD T/A LLOYD WORRALL (NEWCASTLE UPON TYNE) LTD.
Resources,Digital and Customer Services,Supplies and Services,344033,Telephones,03/09/2018,3482610-202596,997.29,NETWORKS 2 BUSINESS LTD.
Regeneration and Local Services,Direct Services,Third Party Payments 4THIRD,430100,Rendered by Private Contractors,03/09/2018,3482613-NPSL728,"27,748.46",NORDIC PRODUCTS & SERVICES LTD.
Regeneration and Local Services,Direct Services,Supplies and Services,304221,Equipment and Materials,03/09/2018,3482618-0000033877,"1,850.00",NORTHERN DRIVES & CONTROLS LTD.
Regeneration and Local Services,Technical Services,Construction work A908,908201,Capital - Public Utilities - Electricity Services,03/09/2018,3482620-50035676,630.00,NORTHERN POWERGRID (NORTHEAST) LTD.
Regeneration and Local Services,Direct Services,Supplies and Services,304999,Equipment and Materials,03/09/2018,3482621-2807705,"1,220.00",NORTHERN TOOLS & ACCESSORIES.
Regeneration and Local Services,Direct Services,Transport,215022,Running Costs of Vehicles,03/09/2018,3482626-347938,"1,784.10",OIL NRG LTD.
Regeneration and Local Services,Technical Services,Stock A926,926900,Stock in hand-Inventory system,03/09/2018,3482629-XL226778,"2,901.00",PARK ELECTRICAL DISTRIBUTORS LTD.
Children and Young Peoples Services,Head of Education and Skills,Third Party Payments 4THIRD,440999,Other third party payments E440,03/09/2018,3482631-1619,"16,905.89",PENSHAW VIEW TRAINING.
Regeneration and Local Services,Culture & Sport,Supplies and Services,384199,Miscellaneous Expenses,03/09/2018,3482644-INV-RM1649,698.00,R & M PRODUCTIONS.
Regeneration and Local Services,Transport and Contracted Services,Third Party Payments 4THIRD,430106,Rendered by Private Contractors,03/09/2018,3482645-2072,"4,346.90",R COOPER T/A DC TAXIS.
Adult and Health Services,Commissioning inc Supporting People,Supplies and Services,338026,Services,03/09/2018,3482648-587,980.00,RICHARD CORKHILL CONSULTANCY & TRAINING.
Regeneration and Local Services,Direct Services,Supplies and Services,304221,Equipment and Materials,03/09/2018,3482649-RSIN0269954,530.00,RIGBY TAYLOR LTD.
Regeneration and Local Services,Direct Services,Supplies and Services,304259,Equipment and Materials,03/09/2018,3482649-RSIN0269953,"4,949.40",RIGBY TAYLOR LTD.
Regeneration and Local Services,Spatial Policy Planning Assets & Environment,Supplies and Services,304337,Equipment and Materials,03/09/2018,3482651-184165,691.80,RJB STONE LTD.
Resources,Finance & Transactional Services,Supplies and Services,340001,Postages E340,03/09/2018,3482653-9057076715,"9,114.61",ROYAL MAIL GROUP PLC.
Regeneration and Local Services,Transport and Contracted Services,Third Party Payments 4THIRD,430106,Rendered by Private Contractors,03/09/2018,3482661-31601,"1,429.10",STANLEY TRAVEL (NORTH EAST) LTD.
Regeneration and Local Services,Technical Services,Supplies and Services,304221,Equipment and Materials,03/09/2018,3482662-107397,"2,325.40",STONEGRAVE AGGREGATES LTD.
Regeneration and Local Services,Technical Services,Supplies and Services,304221,Equipment and Materials,03/09/2018,3482662-107447,"1,500.12",STONEGRAVE AGGREGATES LTD.
Regeneration and Local Services,Technical Services,Supplies and Services,304221,Equipment and Materials,03/09/2018,3482662-107567,"1,241.36",STONEGRAVE AGGREGATES LTD.
Regeneration and Local Services,Technical Services,Supplies and Services,304221,Equipment and Materials,03/09/2018,3482662-107617,"4,239.72",STONEGRAVE AGGREGATES LTD.
Regeneration and Local Services,Technical Services,Supplies and Services,304221,Equipment and Materials,03/09/2018,3482662-107745,"1,208.56",STONEGRAVE AGGREGATES LTD.
Regeneration and Local Services,Culture & Sport,Supplies and Services,384999,Miscellaneous Expenses,03/09/2018,3482665-RES-08-2018-065,"6,000.00",SUNDERLAND CITY COUNCIL.
Children and Young Peoples Services,Head of Education and Skills,Construction work A908,908105,Construction work,03/09/2018,3482667-8774,"1,118.00",SURVEY & MARKETING SERVICES LTD T/A SMS MARKET RESEARCH.
Regeneration and Local Services,Culture & Sport,Supplies and Services,384199,Miscellaneous Expenses,03/09/2018,3482668-425,"2,000.00",SUSAN PRIESTLEY (CONSULTANT).
Regeneration and Local Services,Culture & Sport,Supplies and Services,304337,Equipment and Materials,03/09/2018,3482669-SWINV010910,624.50,SWIM ENGLAND TRADING LTD.
Regeneration and Local Services,Direct Services,Supplies and Services,304221,Equipment and Materials,03/09/2018,3482670-2803196,667.50,T CROSSLING & CO LTD.
Regeneration and Local Services,Direct Services,Supplies and Services,304221,Equipment and Materials,03/09/2018,3482670-2803424,"1,186.22",T CROSSLING & CO LTD.
Regeneration and Local Services,Direct Services,Supplies and Services,304221,Equipment and Materials,03/09/2018,3482670-2806158,851.04,T CROSSLING & CO LTD.
Regeneration and Local Services,Direct Services,Supplies and Services,304221,Equipment and Materials,03/09/2018,3482670-2807901,573.69,T CROSSLING & CO LTD.
Regeneration and Local Services,Direct Services,Supplies and Services,304221,Equipment and Materials,03/09/2018,3482670-2808106,735.15,T CROSSLING & CO LTD.
Regeneration and Local Services,Direct Services,Supplies and Services,304221,Equipment and Materials,03/09/2018,3482670-2809169,503.74,T CROSSLING & CO LTD.
Regeneration and Local Services,Direct Services,Supplies and Services,304221,Equipment and Materials,03/09/2018,3482670-2810676,578.01,T CROSSLING & CO LTD.
Regeneration and Local Services,Direct Services,Supplies and Services,304221,Equipment and Materials,03/09/2018,3482671-0000115507,744.71,TA PLASTIC SUPPLIES LTD.
Regeneration and Local Services,Direct Services,Supplies and Services,384199,Miscellaneous Expenses,03/09/2018,3482676-33251,"2,250.00",TEESDALE EVENT & SITE SERVICES LTD.
Adult and Health Services,Public Health,Supplies and Services,338094,Services,03/09/2018,3482679-5383,548.50,THE DURHAM CENTRE LTD.
Regeneration and Local Services,Economic Development and Housing,Supplies and Services,304337,Equipment and Materials,03/09/2018,3482683-67381,519.34,THE SOMERSET TOILETRY COMPANY LTD.
Regeneration and Local Services,Direct Services,Supplies and Services,328041,Clothing uniforms and laundry E328,03/09/2018,3482684-N/IN227597,518.98,THOMAS OWEN & SONS (NEWCASTLE) LTD.
Regeneration and Local Services,Direct Services,Supplies and Services,304221,Equipment and Materials,03/09/2018,3482684-N/IN227604,"2,194.92",THOMAS OWEN & SONS (NEWCASTLE) LTD.
Regeneration and Local Services,Technical Services,Stock A926,926900,Stock in hand-Inventory system,03/09/2018,3482684-N/IN227528,680.40,THOMAS OWEN & SONS (NEWCASTLE) LTD.
Regeneration and Local Services,Technical Services,Stock A926,926900,Stock in hand-Inventory system,03/09/2018,3482684-N/IN227532,"2,620.80",THOMAS OWEN & SONS (NEWCASTLE) LTD.
Regeneration and Local Services,Direct Services,Supplies and Services,304221,Equipment and Materials,03/09/2018,3482685-115896,539.00,TOMMY WARDLE.
Regeneration and Local Services,Direct Services,Supplies and Services,304221,Equipment and Materials,03/09/2018,3482685-115901,513.70,TOMMY WARDLE.
Regeneration and Local Services,Technical Services,Supplies and Services,304221,Equipment and Materials,03/09/2018,3482688-190264,906.50,TYNEDALE ROADSTONE LTD.
Regeneration and Local Services,Culture & Sport,Supplies and Services,338047,Services,03/09/2018,3482691-22314227952-1,"2,482.08",UNIVERSAL PICTURES INTERNATIONAL UK & EIRE LTD.
Regeneration and Local Services,Spatial Policy Planning Assets & Environment,Supplies and Services,384199,Miscellaneous Expenses,03/09/2018,3482692-9000303841,"17,500.00",UNIVERSITY OF NEWCASTLE UPON TYNE.
Adult and Health Services,Public Health,Third Party Payments 4THIRD,460803,Contract Payments,03/09/2018,3482693-10630700,"3,750.00",UNIVERSITY OF TEESSIDE.
Regeneration and Local Services,Technical Services,Third Party Payments 4THIRD,430100,Rendered by Private Contractors,03/09/2018,3482697-433,"1,407.08",VINOVIUM ASSOCIATES LTD.
Regeneration and Local Services,Technical Services,Third Party Payments 4THIRD,430100,Rendered by Private Contractors,03/09/2018,3482697-434,"1,407.08",VINOVIUM ASSOCIATES LTD.
Regeneration and Local Services,Technical Services,Supplies and Services,342215,Computers and Communications,03/09/2018,3482698-95060,"2,628.65",VISION TECHNIQUES (UK) LTD.
Regeneration and Local Services,Technical Services,Supplies and Services,342215,Computers and Communications,03/09/2018,3482698-95092,"2,628.65",VISION TECHNIQUES (UK) LTD.
Regeneration and Local Services,Technical Services,Supplies and Services,342215,Computers and Communications,03/09/2018,3482698-95093,"2,628.65",VISION TECHNIQUES (UK) LTD.
Regeneration and Local Services,Transport and Contracted Services,Third Party Payments 4THIRD,430106,Rendered by Private Contractors,03/09/2018,3482703-1056,"24,844.24",WEARDALE MOTOR SERVICES LTD.
Adult and Health Services,Head of Adults,Third Party Payments 4THIRD,470101,Purchase of Care,04/09/2018,3483591-2501881,"2,555.68",A CHARLES THOMAS (CARE) LTD.
Adult and Health Services,Head of Adults,Third Party Payments 4THIRD,470101,Purchase of Care,04/09/2018,3483591-2501882,"2,197.60",A CHARLES THOMAS (CARE) LTD.
Adult and Health Services,Head of Adults,Third Party Payments 4THIRD,470101,Purchase of Care,04/09/2018,3483591-2501884,"2,279.00",A CHARLES THOMAS (CARE) LTD.
Adult and Health Services,Head of Adults,Third Party Payments 4THIRD,470101,Purchase of Care,04/09/2018,3483591-2501885,"2,279.00",A CHARLES THOMAS (CARE) LTD.
Adult and Health Services,Head of Adults,Third Party Payments 4THIRD,470101,Purchase of Care,04/09/2018,3483591-2501888,"2,279.00",A CHARLES THOMAS (CARE) LTD.
Adult and Health Services,Head of Adults,Third Party Payments 4THIRD,470101,Purchase of Care,04/09/2018,3483591-2501889,"2,279.00",A CHARLES THOMAS (CARE) LTD.
Adult and Health Services,Head of Adults,Third Party Payments 4THIRD,470101,Purchase of Care,04/09/2018,3483591-2501890,"2,279.00",A CHARLES THOMAS (CARE) LTD.
Adult and Health Services,Head of Adults,Third Party Payments 4THIRD,470101,Purchase of Care,04/09/2018,3483591-2501891,"2,279.00",A CHARLES THOMAS (CARE) LTD.
Adult and Health Services,Head of Adults,Third Party Payments 4THIRD,470101,Purchase of Care,04/09/2018,3483591-2501892,"2,279.00",A CHARLES THOMAS (CARE) LTD.
Adult and Health Services,Head of Adults,Third Party Payments 4THIRD,470101,Purchase of Care,04/09/2018,3483591-2501893,"2,279.00",A CHARLES THOMAS (CARE) LTD.
Adult and Health Services,Head of Adults,Third Party Payments 4THIRD,470101,Purchase of Care,04/09/2018,3483591-2501894,"2,279.00",A CHARLES THOMAS (CARE) LTD.
Adult and Health Services,Head of Adults,Third Party Payments 4THIRD,470101,Purchase of Care,04/09/2018,3483591-2501895,"2,555.68",A CHARLES THOMAS (CARE) LTD.
Adult and Health Services,Head of Adults,Third Party Payments 4THIRD,470101,Purchase of Care,04/09/2018,3483591-2501896,"2,279.00",A CHARLES THOMAS (CARE) LTD.
Adult and Health Services,Head of Adults,Third Party Payments 4THIRD,470101,Purchase of Care,04/09/2018,3483591-2501897,"1,139.50",A CHARLES THOMAS (CARE) LTD.
Adult and Health Services,Head of Adults,Third Party Payments 4THIRD,470101,Purchase of Care,04/09/2018,3483591-2501898,"2,279.00",A CHARLES THOMAS (CARE) LTD.
Adult and Health Services,Head of Adults,Third Party Payments 4THIRD,470101,Purchase of Care,04/09/2018,3483591-2501899,"2,279.00",A CHARLES THOMAS (CARE) LTD.
Adult and Health Services,Head of Adults,Third Party Payments 4THIRD,470101,Purchase of Care,04/09/2018,3483591-2501900,"2,279.00",A CHARLES THOMAS (CARE) LTD.
Adult and Health Services,Head of Adults,Third Party Payments 4THIRD,470101,Purchase of Care,04/09/2018,3483591-2501901,"2,279.00",A CHARLES THOMAS (CARE) LTD.
Adult and Health Services,Head of Adults,Third Party Payments 4THIRD,470101,Purchase of Care,04/09/2018,3483591-2501902,"2,279.00",A CHARLES THOMAS (CARE) LTD.
Adult and Health Services,Head of Adults,Third Party Payments 4THIRD,470101,Purchase of Care,04/09/2018,3483591-2501903,"2,279.00",A CHARLES THOMAS (CARE) LTD.
Adult and Health Services,Head of Adults,Third Party Payments 4THIRD,470101,Purchase of Care,04/09/2018,3483591-2501904,"2,279.00",A CHARLES THOMAS (CARE) LTD.
Adult and Health Services,Head of Adults,Third Party Payments 4THIRD,470101,Purchase of Care,04/09/2018,3483591-2501905,"2,279.00",A CHARLES THOMAS (CARE) LTD.
Adult and Health Services,Head of Adults,Third Party Payments 4THIRD,470101,Purchase of Care,04/09/2018,3483591-2501906,"2,279.00",A CHARLES THOMAS (CARE) LTD.
Adult and Health Services,Head of Adults,Third Party Payments 4THIRD,470101,Purchase of Care,04/09/2018,3483591-2501907,"2,279.00",A CHARLES THOMAS (CARE) LTD.
Adult and Health Services,Head of Adults,Third Party Payments 4THIRD,470101,Purchase of Care,04/09/2018,3483591-2501908,"2,279.00",A CHARLES THOMAS (CARE) LTD.
Adult and Health Services,Head of Adults,Third Party Payments 4THIRD,470101,Purchase of Care,04/09/2018,3483591-2501909,"2,279.00",A CHARLES THOMAS (CARE) LTD.
Adult and Health Services,Head of Adults,Third Party Payments 4THIRD,470101,Purchase of Care,04/09/2018,3483591-2501910,"2,279.00",A CHARLES THOMAS (CARE) LTD.
Adult and Health Services,Head of Adults,Third Party Payments 4THIRD,470101,Purchase of Care,04/09/2018,3483591-2501911,"2,279.00",A CHARLES THOMAS (CARE) LTD.
Adult and Health Services,Head of Adults,Third Party Payments 4THIRD,474101,Purchase of Care,04/09/2018,3483592-2503422,"1,500.00",AKARI CARE LTD.
Adult and Health Services,Head of Adults,Third Party Payments 4THIRD,474101,Purchase of Care,04/09/2018,3483592-2503423,"1,596.00",AKARI CARE LTD.
Adult and Health Services,Head of Adults,Third Party Payments 4THIRD,474101,Purchase of Care,04/09/2018,3483592-2503425,"2,000.00",AKARI CARE LTD.
Adult and Health Services,Head of Adults,Third Party Payments 4THIRD,474101,Purchase of Care,04/09/2018,3483592-2503426,"2,520.00",AKARI CARE LTD.
Adult and Health Services,Head of Adults,Third Party Payments 4THIRD,474101,Purchase of Care,04/09/2018,3483594-2503454,"2,271.32",AKARI CARE LTD.
Adult and Health Services,Head of Adults,Third Party Payments 4THIRD,474101,Purchase of Care,04/09/2018,3483595-2505141,"2,393.16",AKARI CARE LTD.
Adult and Health Services,Head of Adults,Third Party Payments 4THIRD,474101,Purchase of Care,04/09/2018,3483596-2504540,"2,371.44",AKARI CARE LTD.
Adult and Health Services,Head of Adults,Third Party Payments 4THIRD,474101,Purchase of Care,04/09/2018,3483596-2504544,"1,185.72",AKARI CARE LTD.
Adult and Health Services,Head of Adults,Third Party Payments 4THIRD,474101,Purchase of Care,04/09/2018,3483596-2504555,"2,371.44",AKARI CARE LTD.
Adult and Health Services,Head of Adults,Third Party Payments 4THIRD,474101,Purchase of Care,04/09/2018,3483596-2504557,"2,371.44",AKARI CARE LTD.
Adult and Health Services,Head of Adults,Third Party Payments 4THIRD,474101,Purchase of Care,04/09/2018,3483596-2504561,"1,185.72",AKARI CARE LTD.
Adult and Health Services,Head of Adults,Third Party Payments 4THIRD,474101,Purchase of Care,04/09/2018,3483596-2504563,"1,185.72",AKARI CARE LTD.
Adult and Health Services,Head of Adults,Third Party Payments 4THIRD,474101,Purchase of Care,04/09/2018,3483596-2504568,"1,185.72",AKARI CARE LTD.
Adult and Health Services,Head of Adults,Third Party Payments 4THIRD,474101,Purchase of Care,04/09/2018,3483596-2504574,"2,371.44",AKARI CARE LTD.
Adult and Health Services,Head of Adults,Third Party Payments 4THIRD,474101,Purchase of Care,04/09/2018,3483596-2504576,"1,185.72",AKARI CARE LTD.
Adult and Health Services,Head of Adults,Third Party Payments 4THIRD,474101,Purchase of Care,04/09/2018,3483596-2504585,"2,371.44",AKARI CARE LTD.
Adult and Health Services,Head of Adults,Third Party Payments 4THIRD,470101,Purchase of Care,04/09/2018,3483592-2503424,"1,162.00",AKARI CARE LTD.
Adult and Health Services,Head of Adults,Third Party Payments 4THIRD,470101,Purchase of Care,04/09/2018,3483593-2503145,"2,279.00",AKARI CARE LTD.
Adult and Health Services,Head of Adults,Third Party Payments 4THIRD,470101,Purchase of Care,04/09/2018,3483593-2503147,"2,279.00",AKARI CARE LTD.
Adult and Health Services,Head of Adults,Third Party Payments 4THIRD,470101,Purchase of Care,04/09/2018,3483593-2503148,651.14,AKARI CARE LTD.
Adult and Health Services,Head of Adults,Third Party Payments 4THIRD,470101,Purchase of Care,04/09/2018,3483593-2503152,"1,627.85",AKARI CARE LTD.
Adult and Health Services,Head of Adults,Third Party Payments 4THIRD,470101,Purchase of Care,04/09/2018,3483593-2503153,"2,279.00",AKARI CARE LTD.
Adult and Health Services,Head of Adults,Third Party Payments 4THIRD,470101,Purchase of Care,04/09/2018,3483593-2503156,"2,279.00",AKARI CARE LTD.
Adult and Health Services,Head of Adults,Third Party Payments 4THIRD,470101,Purchase of Care,04/09/2018,3483593-2503157,"1,220.89",AKARI CARE LTD.
Adult and Health Services,Head of Adults,Third Party Payments 4THIRD,470101,Purchase of Care,04/09/2018,3483593-2503158,"2,279.00",AKARI CARE LTD.
Adult and Health Services,Head of Adults,Third Party Payments 4THIRD,470101,Purchase of Care,04/09/2018,3483593-2503160,"2,279.00",AKARI CARE LTD.
Adult and Health Services,Head of Adults,Third Party Payments 4THIRD,470101,Purchase of Care,04/09/2018,3483593-2503161,"1,139.50",AKARI CARE LTD.
Adult and Health Services,Head of Adults,Third Party Payments 4THIRD,470101,Purchase of Care,04/09/2018,3483593-2503162,"2,279.00",AKARI CARE LTD.
Adult and Health Services,Head of Adults,Third Party Payments 4THIRD,470101,Purchase of Care,04/09/2018,3483593-2503166,"2,279.00",AKARI CARE LTD.
Adult and Health Services,Head of Adults,Third Party Payments 4THIRD,470101,Purchase of Care,04/09/2018,3483593-2503167,"2,279.00",AKARI CARE LTD.
Adult and Health Services,Head of Adults,Third Party Payments 4THIRD,470101,Purchase of Care,04/09/2018,3483593-2503168,"2,279.00",AKARI CARE LTD.
Adult and Health Services,Head of Adults,Third Party Payments 4THIRD,470101,Purchase of Care,04/09/2018,3483593-2503169,"2,279.00",AKARI CARE LTD.
Adult and Health Services,Head of Adults,Third Party Payments 4THIRD,470101,Purchase of Care,04/09/2018,3483593-2503172,"2,279.00",AKARI CARE LTD.
Adult and Health Services,Head of Adults,Third Party Payments 4THIRD,470101,Purchase of Care,04/09/2018,3483593-2503173,"2,279.00",AKARI CARE LTD.
Adult and Health Services,Head of Adults,Third Party Payments 4THIRD,470101,Purchase of Care,04/09/2018,3483593-2503177,"1,790.64",AKARI CARE LTD.
Adult and Health Services,Head of Adults,Third Party Payments 4THIRD,470101,Purchase of Care,04/09/2018,3483593-2503179,"2,279.00",AKARI CARE LTD.
Adult and Health Services,Head of Adults,Third Party Payments 4THIRD,470101,Purchase of Care,04/09/2018,3483593-2503181,"2,279.00",AKARI CARE LTD.
Adult and Health Services,Head of Adults,Third Party Payments 4THIRD,470101,Purchase of Care,04/09/2018,3483593-2503182,"2,279.00",AKARI CARE LTD.
Adult and Health Services,Head of Adults,Third Party Payments 4THIRD,470101,Purchase of Care,04/09/2018,3483593-2503183,"2,279.00",AKARI CARE LTD.
Adult and Health Services,Head of Adults,Third Party Payments 4THIRD,470101,Purchase of Care,04/09/2018,3483593-2503184,"2,279.00",AKARI CARE LTD.
Adult and Health Services,Head of Adults,Third Party Payments 4THIRD,470101,Purchase of Care,04/09/2018,3483593-2503185,"1,139.48",AKARI CARE LTD.
Adult and Health Services,Head of Adults,Third Party Payments 4THIRD,470101,Purchase of Care,04/09/2018,3483593-2503186,"2,279.00",AKARI CARE LTD.
Adult and Health Services,Head of Adults,Third Party Payments 4THIRD,470101,Purchase of Care,04/09/2018,3483593-2503187,"2,279.00",AKARI CARE LTD.
Adult and Health Services,Head of Adults,Third Party Payments 4THIRD,470101,Purchase of Care,04/09/2018,3483593-2503188,"2,279.00",AKARI CARE LTD.
Adult and Health Services,Head of Adults,Third Party Payments 4THIRD,470101,Purchase of Care,04/09/2018,3483593-2503189,"2,279.00",AKARI CARE LTD.
Adult and Health Services,Head of Adults,Third Party Payments 4THIRD,470101,Purchase of Care,04/09/2018,3483593-2505559,"1,383.67",AKARI CARE LTD.
Adult and Health Services,Head of Adults,Third Party Payments 4THIRD,470101,Purchase of Care,04/09/2018,3483593-2505560,895.32,AKARI CARE LTD.
Adult and Health Services,Head of Adults,Third Party Payments 4THIRD,470101,Purchase of Care,04/09/2018,3483596-2504546,"1,627.85",AKARI CARE LTD.
Adult and Health Services,Head of Adults,Third Party Payments 4THIRD,470101,Purchase of Care,04/09/2018,3483596-2504547,"2,279.00",AKARI CARE LTD.
Adult and Health Services,Head of Adults,Third Party Payments 4THIRD,470101,Purchase of Care,04/09/2018,3483596-2504550,"2,279.00",AKARI CARE LTD.
Adult and Health Services,Head of Adults,Third Party Payments 4THIRD,470101,Purchase of Care,04/09/2018,3483596-2504551,732.53,AKARI CARE LTD.
Adult and Health Services,Head of Adults,Third Party Payments 4THIRD,470101,Purchase of Care,04/09/2018,3483596-2504552,"2,279.00",AKARI CARE LTD.
Adult and Health Services,Head of Adults,Third Party Payments 4THIRD,470101,Purchase of Care,04/09/2018,3483596-2504554,"2,279.00",AKARI CARE LTD.
Adult and Health Services,Head of Adults,Third Party Payments 4THIRD,470101,Purchase of Care,04/09/2018,3483596-2504559,"2,279.00",AKARI CARE LTD.
Adult and Health Services,Head of Adults,Third Party Payments 4THIRD,470101,Purchase of Care,04/09/2018,3483596-2504560,"2,279.00",AKARI CARE LTD.
Adult and Health Services,Head of Adults,Third Party Payments 4THIRD,470101,Purchase of Care,04/09/2018,3483596-2504578,"1,546.46",AKARI CARE LTD.
Adult and Health Services,Head of Adults,Third Party Payments 4THIRD,470101,Purchase of Care,04/09/2018,3483596-2504587,"2,279.00",AKARI CARE LTD.
Adult and Health Services,Head of Adults,Third Party Payments 4THIRD,470101,Purchase of Care,04/09/2018,3483596-2504588,"2,279.00",AKARI CARE LTD.
Adult and Health Services,Head of Adults,Third Party Payments 4THIRD,470101,Purchase of Care,04/09/2018,3483596-2504589,"2,279.00",AKARI CARE LTD.
Adult and Health Services,Head of Adults,Third Party Payments 4THIRD,471101,Purchase of Care,04/09/2018,3483593-2503149,"2,363.08",AKARI CARE LTD.
Adult and Health Services,Head of Adults,Third Party Payments 4THIRD,471101,Purchase of Care,04/09/2018,3483593-2503150,"2,363.08",AKARI CARE LTD.
Adult and Health Services,Head of Adults,Third Party Payments 4THIRD,471101,Purchase of Care,04/09/2018,3483593-2503151,"2,953.85",AKARI CARE LTD.
Adult and Health Services,Head of Adults,Third Party Payments 4THIRD,471101,Purchase of Care,04/09/2018,3483593-2503155,"2,363.08",AKARI CARE LTD.
Adult and Health Services,Head of Adults,Third Party Payments 4THIRD,471101,Purchase of Care,04/09/2018,3483593-2503159,"2,363.08",AKARI CARE LTD.
Adult and Health Services,Head of Adults,Third Party Payments 4THIRD,471101,Purchase of Care,04/09/2018,3483593-2503163,"2,363.08",AKARI CARE LTD.
Adult and Health Services,Head of Adults,Third Party Payments 4THIRD,471101,Purchase of Care,04/09/2018,3483593-2503164,"2,363.08",AKARI CARE LTD.
Adult and Health Services,Head of Adults,Third Party Payments 4THIRD,471101,Purchase of Care,04/09/2018,3483593-2503170,"2,363.08",AKARI CARE LTD.
Adult and Health Services,Head of Adults,Third Party Payments 4THIRD,471101,Purchase of Care,04/09/2018,3483593-2503171,"2,363.08",AKARI CARE LTD.
Adult and Health Services,Head of Adults,Third Party Payments 4THIRD,471101,Purchase of Care,04/09/2018,3483593-2503174,"2,363.08",AKARI CARE LTD.
Adult and Health Services,Head of Adults,Third Party Payments 4THIRD,471101,Purchase of Care,04/09/2018,3483593-2503175,"2,363.08",AKARI CARE LTD.
Adult and Health Services,Head of Adults,Third Party Payments 4THIRD,471101,Purchase of Care,04/09/2018,3483593-2503178,"2,363.08",AKARI CARE LTD.
Adult and Health Services,Head of Adults,Third Party Payments 4THIRD,471101,Purchase of Care,04/09/2018,3483593-2503180,"1,181.52",AKARI CARE LTD.
Adult and Health Services,Head of Adults,Third Party Payments 4THIRD,471101,Purchase of Care,04/09/2018,3483593-2505606,506.37,AKARI CARE LTD.
Adult and Health Services,Head of Adults,Third Party Payments 4THIRD,471101,Purchase of Care,04/09/2018,3483596-2504542,"2,363.08",AKARI CARE LTD.
Adult and Health Services,Head of Adults,Third Party Payments 4THIRD,471101,Purchase of Care,04/09/2018,3483596-2504543,"2,363.08",AKARI CARE LTD.
Adult and Health Services,Head of Adults,Third Party Payments 4THIRD,471101,Purchase of Care,04/09/2018,3483596-2504548,"2,363.08",AKARI CARE LTD.
Adult and Health Services,Head of Adults,Third Party Payments 4THIRD,471101,Purchase of Care,04/09/2018,3483596-2504549,"2,363.08",AKARI CARE LTD.
Adult and Health Services,Head of Adults,Third Party Payments 4THIRD,471101,Purchase of Care,04/09/2018,3483596-2504553,"2,363.08",AKARI CARE LTD.
Adult and Health Services,Head of Adults,Third Party Payments 4THIRD,471101,Purchase of Care,04/09/2018,3483596-2504565,"2,363.08",AKARI CARE LTD.
Adult and Health Services,Head of Adults,Third Party Payments 4THIRD,471101,Purchase of Care,04/09/2018,3483596-2504566,"2,363.08",AKARI CARE LTD.
Adult and Health Services,Head of Adults,Third Party Payments 4THIRD,471101,Purchase of Care,04/09/2018,3483596-2504567,"2,363.08",AKARI CARE LTD.
Adult and Health Services,Head of Adults,Third Party Payments 4THIRD,471101,Purchase of Care,04/09/2018,3483596-2504570,"2,363.08",AKARI CARE LTD.
Adult and Health Services,Head of Adults,Third Party Payments 4THIRD,471101,Purchase of Care,04/09/2018,3483596-2504571,"2,363.08",AKARI CARE LTD.
Adult and Health Services,Head of Adults,Third Party Payments 4THIRD,471101,Purchase of Care,04/09/2018,3483596-2504572,"2,363.08",AKARI CARE LTD.
Adult and Health Services,Head of Adults,Third Party Payments 4THIRD,471101,Purchase of Care,04/09/2018,3483596-2504573,"2,363.08",AKARI CARE LTD.
Adult and Health Services,Head of Adults,Third Party Payments 4THIRD,471101,Purchase of Care,04/09/2018,3483596-2504579,"2,363.08",AKARI CARE LTD.
Adult and Health Services,Head of Adults,Third Party Payments 4THIRD,471101,Purchase of Care,04/09/2018,3483596-2504580,"2,363.08",AKARI CARE LTD.
Adult and Health Services,Head of Adults,Third Party Payments 4THIRD,471101,Purchase of Care,04/09/2018,3483596-2504581,"2,363.08",AKARI CARE LTD.
Adult and Health Services,Head of Adults,Third Party Payments 4THIRD,471101,Purchase of Care,04/09/2018,3483596-2504582,"2,363.08",AKARI CARE LTD.
Adult and Health Services,Head of Adults,Third Party Payments 4THIRD,471101,Purchase of Care,04/09/2018,3483596-2504583,"2,363.08",AKARI CARE LTD.
Adult and Health Services,Head of Adults,Third Party Payments 4THIRD,471101,Purchase of Care,04/09/2018,3483596-2504584,"2,363.08",AKARI CARE LTD.
Adult and Health Services,Head of Adults,Third Party Payments 4THIRD,471101,Purchase of Care,04/09/2018,3483596-2504590,"2,363.08",AKARI CARE LTD.
Adult and Health Services,Head of Adults,Third Party Payments 4THIRD,471101,Purchase of Care,04/09/2018,3483596-2504591,"2,363.08",AKARI CARE LTD.
Adult and Health Services,Head of Adults,Third Party Payments 4THIRD,474101,Purchase of Care,04/09/2018,3483597-2505344,"3,152.00",ALDBOURNE NURSING HOME LTD.
Regeneration and Local Services,Direct Services,Supplies and Services,304259,Equipment and Materials,04/09/2018,3483461-920,"1,080.00",ALL SEASONS ARBORISTS.
Regeneration and Local Services,Direct Services,Third Party Payments 4THIRD,430100,Rendered by Private Contractors,04/09/2018,3483461-929,580.00,ALL SEASONS ARBORISTS.
Regeneration and Local Services,Direct Services,Third Party Payments 4THIRD,430100,Rendered by Private Contractors,04/09/2018,3483461-933,"1,280.00",ALL SEASONS ARBORISTS.
Adult and Health Services,Head of Adults,Third Party Payments 4THIRD,474101,Purchase of Care,04/09/2018,3483598-2503031,"1,524.49",ALLIANCE CARE (TRENDLEWOOD) LTD.
Adult and Health Services,Head of Adults,Third Party Payments 4THIRD,474101,Purchase of Care,04/09/2018,3483598-2503039,"2,371.44",ALLIANCE CARE (TRENDLEWOOD) LTD.
Adult and Health Services,Head of Adults,Third Party Payments 4THIRD,474101,Purchase of Care,04/09/2018,3483598-2503043,"2,371.44",ALLIANCE CARE (TRENDLEWOOD) LTD.
Adult and Health Services,Head of Adults,Third Party Payments 4THIRD,474101,Purchase of Care,04/09/2018,3483598-2503045,"2,371.44",ALLIANCE CARE (TRENDLEWOOD) LTD.
Adult and Health Services,Head of Adults,Third Party Payments 4THIRD,474101,Purchase of Care,04/09/2018,3483598-2503050,"2,371.44",ALLIANCE CARE (TRENDLEWOOD) LTD.
Adult and Health Services,Head of Adults,Third Party Payments 4THIRD,474101,Purchase of Care,04/09/2018,3483598-2503060,"2,371.44",ALLIANCE CARE (TRENDLEWOOD) LTD.
Adult and Health Services,Head of Adults,Third Party Payments 4THIRD,474101,Purchase of Care,04/09/2018,3483598-2503064,762.24,ALLIANCE CARE (TRENDLEWOOD) LTD.
Adult and Health Services,Head of Adults,Third Party Payments 4THIRD,474101,Purchase of Care,04/09/2018,3483598-2505662,931.63,ALLIANCE CARE (TRENDLEWOOD) LTD.
Adult and Health Services,Head of Adults,Third Party Payments 4THIRD,470102,Purchase of Care,04/09/2018,3483598-2503010,569.75,ALLIANCE CARE (TRENDLEWOOD) LTD.
Adult and Health Services,Head of Adults,Third Party Payments 4THIRD,470101,Purchase of Care,04/09/2018,3483598-2503006,"2,555.68",ALLIANCE CARE (TRENDLEWOOD) LTD.
Adult and Health Services,Head of Adults,Third Party Payments 4THIRD,470101,Purchase of Care,04/09/2018,3483598-2503007,"2,279.00",ALLIANCE CARE (TRENDLEWOOD) LTD.
Adult and Health Services,Head of Adults,Third Party Payments 4THIRD,470101,Purchase of Care,04/09/2018,3483598-2503009,"1,627.85",ALLIANCE CARE (TRENDLEWOOD) LTD.
Adult and Health Services,Head of Adults,Third Party Payments 4THIRD,470101,Purchase of Care,04/09/2018,3483598-2503022,"2,279.00",ALLIANCE CARE (TRENDLEWOOD) LTD.
Adult and Health Services,Head of Adults,Third Party Payments 4THIRD,470101,Purchase of Care,04/09/2018,3483598-2503023,"1,627.85",ALLIANCE CARE (TRENDLEWOOD) LTD.
Adult and Health Services,Head of Adults,Third Party Payments 4THIRD,470101,Purchase of Care,04/09/2018,3483598-2503029,"2,279.00",ALLIANCE CARE (TRENDLEWOOD) LTD.
Adult and Health Services,Head of Adults,Third Party Payments 4THIRD,470101,Purchase of Care,04/09/2018,3483598-2503030,651.14,ALLIANCE CARE (TRENDLEWOOD) LTD.
Adult and Health Services,Head of Adults,Third Party Payments 4THIRD,470101,Purchase of Care,04/09/2018,3483598-2503033,"2,279.00",ALLIANCE CARE (TRENDLEWOOD) LTD.
Adult and Health Services,Head of Adults,Third Party Payments 4THIRD,470101,Purchase of Care,04/09/2018,3483598-2503034,"2,279.00",ALLIANCE CARE (TRENDLEWOOD) LTD.
Adult and Health Services,Head of Adults,Third Party Payments 4THIRD,470101,Purchase of Care,04/09/2018,3483598-2503035,"2,279.00",ALLIANCE CARE (TRENDLEWOOD) LTD.
Adult and Health Services,Head of Adults,Third Party Payments 4THIRD,470101,Purchase of Care,04/09/2018,3483598-2503036,"2,279.00",ALLIANCE CARE (TRENDLEWOOD) LTD.
Adult and Health Services,Head of Adults,Third Party Payments 4THIRD,470101,Purchase of Care,04/09/2018,3483598-2503038,"2,279.00",ALLIANCE CARE (TRENDLEWOOD) LTD.
Adult and Health Services,Head of Adults,Third Party Payments 4THIRD,470101,Purchase of Care,04/09/2018,3483598-2503042,"2,279.00",ALLIANCE CARE (TRENDLEWOOD) LTD.
Adult and Health Services,Head of Adults,Third Party Payments 4THIRD,470101,Purchase of Care,04/09/2018,3483598-2503047,"1,139.52",ALLIANCE CARE (TRENDLEWOOD) LTD.
Adult and Health Services,Head of Adults,Third Party Payments 4THIRD,470101,Purchase of Care,04/09/2018,3483598-2503048,"2,279.00",ALLIANCE CARE (TRENDLEWOOD) LTD.
Adult and Health Services,Head of Adults,Third Party Payments 4THIRD,470101,Purchase of Care,04/09/2018,3483598-2503053,"2,279.00",ALLIANCE CARE (TRENDLEWOOD) LTD.
Adult and Health Services,Head of Adults,Third Party Payments 4THIRD,470101,Purchase of Care,04/09/2018,3483598-2503055,"2,555.68",ALLIANCE CARE (TRENDLEWOOD) LTD.
Adult and Health Services,Head of Adults,Third Party Payments 4THIRD,470101,Purchase of Care,04/09/2018,3483598-2503056,"2,279.00",ALLIANCE CARE (TRENDLEWOOD) LTD.
Adult and Health Services,Head of Adults,Third Party Payments 4THIRD,470101,Purchase of Care,04/09/2018,3483598-2503057,"2,279.00",ALLIANCE CARE (TRENDLEWOOD) LTD.
Adult and Health Services,Head of Adults,Third Party Payments 4THIRD,470101,Purchase of Care,04/09/2018,3483598-2503058,"2,279.00",ALLIANCE CARE (TRENDLEWOOD) LTD.
Adult and Health Services,Head of Adults,Third Party Payments 4THIRD,470101,Purchase of Care,04/09/2018,3483598-2503066,"2,279.00",ALLIANCE CARE (TRENDLEWOOD) LTD.
Adult and Health Services,Head of Adults,Third Party Payments 4THIRD,470101,Purchase of Care,04/09/2018,3483598-2503067,"2,555.68",ALLIANCE CARE (TRENDLEWOOD) LTD.
Adult and Health Services,Head of Adults,Third Party Payments 4THIRD,470101,Purchase of Care,04/09/2018,3483598-2505661,"1,383.67",ALLIANCE CARE (TRENDLEWOOD) LTD.
Adult and Health Services,Head of Adults,Third Party Payments 4THIRD,471101,Purchase of Care,04/09/2018,3483598-2503003,843.95,ALLIANCE CARE (TRENDLEWOOD) LTD.
Adult and Health Services,Head of Adults,Third Party Payments 4THIRD,471101,Purchase of Care,04/09/2018,3483598-2503004,"2,363.08",ALLIANCE CARE (TRENDLEWOOD) LTD.
Adult and Health Services,Head of Adults,Third Party Payments 4THIRD,471101,Purchase of Care,04/09/2018,3483598-2503016,"2,363.08",ALLIANCE CARE (TRENDLEWOOD) LTD.
Adult and Health Services,Head of Adults,Third Party Payments 4THIRD,471101,Purchase of Care,04/09/2018,3483598-2503020,"2,363.08",ALLIANCE CARE (TRENDLEWOOD) LTD.
Adult and Health Services,Head of Adults,Third Party Payments 4THIRD,471101,Purchase of Care,04/09/2018,3483598-2503021,"1,519.12",ALLIANCE CARE (TRENDLEWOOD) LTD.
Adult and Health Services,Head of Adults,Third Party Payments 4THIRD,471101,Purchase of Care,04/09/2018,3483598-2503024,"2,363.08",ALLIANCE CARE (TRENDLEWOOD) LTD.
Adult and Health Services,Head of Adults,Third Party Payments 4THIRD,471101,Purchase of Care,04/09/2018,3483598-2503037,"1,181.56",ALLIANCE CARE (TRENDLEWOOD) LTD.
Adult and Health Services,Head of Adults,Third Party Payments 4THIRD,471101,Purchase of Care,04/09/2018,3483598-2503041,"2,363.08",ALLIANCE CARE (TRENDLEWOOD) LTD.
Adult and Health Services,Head of Adults,Third Party Payments 4THIRD,471101,Purchase of Care,04/09/2018,3483598-2503049,"2,363.08",ALLIANCE CARE (TRENDLEWOOD) LTD.
Adult and Health Services,Head of Adults,Third Party Payments 4THIRD,471101,Purchase of Care,04/09/2018,3483598-2503052,"2,363.08",ALLIANCE CARE (TRENDLEWOOD) LTD.
Adult and Health Services,Head of Adults,Third Party Payments 4THIRD,471101,Purchase of Care,04/09/2018,3483598-2503054,"2,363.08",ALLIANCE CARE (TRENDLEWOOD) LTD.
Adult and Health Services,Head of Adults,Third Party Payments 4THIRD,471101,Purchase of Care,04/09/2018,3483598-2503059,"2,363.08",ALLIANCE CARE (TRENDLEWOOD) LTD.
Adult and Health Services,Head of Adults,Third Party Payments 4THIRD,471101,Purchase of Care,04/09/2018,3483598-2503062,"2,363.08",ALLIANCE CARE (TRENDLEWOOD) LTD.
Adult and Health Services,Head of Adults,Third Party Payments 4THIRD,471101,Purchase of Care,04/09/2018,3483598-2503063,"2,363.08",ALLIANCE CARE (TRENDLEWOOD) LTD.
Adult and Health Services,Head of Adults,Third Party Payments 4THIRD,471101,Purchase of Care,04/09/2018,3483598-2505503,730.87,ALLIANCE CARE (TRENDLEWOOD) LTD.
Regeneration and Local Services,Culture & Sport,Supplies and Services,384999,Miscellaneous Expenses,04/09/2018,3483462-2018-247-141-005297,649.03,AMERICAN EXPRESS SERVICES EUROPE LTD.
Adult and Health Services,Head of Adults,Third Party Payments 4THIRD,470101,Purchase of Care,04/09/2018,3483599-2504322,"1,118.00",ANCHOR CAREHOMES LTD.
Adult and Health Services,Head of Adults,Third Party Payments 4THIRD,470101,Purchase of Care,04/09/2018,3483599-2504323,"2,236.00",ANCHOR CAREHOMES LTD.
Adult and Health Services,Head of Adults,Third Party Payments 4THIRD,470101,Purchase of Care,04/09/2018,3483599-2504325,"2,236.00",ANCHOR CAREHOMES LTD.
Adult and Health Services,Head of Adults,Third Party Payments 4THIRD,470101,Purchase of Care,04/09/2018,3483600-2489724,"2,100.00",ANCHOR TRUST.
Adult and Health Services,Head of Adults,Third Party Payments 4THIRD,470101,Purchase of Care,04/09/2018,3483600-2489852,"2,100.00",ANCHOR TRUST.
Adult and Health Services,Head of Adults,Third Party Payments 4THIRD,470101,Purchase of Care,04/09/2018,3483600-2502536,"2,100.00",ANCHOR TRUST.
Adult and Health Services,Head of Adults,Third Party Payments 4THIRD,470101,Purchase of Care,04/09/2018,3483600-2502537,"2,100.00",ANCHOR TRUST.
Adult and Health Services,Head of Adults,Third Party Payments 4THIRD,471101,Purchase of Care,04/09/2018,3483601-2502788,"1,943.48",ANDREW PASS.
Adult and Health Services,Head of Adults,Third Party Payments 4THIRD,474101,Purchase of Care,04/09/2018,3483602-2504053,"2,324.00",ARMSTRONG HOUSE.
Adult and Health Services,Head of Adults,Third Party Payments 4THIRD,470101,Purchase of Care,04/09/2018,3483603-2502746,"2,100.00",ASCOT CARE NORTH EAST LTD.
Adult and Health Services,Head of Adults,Third Party Payments 4THIRD,470101,Purchase of Care,04/09/2018,3483603-2502747,"2,100.00",ASCOT CARE NORTH EAST LTD.
Adult and Health Services,Head of Adults,Third Party Payments 4THIRD,470101,Purchase of Care,04/09/2018,3483604-2502075,"2,279.00",ASCOT CARE NORTHEAST LTD T/A SPRINGFIELD LODGE CARE HOME.
Adult and Health Services,Head of Adults,Third Party Payments 4THIRD,470101,Purchase of Care,04/09/2018,3483604-2502076,"2,279.00",ASCOT CARE NORTHEAST LTD T/A SPRINGFIELD LODGE CARE HOME.
Adult and Health Services,Head of Adults,Third Party Payments 4THIRD,470101,Purchase of Care,04/09/2018,3483604-2502077,"2,279.00",ASCOT CARE NORTHEAST LTD T/A SPRINGFIELD LODGE CARE HOME.
Adult and Health Services,Head of Adults,Third Party Payments 4THIRD,470101,Purchase of Care,04/09/2018,3483604-2502081,"1,378.04",ASCOT CARE NORTHEAST LTD T/A SPRINGFIELD LODGE CARE HOME.
Adult and Health Services,Head of Adults,Third Party Payments 4THIRD,470101,Purchase of Care,04/09/2018,3483604-2502082,"1,655.60",ASCOT CARE NORTHEAST LTD T/A SPRINGFIELD LODGE CARE HOME.
Adult and Health Services,Head of Adults,Third Party Payments 4THIRD,470101,Purchase of Care,04/09/2018,3483604-2502083,"1,738.60",ASCOT CARE NORTHEAST LTD T/A SPRINGFIELD LODGE CARE HOME.
Adult and Health Services,Head of Adults,Third Party Payments 4THIRD,470101,Purchase of Care,04/09/2018,3483604-2502084,"2,279.00",ASCOT CARE NORTHEAST LTD T/A SPRINGFIELD LODGE CARE HOME.
Adult and Health Services,Head of Adults,Third Party Payments 4THIRD,470101,Purchase of Care,04/09/2018,3483604-2502085,"1,092.36",ASCOT CARE NORTHEAST LTD T/A SPRINGFIELD LODGE CARE HOME.
Adult and Health Services,Head of Adults,Third Party Payments 4THIRD,470101,Purchase of Care,04/09/2018,3483604-2502086,"2,279.00",ASCOT CARE NORTHEAST LTD T/A SPRINGFIELD LODGE CARE HOME.
Adult and Health Services,Head of Adults,Third Party Payments 4THIRD,470101,Purchase of Care,04/09/2018,3483604-2502087,"2,279.00",ASCOT CARE NORTHEAST LTD T/A SPRINGFIELD LODGE CARE HOME.
Adult and Health Services,Head of Adults,Third Party Payments 4THIRD,470101,Purchase of Care,04/09/2018,3483604-2502088,"1,277.24",ASCOT CARE NORTHEAST LTD T/A SPRINGFIELD LODGE CARE HOME.
Adult and Health Services,Head of Adults,Third Party Payments 4THIRD,470101,Purchase of Care,04/09/2018,3483604-2502089,"1,419.80",ASCOT CARE NORTHEAST LTD T/A SPRINGFIELD LODGE CARE HOME.
Adult and Health Services,Head of Adults,Third Party Payments 4THIRD,470101,Purchase of Care,04/09/2018,3483604-2502090,"2,279.00",ASCOT CARE NORTHEAST LTD T/A SPRINGFIELD LODGE CARE HOME.
Adult and Health Services,Head of Adults,Third Party Payments 4THIRD,470101,Purchase of Care,04/09/2018,3483604-2502091,"1,688.60",ASCOT CARE NORTHEAST LTD T/A SPRINGFIELD LODGE CARE HOME.
Adult and Health Services,Head of Adults,Third Party Payments 4THIRD,470101,Purchase of Care,04/09/2018,3483604-2502092,"1,726.60",ASCOT CARE NORTHEAST LTD T/A SPRINGFIELD LODGE CARE HOME.
Adult and Health Services,Head of Adults,Third Party Payments 4THIRD,470101,Purchase of Care,04/09/2018,3483604-2502093,"1,708.20",ASCOT CARE NORTHEAST LTD T/A SPRINGFIELD LODGE CARE HOME.
Adult and Health Services,Head of Adults,Third Party Payments 4THIRD,470101,Purchase of Care,04/09/2018,3483604-2502094,"1,709.08",ASCOT CARE NORTHEAST LTD T/A SPRINGFIELD LODGE CARE HOME.
Adult and Health Services,Head of Adults,Third Party Payments 4THIRD,470101,Purchase of Care,04/09/2018,3483604-2502095,"1,688.96",ASCOT CARE NORTHEAST LTD T/A SPRINGFIELD LODGE CARE HOME.
Adult and Health Services,Head of Adults,Third Party Payments 4THIRD,470101,Purchase of Care,04/09/2018,3483604-2502097,"1,726.60",ASCOT CARE NORTHEAST LTD T/A SPRINGFIELD LODGE CARE HOME.
Adult and Health Services,Head of Adults,Third Party Payments 4THIRD,470101,Purchase of Care,04/09/2018,3483604-2502098,"1,726.60",ASCOT CARE NORTHEAST LTD T/A SPRINGFIELD LODGE CARE HOME.
Adult and Health Services,Head of Adults,Third Party Payments 4THIRD,470101,Purchase of Care,04/09/2018,3483604-2502099,"2,279.00",ASCOT CARE NORTHEAST LTD T/A SPRINGFIELD LODGE CARE HOME.
Adult and Health Services,Head of Adults,Third Party Payments 4THIRD,470101,Purchase of Care,04/09/2018,3483604-2502101,"1,428.16",ASCOT CARE NORTHEAST LTD T/A SPRINGFIELD LODGE CARE HOME.
Adult and Health Services,Head of Adults,Third Party Payments 4THIRD,470101,Purchase of Care,04/09/2018,3483604-2502102,"2,279.00",ASCOT CARE NORTHEAST LTD T/A SPRINGFIELD LODGE CARE HOME.
Adult and Health Services,Head of Adults,Third Party Payments 4THIRD,471101,Purchase of Care,04/09/2018,3483604-2502078,"2,363.08",ASCOT CARE NORTHEAST LTD T/A SPRINGFIELD LODGE CARE HOME.
Adult and Health Services,Head of Adults,Third Party Payments 4THIRD,471101,Purchase of Care,04/09/2018,3483604-2502079,"1,810.68",ASCOT CARE NORTHEAST LTD T/A SPRINGFIELD LODGE CARE HOME.
Adult and Health Services,Head of Adults,Third Party Payments 4THIRD,471101,Purchase of Care,04/09/2018,3483604-2502080,"2,363.08",ASCOT CARE NORTHEAST LTD T/A SPRINGFIELD LODGE CARE HOME.
Adult and Health Services,Head of Adults,Third Party Payments 4THIRD,471101,Purchase of Care,04/09/2018,3483604-2502096,"1,296.48",ASCOT CARE NORTHEAST LTD T/A SPRINGFIELD LODGE CARE HOME.
Adult and Health Services,Head of Adults,Third Party Payments 4THIRD,471101,Purchase of Care,04/09/2018,3483604-2502100,"1,943.04",ASCOT CARE NORTHEAST LTD T/A SPRINGFIELD LODGE CARE HOME.
Adult and Health Services,Head of Adults,Third Party Payments 4THIRD,474101,Purchase of Care,04/09/2018,3483605-2504900,"2,700.00",ASHFIELD NURSING HOME LTD.
Adult and Health Services,Head of Adults,Third Party Payments 4THIRD,470101,Purchase of Care,04/09/2018,3483606-2504941,"1,001.92",ASPIRE CARE GROUP.
Adult and Health Services,Head of Adults,Third Party Payments 4THIRD,470101,Purchase of Care,04/09/2018,3483606-2504942,"2,003.84",ASPIRE CARE GROUP.
Adult and Health Services,Head of Adults,Third Party Payments 4THIRD,470101,Purchase of Care,04/09/2018,3483606-2504943,"2,003.84",ASPIRE CARE GROUP.
Adult and Health Services,Head of Adults,Third Party Payments 4THIRD,470101,Purchase of Care,04/09/2018,3483606-2504944,"1,594.84",ASPIRE CARE GROUP.
Adult and Health Services,Head of Adults,Third Party Payments 4THIRD,470101,Purchase of Care,04/09/2018,3483606-2504945,"1,324.88",ASPIRE CARE GROUP.
Adult and Health Services,Head of Adults,Third Party Payments 4THIRD,470101,Purchase of Care,04/09/2018,3483606-2504946,"1,452.64",ASPIRE CARE GROUP.
Adult and Health Services,Head of Adults,Third Party Payments 4THIRD,470101,Purchase of Care,04/09/2018,3483607-2504045,"1,700.00",ASPIRE CARE GROUP.
Adult and Health Services,Head of Adults,Third Party Payments 4THIRD,470101,Purchase of Care,04/09/2018,3483607-2504046,687.52,ASPIRE CARE GROUP.
Adult and Health Services,Head of Adults,Third Party Payments 4THIRD,470101,Purchase of Care,04/09/2018,3483607-2504047,"1,785.00",ASPIRE CARE GROUP.
Adult and Health Services,Head of Adults,Third Party Payments 4THIRD,470101,Purchase of Care,04/09/2018,3483607-2504048,"2,695.00",ASPIRE CARE GROUP.
Adult and Health Services,Head of Adults,Third Party Payments 4THIRD,470101,Purchase of Care,04/09/2018,3483607-2504049,"3,570.00",ASPIRE CARE GROUP.
Adult and Health Services,Head of Adults,Third Party Payments 4THIRD,470101,Purchase of Care,04/09/2018,3483607-2504050,"1,785.00",ASPIRE CARE GROUP.
Adult and Health Services,Head of Adults,Third Party Payments 4THIRD,470101,Purchase of Care,04/09/2018,3483607-2504051,668.64,ASPIRE CARE GROUP.
Adult and Health Services,Head of Adults,Third Party Payments 4THIRD,470101,Purchase of Care,04/09/2018,3483607-2504052,"2,003.84",ASPIRE CARE GROUP.
Adult and Health Services,Head of Adults,Third Party Payments 4THIRD,470101,Purchase of Care,04/09/2018,3483608-2502732,"2,003.84",ASPIRE CARE GROUP.
Adult and Health Services,Head of Adults,Third Party Payments 4THIRD,470101,Purchase of Care,04/09/2018,3483608-2502733,"2,003.84",ASPIRE CARE GROUP.
Adult and Health Services,Head of Adults,Third Party Payments 4THIRD,470101,Purchase of Care,04/09/2018,3483608-2502734,"2,003.84",ASPIRE CARE GROUP.
Adult and Health Services,Head of Adults,Third Party Payments 4THIRD,474101,Purchase of Care,04/09/2018,3483609-2504895,"2,324.00",ATLAS CARE HOMES LTD.
Adult and Health Services,Head of Adults,Third Party Payments 4THIRD,474101,Purchase of Care,04/09/2018,3483609-2504896,"1,210.00",ATLAS CARE HOMES LTD.
Adult and Health Services,Head of Adults,Third Party Payments 4THIRD,470101,Purchase of Care,04/09/2018,3483610-2504314,"3,264.00",AUTISM CARE UK (4) LTD.
Adult and Health Services,Head of Adults,Third Party Payments 4THIRD,470101,Purchase of Care,04/09/2018,3483610-2504315,"2,003.84",AUTISM CARE UK (4) LTD.
Adult and Health Services,Head of Adults,Third Party Payments 4THIRD,470101,Purchase of Care,04/09/2018,3483610-2504316,"9,047.44",AUTISM CARE UK (4) LTD.
Adult and Health Services,Head of Adults,Third Party Payments 4THIRD,470101,Purchase of Care,04/09/2018,3483610-2504317,"4,329.68",AUTISM CARE UK (4) LTD.
Adult and Health Services,Head of Adults,Third Party Payments 4THIRD,470101,Purchase of Care,04/09/2018,3483610-2504318,"1,742.44",AUTISM CARE UK (4) LTD.
Adult and Health Services,Head of Adults,Third Party Payments 4THIRD,470101,Purchase of Care,04/09/2018,3483610-2504319,568.96,AUTISM CARE UK (4) LTD.
Adult and Health Services,Head of Adults,Third Party Payments 4THIRD,470101,Purchase of Care,04/09/2018,3483610-2504320,"3,091.20",AUTISM CARE UK (4) LTD.
Adult and Health Services,Head of Adults,Third Party Payments 4THIRD,474101,Purchase of Care,04/09/2018,3483611-2505140,"2,480.00",BARCHESTER HEALTHCARE HOMES LTD.
Adult and Health Services,Head of Adults,Third Party Payments 4THIRD,474101,Purchase of Care,04/09/2018,3483613-2502607,763.42,BARCHESTER HEALTHCARE HOMES LTD.
Adult and Health Services,Head of Adults,Third Party Payments 4THIRD,474101,Purchase of Care,04/09/2018,3483613-2502609,"2,250.08",BARCHESTER HEALTHCARE HOMES LTD.
Adult and Health Services,Head of Adults,Third Party Payments 4THIRD,474101,Purchase of Care,04/09/2018,3483613-2502611,"2,250.08",BARCHESTER HEALTHCARE HOMES LTD.
Adult and Health Services,Head of Adults,Third Party Payments 4THIRD,474101,Purchase of Care,04/09/2018,3483613-2502613,"2,250.08",BARCHESTER HEALTHCARE HOMES LTD.
Adult and Health Services,Head of Adults,Third Party Payments 4THIRD,474101,Purchase of Care,04/09/2018,3483613-2502615,"2,250.08",BARCHESTER HEALTHCARE HOMES LTD.
Adult and Health Services,Head of Adults,Third Party Payments 4THIRD,474101,Purchase of Care,04/09/2018,3483613-2502618,"2,250.08",BARCHESTER HEALTHCARE HOMES LTD.
Adult and Health Services,Head of Adults,Third Party Payments 4THIRD,474101,Purchase of Care,04/09/2018,3483613-2502621,"2,250.08",BARCHESTER HEALTHCARE HOMES LTD.
Adult and Health Services,Head of Adults,Third Party Payments 4THIRD,474101,Purchase of Care,04/09/2018,3483613-2502624,"2,250.08",BARCHESTER HEALTHCARE HOMES LTD.
Adult and Health Services,Head of Adults,Third Party Payments 4THIRD,474101,Purchase of Care,04/09/2018,3483613-2502627,"2,250.08",BARCHESTER HEALTHCARE HOMES LTD.
Adult and Health Services,Head of Adults,Third Party Payments 4THIRD,474101,Purchase of Care,04/09/2018,3483613-2502630,"1,125.04",BARCHESTER HEALTHCARE HOMES LTD.
Adult and Health Services,Head of Adults,Third Party Payments 4THIRD,474101,Purchase of Care,04/09/2018,3483613-2502633,"2,250.08",BARCHESTER HEALTHCARE HOMES LTD.
Adult and Health Services,Head of Adults,Third Party Payments 4THIRD,474101,Purchase of Care,04/09/2018,3483613-2502636,"1,125.04",BARCHESTER HEALTHCARE HOMES LTD.
Adult and Health Services,Head of Adults,Third Party Payments 4THIRD,474101,Purchase of Care,04/09/2018,3483613-2502638,"2,250.08",BARCHESTER HEALTHCARE HOMES LTD.
Adult and Health Services,Head of Adults,Third Party Payments 4THIRD,474101,Purchase of Care,04/09/2018,3483613-2502641,"2,454.04",BARCHESTER HEALTHCARE HOMES LTD.
Adult and Health Services,Head of Adults,Third Party Payments 4THIRD,474101,Purchase of Care,04/09/2018,3483613-2502644,"2,250.08",BARCHESTER HEALTHCARE HOMES LTD.
Adult and Health Services,Head of Adults,Third Party Payments 4THIRD,474101,Purchase of Care,04/09/2018,3483613-2502647,"2,250.08",BARCHESTER HEALTHCARE HOMES LTD.
Adult and Health Services,Head of Adults,Third Party Payments 4THIRD,474101,Purchase of Care,04/09/2018,3483613-2502650,"2,250.08",BARCHESTER HEALTHCARE HOMES LTD.
Adult and Health Services,Head of Adults,Third Party Payments 4THIRD,474101,Purchase of Care,04/09/2018,3483613-2505594,"1,687.56",BARCHESTER HEALTHCARE HOMES LTD.
Adult and Health Services,Head of Adults,Third Party Payments 4THIRD,474101,Purchase of Care,04/09/2018,3483614-2503687,"2,720.00",BARCHESTER HEALTHCARE HOMES LTD.
Adult and Health Services,Head of Adults,Third Party Payments 4THIRD,474101,Purchase of Care,04/09/2018,3483614-2503689,"3,325.00",BARCHESTER HEALTHCARE HOMES LTD.
Adult and Health Services,Head of Adults,Third Party Payments 4THIRD,474101,Purchase of Care,04/09/2018,3483614-2503690,"2,584.00",BARCHESTER HEALTHCARE HOMES LTD.
Adult and Health Services,Head of Adults,Third Party Payments 4THIRD,474101,Purchase of Care,04/09/2018,3483614-2503691,"1,890.00",BARCHESTER HEALTHCARE HOMES LTD.
Adult and Health Services,Head of Adults,Third Party Payments 4THIRD,474101,Purchase of Care,04/09/2018,3483614-2503692,"1,980.00",BARCHESTER HEALTHCARE HOMES LTD.
Adult and Health Services,Head of Adults,Third Party Payments 4THIRD,474101,Purchase of Care,04/09/2018,3483614-2503693,"1,204.52",BARCHESTER HEALTHCARE HOMES LTD.
Adult and Health Services,Head of Adults,Third Party Payments 4THIRD,474101,Purchase of Care,04/09/2018,3483614-2503694,"2,584.00",BARCHESTER HEALTHCARE HOMES LTD.
Adult and Health Services,Head of Adults,Third Party Payments 4THIRD,474101,Purchase of Care,04/09/2018,3483614-2503695,"6,964.00",BARCHESTER HEALTHCARE HOMES LTD.
Adult and Health Services,Head of Adults,Third Party Payments 4THIRD,474101,Purchase of Care,04/09/2018,3483617-2452275,"2,950.00",BARCHESTER HEALTHCARE HOMES LTD.
Adult and Health Services,Head of Adults,Third Party Payments 4THIRD,474101,Purchase of Care,04/09/2018,3483617-2452301,"2,950.00",BARCHESTER HEALTHCARE HOMES LTD.
Adult and Health Services,Head of Adults,Third Party Payments 4THIRD,474101,Purchase of Care,04/09/2018,3483617-2452373,"2,990.00",BARCHESTER HEALTHCARE HOMES LTD.
Adult and Health Services,Head of Adults,Third Party Payments 4THIRD,474101,Purchase of Care,04/09/2018,3483617-2469347,"2,700.00",BARCHESTER HEALTHCARE HOMES LTD.
Adult and Health Services,Head of Adults,Third Party Payments 4THIRD,474101,Purchase of Care,04/09/2018,3483617-2469348,"2,478.00",BARCHESTER HEALTHCARE HOMES LTD.
Adult and Health Services,Head of Adults,Third Party Payments 4THIRD,474101,Purchase of Care,04/09/2018,3483617-2503580,992.00,BARCHESTER HEALTHCARE HOMES LTD.
Adult and Health Services,Head of Adults,Third Party Payments 4THIRD,474101,Purchase of Care,04/09/2018,3483617-2503581,"2,950.00",BARCHESTER HEALTHCARE HOMES LTD.
Adult and Health Services,Head of Adults,Third Party Payments 4THIRD,474101,Purchase of Care,04/09/2018,3483617-2503583,"2,950.00",BARCHESTER HEALTHCARE HOMES LTD.
Adult and Health Services,Head of Adults,Third Party Payments 4THIRD,474101,Purchase of Care,04/09/2018,3483617-2503584,"2,990.00",BARCHESTER HEALTHCARE HOMES LTD.
Adult and Health Services,Head of Adults,Third Party Payments 4THIRD,474101,Purchase of Care,04/09/2018,3483617-2503585,"2,700.00",BARCHESTER HEALTHCARE HOMES LTD.
Adult and Health Services,Head of Adults,Third Party Payments 4THIRD,474101,Purchase of Care,04/09/2018,3483617-2503586,"2,478.00",BARCHESTER HEALTHCARE HOMES LTD.
Adult and Health Services,Head of Adults,Third Party Payments 4THIRD,474101,Purchase of Care,04/09/2018,3483619-2504592,"2,265.00",BARCHESTER HEALTHCARE HOMES LTD.
Adult and Health Services,Head of Adults,Third Party Payments 4THIRD,470101,Purchase of Care,04/09/2018,3483615-2503658,754.28,BARCHESTER HEALTHCARE HOMES LTD.
Adult and Health Services,Head of Adults,Third Party Payments 4THIRD,470101,Purchase of Care,04/09/2018,3483615-2503660,"1,056.00",BARCHESTER HEALTHCARE HOMES LTD.
Adult and Health Services,Head of Adults,Third Party Payments 4THIRD,470101,Purchase of Care,04/09/2018,3483616-2503532,"2,324.00",BARCHESTER HEALTHCARE HOMES LTD.
Adult and Health Services,Head of Adults,Third Party Payments 4THIRD,470101,Purchase of Care,04/09/2018,3483616-2503533,"2,324.00",BARCHESTER HEALTHCARE HOMES LTD.
Adult and Health Services,Head of Adults,Third Party Payments 4THIRD,470101,Purchase of Care,04/09/2018,3483616-2503534,"2,324.00",BARCHESTER HEALTHCARE HOMES LTD.
Adult and Health Services,Head of Adults,Third Party Payments 4THIRD,470101,Purchase of Care,04/09/2018,3483616-2503535,"2,324.00",BARCHESTER HEALTHCARE HOMES LTD.
Adult and Health Services,Head of Adults,Third Party Payments 4THIRD,471101,Purchase of Care,04/09/2018,3483612-2505136,"1,237.84",BARCHESTER HEALTHCARE HOMES LTD.
Adult and Health Services,Head of Adults,Third Party Payments 4THIRD,471101,Purchase of Care,04/09/2018,3483615-2503659,"2,192.00",BARCHESTER HEALTHCARE HOMES LTD.
Adult and Health Services,Head of Adults,Third Party Payments 4THIRD,471101,Purchase of Care,04/09/2018,3483616-2503531,"2,420.00",BARCHESTER HEALTHCARE HOMES LTD.
Adult and Health Services,Head of Adults,Third Party Payments 4THIRD,471101,Purchase of Care,04/09/2018,3483616-2503536,"2,420.00",BARCHESTER HEALTHCARE HOMES LTD.
Adult and Health Services,Head of Adults,Third Party Payments 4THIRD,471101,Purchase of Care,04/09/2018,3483618-2505086,"2,102.80",BARCHESTER HEALTHCARE HOMES LTD.
Adult and Health Services,Head of Adults,Third Party Payments 4THIRD,470101,Purchase of Care,04/09/2018,3483620-2504410,"2,156.88",BEAMISH RESIDENTIAL CARE HOME LTD.
Adult and Health Services,Head of Adults,Third Party Payments 4THIRD,470101,Purchase of Care,04/09/2018,3483620-2504411,"2,156.88",BEAMISH RESIDENTIAL CARE HOME LTD.
Adult and Health Services,Head of Adults,Third Party Payments 4THIRD,470101,Purchase of Care,04/09/2018,3483620-2504414,"1,583.08",BEAMISH RESIDENTIAL CARE HOME LTD.
Adult and Health Services,Head of Adults,Third Party Payments 4THIRD,470101,Purchase of Care,04/09/2018,3483620-2504415,"1,078.44",BEAMISH RESIDENTIAL CARE HOME LTD.
Adult and Health Services,Head of Adults,Third Party Payments 4THIRD,470101,Purchase of Care,04/09/2018,3483620-2504416,"2,156.88",BEAMISH RESIDENTIAL CARE HOME LTD.
Adult and Health Services,Head of Adults,Third Party Payments 4THIRD,470101,Purchase of Care,04/09/2018,3483620-2504417,"2,156.88",BEAMISH RESIDENTIAL CARE HOME LTD.
Adult and Health Services,Head of Adults,Third Party Payments 4THIRD,470101,Purchase of Care,04/09/2018,3483620-2504418,"2,156.88",BEAMISH RESIDENTIAL CARE HOME LTD.
Adult and Health Services,Head of Adults,Third Party Payments 4THIRD,470101,Purchase of Care,04/09/2018,3483620-2504419,528.00,BEAMISH RESIDENTIAL CARE HOME LTD.
Adult and Health Services,Head of Adults,Third Party Payments 4THIRD,470101,Purchase of Care,04/09/2018,3483620-2504420,"1,604.36",BEAMISH RESIDENTIAL CARE HOME LTD.
Adult and Health Services,Head of Adults,Third Party Payments 4THIRD,470101,Purchase of Care,04/09/2018,3483620-2504421,"2,156.88",BEAMISH RESIDENTIAL CARE HOME LTD.
Adult and Health Services,Head of Adults,Third Party Payments 4THIRD,471101,Purchase of Care,04/09/2018,3483620-2504406,"2,242.24",BEAMISH RESIDENTIAL CARE HOME LTD.
Adult and Health Services,Head of Adults,Third Party Payments 4THIRD,471101,Purchase of Care,04/09/2018,3483620-2504407,"1,534.00",BEAMISH RESIDENTIAL CARE HOME LTD.
Adult and Health Services,Head of Adults,Third Party Payments 4THIRD,471101,Purchase of Care,04/09/2018,3483620-2504409,"1,487.84",BEAMISH RESIDENTIAL CARE HOME LTD.
Adult and Health Services,Head of Adults,Third Party Payments 4THIRD,471101,Purchase of Care,04/09/2018,3483620-2504412,"1,689.84",BEAMISH RESIDENTIAL CARE HOME LTD.
Adult and Health Services,Head of Adults,Third Party Payments 4THIRD,471101,Purchase of Care,04/09/2018,3483620-2504413,"2,242.24",BEAMISH RESIDENTIAL CARE HOME LTD.
Regeneration and Local Services,Direct Services,Transport,210057,Repair and Maintenance of Vehicles,04/09/2018,3483465-15135342,924.50,BELL TRUCK SALES LTD T/A BELL TRUCK & VAN.
Adult and Health Services,Head of Adults,Third Party Payments 4THIRD,470101,Purchase of Care,04/09/2018,3483621-2505468,"1,001.92",BENTON CARE SERVICES LTD.
Adult and Health Services,Head of Adults,Third Party Payments 4THIRD,470101,Purchase of Care,04/09/2018,3483621-2505469,"3,120.20",BENTON CARE SERVICES LTD.
Adult and Health Services,Head of Adults,Third Party Payments 4THIRD,470101,Purchase of Care,04/09/2018,3483621-2505470,"3,120.20",BENTON CARE SERVICES LTD.
Adult and Health Services,Head of Adults,Third Party Payments 4THIRD,470101,Purchase of Care,04/09/2018,3483621-2505471,"2,003.84",BENTON CARE SERVICES LTD.
Adult and Health Services,Head of Adults,Third Party Payments 4THIRD,470101,Purchase of Care,04/09/2018,3483621-2505472,"3,120.20",BENTON CARE SERVICES LTD.
Adult and Health Services,Head of Adults,Third Party Payments 4THIRD,470101,Purchase of Care,04/09/2018,3483621-2505473,"3,120.20",BENTON CARE SERVICES LTD.
Adult and Health Services,Head of Adults,Third Party Payments 4THIRD,470101,Purchase of Care,04/09/2018,3483621-2505474,"3,120.20",BENTON CARE SERVICES LTD.
Adult and Health Services,Head of Adults,Third Party Payments 4THIRD,470101,Purchase of Care,04/09/2018,3483621-2505475,"3,120.20",BENTON CARE SERVICES LTD.
Adult and Health Services,Head of Adults,Supplies and Services,304516,Equipment and Materials,04/09/2018,3483467-INV-0172,950.50,BILL SCOTT TAXIS LTD.
Adult and Health Services,Head of Adults,Third Party Payments 4THIRD,474101,Purchase of Care,04/09/2018,3483624-2502810,"1,185.72",BONDCARE WILLINGTON LTD.
Adult and Health Services,Head of Adults,Third Party Payments 4THIRD,474101,Purchase of Care,04/09/2018,3483624-2502814,"2,371.44",BONDCARE WILLINGTON LTD.
Adult and Health Services,Head of Adults,Third Party Payments 4THIRD,474101,Purchase of Care,04/09/2018,3483624-2502816,"1,185.72",BONDCARE WILLINGTON LTD.
Adult and Health Services,Head of Adults,Third Party Payments 4THIRD,474101,Purchase of Care,04/09/2018,3483624-2502824,"1,185.72",BONDCARE WILLINGTON LTD.
Adult and Health Services,Head of Adults,Third Party Payments 4THIRD,474101,Purchase of Care,04/09/2018,3483624-2502826,"2,286.74",BONDCARE WILLINGTON LTD.
Adult and Health Services,Head of Adults,Third Party Payments 4THIRD,474101,Purchase of Care,04/09/2018,3483624-2502827,"2,130.30",BONDCARE WILLINGTON LTD.
Adult and Health Services,Head of Adults,Third Party Payments 4THIRD,474101,Purchase of Care,04/09/2018,3483624-2502829,"2,371.44",BONDCARE WILLINGTON LTD.
Adult and Health Services,Head of Adults,Third Party Payments 4THIRD,474101,Purchase of Care,04/09/2018,3483624-2502831,"1,185.72",BONDCARE WILLINGTON LTD.
Adult and Health Services,Head of Adults,Third Party Payments 4THIRD,474101,Purchase of Care,04/09/2018,3483624-2502833,"1,185.72",BONDCARE WILLINGTON LTD.
Adult and Health Services,Head of Adults,Third Party Payments 4THIRD,474101,Purchase of Care,04/09/2018,3483624-2502835,"2,371.44",BONDCARE WILLINGTON LTD.
Adult and Health Services,Head of Adults,Third Party Payments 4THIRD,474101,Purchase of Care,04/09/2018,3483624-2502837,"2,371.44",BONDCARE WILLINGTON LTD.
Adult and Health Services,Head of Adults,Third Party Payments 4THIRD,474101,Purchase of Care,04/09/2018,3483624-2502842,"1,185.72",BONDCARE WILLINGTON LTD.
Adult and Health Services,Head of Adults,Third Party Payments 4THIRD,474101,Purchase of Care,04/09/2018,3483624-2502843,920.52,BONDCARE WILLINGTON LTD.
Adult and Health Services,Head of Adults,Third Party Payments 4THIRD,474101,Purchase of Care,04/09/2018,3483624-2502845,"2,371.44",BONDCARE WILLINGTON LTD.
Adult and Health Services,Head of Adults,Third Party Payments 4THIRD,474101,Purchase of Care,04/09/2018,3483624-2502848,"1,185.72",BONDCARE WILLINGTON LTD.
Adult and Health Services,Head of Adults,Third Party Payments 4THIRD,474101,Purchase of Care,04/09/2018,3483624-2502853,"2,371.44",BONDCARE WILLINGTON LTD.
Adult and Health Services,Head of Adults,Third Party Payments 4THIRD,474101,Purchase of Care,04/09/2018,3483624-2502855,"2,371.44",BONDCARE WILLINGTON LTD.
Adult and Health Services,Head of Adults,Third Party Payments 4THIRD,474101,Purchase of Care,04/09/2018,3483624-2502865,"2,371.44",BONDCARE WILLINGTON LTD.
Adult and Health Services,Head of Adults,Third Party Payments 4THIRD,474101,Purchase of Care,04/09/2018,3483624-2502870,"1,185.72",BONDCARE WILLINGTON LTD.
Adult and Health Services,Head of Adults,Third Party Payments 4THIRD,474101,Purchase of Care,04/09/2018,3483625-2501224,"2,575.28",BONDCARE WILLINGTON LTD.
Adult and Health Services,Head of Adults,Third Party Payments 4THIRD,474101,Purchase of Care,04/09/2018,3483625-2501230,"2,575.28",BONDCARE WILLINGTON LTD.
Adult and Health Services,Head of Adults,Third Party Payments 4THIRD,474101,Purchase of Care,04/09/2018,3483625-2501234,"2,371.44",BONDCARE WILLINGTON LTD.
Adult and Health Services,Head of Adults,Third Party Payments 4THIRD,474101,Purchase of Care,04/09/2018,3483625-2501238,"2,371.44",BONDCARE WILLINGTON LTD.
Adult and Health Services,Head of Adults,Third Party Payments 4THIRD,474101,Purchase of Care,04/09/2018,3483625-2501245,"2,575.28",BONDCARE WILLINGTON LTD.
Adult and Health Services,Head of Adults,Third Party Payments 4THIRD,474101,Purchase of Care,04/09/2018,3483625-2501248,"2,381.52",BONDCARE WILLINGTON LTD.
Adult and Health Services,Head of Adults,Third Party Payments 4THIRD,474101,Purchase of Care,04/09/2018,3483625-2501252,"2,371.44",BONDCARE WILLINGTON LTD.
Adult and Health Services,Head of Adults,Third Party Payments 4THIRD,474101,Purchase of Care,04/09/2018,3483625-2501254,"2,371.44",BONDCARE WILLINGTON LTD.
Adult and Health Services,Head of Adults,Third Party Payments 4THIRD,474101,Purchase of Care,04/09/2018,3483625-2501258,"2,371.44",BONDCARE WILLINGTON LTD.
Adult and Health Services,Head of Adults,Third Party Payments 4THIRD,470101,Purchase of Care,04/09/2018,3483623-2504159,"2,052.00",BONDCARE WILLINGTON LTD.
Adult and Health Services,Head of Adults,Third Party Payments 4THIRD,470101,Purchase of Care,04/09/2018,3483624-2502808,"1,763.13",BONDCARE WILLINGTON LTD.
Adult and Health Services,Head of Adults,Third Party Payments 4THIRD,470101,Purchase of Care,04/09/2018,3483624-2502813,"3,087.24",BONDCARE WILLINGTON LTD.
Adult and Health Services,Head of Adults,Third Party Payments 4THIRD,470101,Purchase of Care,04/09/2018,3483624-2502818,"1,175.44",BONDCARE WILLINGTON LTD.
Adult and Health Services,Head of Adults,Third Party Payments 4THIRD,470101,Purchase of Care,04/09/2018,3483624-2502819,"4,418.40",BONDCARE WILLINGTON LTD.
Adult and Health Services,Head of Adults,Third Party Payments 4THIRD,470101,Purchase of Care,04/09/2018,3483624-2502820,"2,350.84",BONDCARE WILLINGTON LTD.
Adult and Health Services,Head of Adults,Third Party Payments 4THIRD,470101,Purchase of Care,04/09/2018,3483624-2502821,"2,350.84",BONDCARE WILLINGTON LTD.
Adult and Health Services,Head of Adults,Third Party Payments 4THIRD,470101,Purchase of Care,04/09/2018,3483624-2502822,"2,350.84",BONDCARE WILLINGTON LTD.
Adult and Health Services,Head of Adults,Third Party Payments 4THIRD,470101,Purchase of Care,04/09/2018,3483624-2502823,526.00,BONDCARE WILLINGTON LTD.
Adult and Health Services,Head of Adults,Third Party Payments 4THIRD,470101,Purchase of Care,04/09/2018,3483624-2502840,"2,350.84",BONDCARE WILLINGTON LTD.
Adult and Health Services,Head of Adults,Third Party Payments 4THIRD,470101,Purchase of Care,04/09/2018,3483624-2502841,"2,350.84",BONDCARE WILLINGTON LTD.
Adult and Health Services,Head of Adults,Third Party Payments 4THIRD,470101,Purchase of Care,04/09/2018,3483624-2502847,"2,350.84",BONDCARE WILLINGTON LTD.
Adult and Health Services,Head of Adults,Third Party Payments 4THIRD,470101,Purchase of Care,04/09/2018,3483624-2502850,"2,350.84",BONDCARE WILLINGTON LTD.
Adult and Health Services,Head of Adults,Third Party Payments 4THIRD,470101,Purchase of Care,04/09/2018,3483624-2502851,"2,350.84",BONDCARE WILLINGTON LTD.
Adult and Health Services,Head of Adults,Third Party Payments 4THIRD,470101,Purchase of Care,04/09/2018,3483624-2502852,"1,104.60",BONDCARE WILLINGTON LTD.
Adult and Health Services,Head of Adults,Third Party Payments 4THIRD,470101,Purchase of Care,04/09/2018,3483624-2502857,"2,350.84",BONDCARE WILLINGTON LTD.
Adult and Health Services,Head of Adults,Third Party Payments 4THIRD,470101,Purchase of Care,04/09/2018,3483624-2502859,"2,350.84",BONDCARE WILLINGTON LTD.
Adult and Health Services,Head of Adults,Third Party Payments 4THIRD,470101,Purchase of Care,04/09/2018,3483624-2502862,"2,350.84",BONDCARE WILLINGTON LTD.
Adult and Health Services,Head of Adults,Third Party Payments 4THIRD,470101,Purchase of Care,04/09/2018,3483624-2502863,"2,350.84",BONDCARE WILLINGTON LTD.
Adult and Health Services,Head of Adults,Third Party Payments 4THIRD,470101,Purchase of Care,04/09/2018,3483624-2502864,"2,350.84",BONDCARE WILLINGTON LTD.
Adult and Health Services,Head of Adults,Third Party Payments 4THIRD,470101,Purchase of Care,04/09/2018,3483624-2502867,"2,350.84",BONDCARE WILLINGTON LTD.
Adult and Health Services,Head of Adults,Third Party Payments 4THIRD,470101,Purchase of Care,04/09/2018,3483624-2502868,"2,350.84",BONDCARE WILLINGTON LTD.
Adult and Health Services,Head of Adults,Third Party Payments 4THIRD,470101,Purchase of Care,04/09/2018,3483624-2502869,"2,350.84",BONDCARE WILLINGTON LTD.
Adult and Health Services,Head of Adults,Third Party Payments 4THIRD,470101,Purchase of Care,04/09/2018,3483624-2505542,"2,350.84",BONDCARE WILLINGTON LTD.
Adult and Health Services,Head of Adults,Third Party Payments 4THIRD,470101,Purchase of Care,04/09/2018,3483624-2505543,"1,295.70",BONDCARE WILLINGTON LTD.
Adult and Health Services,Head of Adults,Third Party Payments 4THIRD,470101,Purchase of Care,04/09/2018,3483625-2501217,732.53,BONDCARE WILLINGTON LTD.
Adult and Health Services,Head of Adults,Third Party Payments 4THIRD,470101,Purchase of Care,04/09/2018,3483625-2501219,"2,197.60",BONDCARE WILLINGTON LTD.
Adult and Health Services,Head of Adults,Third Party Payments 4THIRD,470101,Purchase of Care,04/09/2018,3483625-2501220,"1,383.67",BONDCARE WILLINGTON LTD.
Adult and Health Services,Head of Adults,Third Party Payments 4THIRD,470101,Purchase of Care,04/09/2018,3483625-2501223,"2,279.00",BONDCARE WILLINGTON LTD.
Adult and Health Services,Head of Adults,Third Party Payments 4THIRD,470101,Purchase of Care,04/09/2018,3483625-2501226,"2,279.00",BONDCARE WILLINGTON LTD.
Adult and Health Services,Head of Adults,Third Party Payments 4THIRD,470101,Purchase of Care,04/09/2018,3483625-2501229,"2,279.00",BONDCARE WILLINGTON LTD.
Adult and Health Services,Head of Adults,Third Party Payments 4THIRD,470101,Purchase of Care,04/09/2018,3483625-2501232,"2,279.00",BONDCARE WILLINGTON LTD.
Adult and Health Services,Head of Adults,Third Party Payments 4THIRD,470101,Purchase of Care,04/09/2018,3483625-2501233,"2,350.84",BONDCARE WILLINGTON LTD.
Adult and Health Services,Head of Adults,Third Party Payments 4THIRD,470101,Purchase of Care,04/09/2018,3483625-2501236,"2,279.00",BONDCARE WILLINGTON LTD.
Adult and Health Services,Head of Adults,Third Party Payments 4THIRD,470101,Purchase of Care,04/09/2018,3483625-2501237,"2,279.00",BONDCARE WILLINGTON LTD.
Adult and Health Services,Head of Adults,Third Party Payments 4THIRD,470101,Purchase of Care,04/09/2018,3483625-2501240,"1,175.44",BONDCARE WILLINGTON LTD.
Adult and Health Services,Head of Adults,Third Party Payments 4THIRD,470101,Purchase of Care,04/09/2018,3483625-2501241,"2,808.84",BONDCARE WILLINGTON LTD.
Adult and Health Services,Head of Adults,Third Party Payments 4THIRD,470101,Purchase of Care,04/09/2018,3483625-2501242,"2,279.00",BONDCARE WILLINGTON LTD.
Adult and Health Services,Head of Adults,Third Party Payments 4THIRD,470101,Purchase of Care,04/09/2018,3483625-2501243,"2,350.84",BONDCARE WILLINGTON LTD.
Adult and Health Services,Head of Adults,Third Party Payments 4THIRD,470101,Purchase of Care,04/09/2018,3483625-2501244,"2,555.68",BONDCARE WILLINGTON LTD.
Adult and Health Services,Head of Adults,Third Party Payments 4THIRD,470101,Purchase of Care,04/09/2018,3483625-2501247,"2,279.00",BONDCARE WILLINGTON LTD.
Adult and Health Services,Head of Adults,Third Party Payments 4THIRD,470101,Purchase of Care,04/09/2018,3483625-2501250,"2,279.00",BONDCARE WILLINGTON LTD.
Adult and Health Services,Head of Adults,Third Party Payments 4THIRD,470101,Purchase of Care,04/09/2018,3483625-2501251,"2,350.84",BONDCARE WILLINGTON LTD.
Adult and Health Services,Head of Adults,Third Party Payments 4THIRD,470101,Purchase of Care,04/09/2018,3483625-2501256,"2,279.00",BONDCARE WILLINGTON LTD.
Adult and Health Services,Head of Adults,Third Party Payments 4THIRD,470101,Purchase of Care,04/09/2018,3483625-2501257,"2,350.84",BONDCARE WILLINGTON LTD.
Adult and Health Services,Head of Adults,Third Party Payments 4THIRD,470101,Purchase of Care,04/09/2018,3483625-2501260,"2,350.84",BONDCARE WILLINGTON LTD.
Adult and Health Services,Head of Adults,Third Party Payments 4THIRD,470101,Purchase of Care,04/09/2018,3483625-2501261,"2,350.84",BONDCARE WILLINGTON LTD.
Adult and Health Services,Head of Adults,Third Party Payments 4THIRD,470101,Purchase of Care,04/09/2018,3483625-2501262,"2,350.84",BONDCARE WILLINGTON LTD.
Adult and Health Services,Head of Adults,Third Party Payments 4THIRD,470101,Purchase of Care,04/09/2018,3483625-2505643,621.31,BONDCARE WILLINGTON LTD.
Adult and Health Services,Head of Adults,Third Party Payments 4THIRD,470101,Purchase of Care,04/09/2018,3483626-2502978,"1,763.13",BONDCARE WILLINGTON LTD.
Adult and Health Services,Head of Adults,Third Party Payments 4THIRD,470101,Purchase of Care,04/09/2018,3483626-2502981,"1,175.44",BONDCARE WILLINGTON LTD.
Adult and Health Services,Head of Adults,Third Party Payments 4THIRD,470101,Purchase of Care,04/09/2018,3483626-2502982,"3,563.68",BONDCARE WILLINGTON LTD.
Adult and Health Services,Head of Adults,Third Party Payments 4THIRD,470101,Purchase of Care,04/09/2018,3483626-2502984,"2,350.84",BONDCARE WILLINGTON LTD.
Adult and Health Services,Head of Adults,Third Party Payments 4THIRD,470101,Purchase of Care,04/09/2018,3483626-2502990,"2,350.84",BONDCARE WILLINGTON LTD.
Adult and Health Services,Head of Adults,Third Party Payments 4THIRD,470101,Purchase of Care,04/09/2018,3483626-2502991,"2,350.84",BONDCARE WILLINGTON LTD.
Adult and Health Services,Head of Adults,Third Party Payments 4THIRD,470101,Purchase of Care,04/09/2018,3483626-2502994,"2,350.84",BONDCARE WILLINGTON LTD.
Adult and Health Services,Head of Adults,Third Party Payments 4THIRD,470101,Purchase of Care,04/09/2018,3483626-2502996,"2,350.84",BONDCARE WILLINGTON LTD.
Adult and Health Services,Head of Adults,Third Party Payments 4THIRD,471101,Purchase of Care,04/09/2018,3483624-2502839,"2,363.08",BONDCARE WILLINGTON LTD.
Adult and Health Services,Head of Adults,Third Party Payments 4THIRD,471101,Purchase of Care,04/09/2018,3483624-2502858,"2,363.08",BONDCARE WILLINGTON LTD.
Adult and Health Services,Head of Adults,Third Party Payments 4THIRD,471101,Purchase of Care,04/09/2018,3483626-2502974,"2,363.08",BONDCARE WILLINGTON LTD.
Adult and Health Services,Head of Adults,Third Party Payments 4THIRD,471101,Purchase of Care,04/09/2018,3483626-2502976,"2,363.08",BONDCARE WILLINGTON LTD.
Adult and Health Services,Head of Adults,Third Party Payments 4THIRD,471101,Purchase of Care,04/09/2018,3483626-2502977,"6,836.05",BONDCARE WILLINGTON LTD.
Adult and Health Services,Head of Adults,Third Party Payments 4THIRD,471101,Purchase of Care,04/09/2018,3483626-2502979,"2,363.08",BONDCARE WILLINGTON LTD.
Adult and Health Services,Head of Adults,Third Party Payments 4THIRD,471101,Purchase of Care,04/09/2018,3483626-2502980,928.35,BONDCARE WILLINGTON LTD.
Adult and Health Services,Head of Adults,Third Party Payments 4THIRD,471101,Purchase of Care,04/09/2018,3483626-2502983,"2,363.08",BONDCARE WILLINGTON LTD.
Adult and Health Services,Head of Adults,Third Party Payments 4THIRD,471101,Purchase of Care,04/09/2018,3483626-2502985,"2,363.08",BONDCARE WILLINGTON LTD.
Adult and Health Services,Head of Adults,Third Party Payments 4THIRD,471101,Purchase of Care,04/09/2018,3483626-2502986,"2,363.08",BONDCARE WILLINGTON LTD.
Adult and Health Services,Head of Adults,Third Party Payments 4THIRD,471101,Purchase of Care,04/09/2018,3483626-2502987,"2,363.08",BONDCARE WILLINGTON LTD.
Adult and Health Services,Head of Adults,Third Party Payments 4THIRD,471101,Purchase of Care,04/09/2018,3483626-2502988,"1,181.56",BONDCARE WILLINGTON LTD.
Adult and Health Services,Head of Adults,Third Party Payments 4THIRD,471101,Purchase of Care,04/09/2018,3483626-2502992,"2,363.08",BONDCARE WILLINGTON LTD.
Adult and Health Services,Head of Adults,Third Party Payments 4THIRD,471101,Purchase of Care,04/09/2018,3483626-2502993,"2,363.08",BONDCARE WILLINGTON LTD.
Adult and Health Services,Head of Adults,Third Party Payments 4THIRD,471101,Purchase of Care,04/09/2018,3483626-2502995,"2,363.08",BONDCARE WILLINGTON LTD.
Adult and Health Services,Head of Adults,Third Party Payments 4THIRD,471101,Purchase of Care,04/09/2018,3483626-2502997,"2,363.08",BONDCARE WILLINGTON LTD.
Adult and Health Services,Head of Adults,Third Party Payments 4THIRD,471101,Purchase of Care,04/09/2018,3483626-2502998,"2,363.08",BONDCARE WILLINGTON LTD.
Adult and Health Services,Head of Adults,Third Party Payments 4THIRD,471101,Purchase of Care,04/09/2018,3483626-2502999,"2,363.08",BONDCARE WILLINGTON LTD.
Adult and Health Services,Head of Adults,Third Party Payments 4THIRD,471101,Purchase of Care,04/09/2018,3483626-2503000,"2,363.08",BONDCARE WILLINGTON LTD.
Adult and Health Services,Head of Adults,Third Party Payments 4THIRD,471101,Purchase of Care,04/09/2018,3483626-2503001,"2,363.08",BONDCARE WILLINGTON LTD.
Adult and Health Services,Head of Adults,Third Party Payments 4THIRD,471101,Purchase of Care,04/09/2018,3483626-2505644,"1,434.72",BONDCARE WILLINGTON LTD.
Adult and Health Services,Head of Adults,Third Party Payments 4THIRD,471101,Purchase of Care,04/09/2018,3483626-2505905,"1,350.33",BONDCARE WILLINGTON LTD.
Adult and Health Services,Head of Adults,Third Party Payments 4THIRD,470101,Purchase of Care,04/09/2018,3483627-2505444,"1,576.24",BRIGHTERKIND T/A AVERY HOUSE HEALTHCARE LTD.
Adult and Health Services,Head of Adults,Third Party Payments 4THIRD,470101,Purchase of Care,04/09/2018,3483628-2501862,511.21,BROOMHOUSE CARE LTD.
Adult and Health Services,Head of Adults,Third Party Payments 4THIRD,470101,Purchase of Care,04/09/2018,3483628-2501864,"2,279.00",BROOMHOUSE CARE LTD.
Adult and Health Services,Head of Adults,Third Party Payments 4THIRD,470101,Purchase of Care,04/09/2018,3483628-2501867,"2,279.00",BROOMHOUSE CARE LTD.
Adult and Health Services,Head of Adults,Third Party Payments 4THIRD,470101,Purchase of Care,04/09/2018,3483628-2501869,"2,279.00",BROOMHOUSE CARE LTD.
Adult and Health Services,Head of Adults,Third Party Payments 4THIRD,470101,Purchase of Care,04/09/2018,3483628-2501871,"2,279.00",BROOMHOUSE CARE LTD.
Adult and Health Services,Head of Adults,Third Party Payments 4THIRD,470101,Purchase of Care,04/09/2018,3483628-2501874,"2,279.00",BROOMHOUSE CARE LTD.
Adult and Health Services,Head of Adults,Third Party Payments 4THIRD,470101,Purchase of Care,04/09/2018,3483628-2501875,"2,279.00",BROOMHOUSE CARE LTD.
Adult and Health Services,Head of Adults,Third Party Payments 4THIRD,470101,Purchase of Care,04/09/2018,3483628-2501878,"1,872.03",BROOMHOUSE CARE LTD.
Adult and Health Services,Head of Adults,Third Party Payments 4THIRD,470101,Purchase of Care,04/09/2018,3483628-2505557,"10,418.28",BROOMHOUSE CARE LTD.
Adult and Health Services,Head of Adults,Third Party Payments 4THIRD,471101,Purchase of Care,04/09/2018,3483628-2501859,"1,181.54",BROOMHOUSE CARE LTD.
Adult and Health Services,Head of Adults,Third Party Payments 4THIRD,471101,Purchase of Care,04/09/2018,3483628-2501860,"2,363.08",BROOMHOUSE CARE LTD.
Adult and Health Services,Head of Adults,Third Party Payments 4THIRD,471101,Purchase of Care,04/09/2018,3483628-2501861,"2,363.08",BROOMHOUSE CARE LTD.
Adult and Health Services,Head of Adults,Third Party Payments 4THIRD,471101,Purchase of Care,04/09/2018,3483628-2501863,"2,363.08",BROOMHOUSE CARE LTD.
Adult and Health Services,Head of Adults,Third Party Payments 4THIRD,471101,Purchase of Care,04/09/2018,3483628-2501865,"2,363.08",BROOMHOUSE CARE LTD.
Adult and Health Services,Head of Adults,Third Party Payments 4THIRD,471101,Purchase of Care,04/09/2018,3483628-2501866,"1,181.52",BROOMHOUSE CARE LTD.
Adult and Health Services,Head of Adults,Third Party Payments 4THIRD,471101,Purchase of Care,04/09/2018,3483628-2501868,"2,363.08",BROOMHOUSE CARE LTD.
Adult and Health Services,Head of Adults,Third Party Payments 4THIRD,471101,Purchase of Care,04/09/2018,3483628-2501870,"2,363.08",BROOMHOUSE CARE LTD.
Adult and Health Services,Head of Adults,Third Party Payments 4THIRD,471101,Purchase of Care,04/09/2018,3483628-2501872,"2,363.08",BROOMHOUSE CARE LTD.
Adult and Health Services,Head of Adults,Third Party Payments 4THIRD,471101,Purchase of Care,04/09/2018,3483628-2501873,"2,363.08",BROOMHOUSE CARE LTD.
Adult and Health Services,Head of Adults,Third Party Payments 4THIRD,471101,Purchase of Care,04/09/2018,3483628-2501876,"2,363.08",BROOMHOUSE CARE LTD.
Adult and Health Services,Head of Adults,Third Party Payments 4THIRD,471101,Purchase of Care,04/09/2018,3483628-2501877,"2,363.08",BROOMHOUSE CARE LTD.
Adult and Health Services,Head of Adults,Third Party Payments 4THIRD,471101,Purchase of Care,04/09/2018,3483628-2501879,"2,363.08",BROOMHOUSE CARE LTD.
Adult and Health Services,Head of Adults,Third Party Payments 4THIRD,471101,Purchase of Care,04/09/2018,3483628-2501880,"1,513.36",BROOMHOUSE CARE LTD.
Adult and Health Services,Head of Adults,Third Party Payments 4THIRD,471101,Purchase of Care,04/09/2018,3483628-2505740,"1,181.54",BROOMHOUSE CARE LTD.
Adult and Health Services,Head of Adults,Third Party Payments 4THIRD,470101,Purchase of Care,04/09/2018,3483629-2473308,"1,000.00",BURLINGTON CARE (YORKSHIRE) LTD.
Adult and Health Services,Head of Adults,Third Party Payments 4THIRD,470101,Purchase of Care,04/09/2018,3483629-2505436,"3,125.78",BURLINGTON CARE (YORKSHIRE) LTD.
Adult and Health Services,Head of Adults,Third Party Payments 4THIRD,471101,Purchase of Care,04/09/2018,3483630-2503950,"2,192.00",BURLINGTON CARE LTD.
Adult and Health Services,Head of Adults,Third Party Payments 4THIRD,474101,Purchase of Care,04/09/2018,3483635-2501215,"1,996.00",CARE UK COMMUNITY PARTNERSHIPS LTD.
Adult and Health Services,Head of Adults,Third Party Payments 4THIRD,474101,Purchase of Care,04/09/2018,3483636-2503954,"1,185.72",CARE UK COMMUNITY PARTNERSHIPS LTD.
Adult and Health Services,Head of Adults,Third Party Payments 4THIRD,474101,Purchase of Care,04/09/2018,3483636-2503960,"2,371.44",CARE UK COMMUNITY PARTNERSHIPS LTD.
Adult and Health Services,Head of Adults,Third Party Payments 4THIRD,474101,Purchase of Care,04/09/2018,3483636-2503982,"2,371.44",CARE UK COMMUNITY PARTNERSHIPS LTD.
Adult and Health Services,Head of Adults,Third Party Payments 4THIRD,474101,Purchase of Care,04/09/2018,3483636-2503984,"2,371.44",CARE UK COMMUNITY PARTNERSHIPS LTD.
Adult and Health Services,Head of Adults,Third Party Payments 4THIRD,474101,Purchase of Care,04/09/2018,3483636-2503989,"2,371.44",CARE UK COMMUNITY PARTNERSHIPS LTD.
Adult and Health Services,Head of Adults,Third Party Payments 4THIRD,474101,Purchase of Care,04/09/2018,3483636-2503994,"2,371.44",CARE UK COMMUNITY PARTNERSHIPS LTD.
Adult and Health Services,Head of Adults,Third Party Payments 4THIRD,474101,Purchase of Care,04/09/2018,3483636-2503997,"1,185.72",CARE UK COMMUNITY PARTNERSHIPS LTD.
Adult and Health Services,Head of Adults,Third Party Payments 4THIRD,474101,Purchase of Care,04/09/2018,3483636-2503999,"2,371.44",CARE UK COMMUNITY PARTNERSHIPS LTD.
Adult and Health Services,Head of Adults,Third Party Payments 4THIRD,474101,Purchase of Care,04/09/2018,3483636-2504002,"1,185.72",CARE UK COMMUNITY PARTNERSHIPS LTD.
Adult and Health Services,Head of Adults,Third Party Payments 4THIRD,474101,Purchase of Care,04/09/2018,3483636-2505761,"1,185.72",CARE UK COMMUNITY PARTNERSHIPS LTD.
Adult and Health Services,Head of Adults,Third Party Payments 4THIRD,470101,Purchase of Care,04/09/2018,3483632-2474507,"2,052.00",CARE UK COMMUNITY PARTNERSHIPS LTD.
Adult and Health Services,Head of Adults,Third Party Payments 4THIRD,470101,Purchase of Care,04/09/2018,3483632-2475685,"2,052.00",CARE UK COMMUNITY PARTNERSHIPS LTD.
Adult and Health Services,Head of Adults,Third Party Payments 4THIRD,470101,Purchase of Care,04/09/2018,3483632-2504009,"1,172.57",CARE UK COMMUNITY PARTNERSHIPS LTD.
Adult and Health Services,Head of Adults,Third Party Payments 4THIRD,470101,Purchase of Care,04/09/2018,3483632-2504010,"2,052.00",CARE UK COMMUNITY PARTNERSHIPS LTD.
Adult and Health Services,Head of Adults,Third Party Payments 4THIRD,470101,Purchase of Care,04/09/2018,3483633-2503824,"2,221.96",CARE UK COMMUNITY PARTNERSHIPS LTD.
Adult and Health Services,Head of Adults,Third Party Payments 4THIRD,470101,Purchase of Care,04/09/2018,3483634-2502538,"2,034.82",CARE UK COMMUNITY PARTNERSHIPS LTD.
Adult and Health Services,Head of Adults,Third Party Payments 4THIRD,470101,Purchase of Care,04/09/2018,3483634-2502539,"2,279.00",CARE UK COMMUNITY PARTNERSHIPS LTD.
Adult and Health Services,Head of Adults,Third Party Payments 4THIRD,470101,Purchase of Care,04/09/2018,3483634-2502540,"1,139.50",CARE UK COMMUNITY PARTNERSHIPS LTD.
Adult and Health Services,Head of Adults,Third Party Payments 4THIRD,470101,Purchase of Care,04/09/2018,3483634-2502541,"2,279.00",CARE UK COMMUNITY PARTNERSHIPS LTD.
Adult and Health Services,Head of Adults,Third Party Payments 4THIRD,470101,Purchase of Care,04/09/2018,3483634-2502542,"2,279.00",CARE UK COMMUNITY PARTNERSHIPS LTD.
Adult and Health Services,Head of Adults,Third Party Payments 4THIRD,470101,Purchase of Care,04/09/2018,3483634-2502543,569.75,CARE UK COMMUNITY PARTNERSHIPS LTD.
Adult and Health Services,Head of Adults,Third Party Payments 4THIRD,470101,Purchase of Care,04/09/2018,3483634-2502544,"2,279.00",CARE UK COMMUNITY PARTNERSHIPS LTD.
Adult and Health Services,Head of Adults,Third Party Payments 4THIRD,470101,Purchase of Care,04/09/2018,3483634-2502545,"2,279.00",CARE UK COMMUNITY PARTNERSHIPS LTD.
Adult and Health Services,Head of Adults,Third Party Payments 4THIRD,470101,Purchase of Care,04/09/2018,3483634-2502546,"2,279.00",CARE UK COMMUNITY PARTNERSHIPS LTD.
Adult and Health Services,Head of Adults,Third Party Payments 4THIRD,470101,Purchase of Care,04/09/2018,3483634-2502547,"2,279.00",CARE UK COMMUNITY PARTNERSHIPS LTD.
Adult and Health Services,Head of Adults,Third Party Payments 4THIRD,470101,Purchase of Care,04/09/2018,3483634-2502548,"2,279.00",CARE UK COMMUNITY PARTNERSHIPS LTD.
Adult and Health Services,Head of Adults,Third Party Payments 4THIRD,470101,Purchase of Care,04/09/2018,3483634-2502549,"2,279.00",CARE UK COMMUNITY PARTNERSHIPS LTD.
Adult and Health Services,Head of Adults,Third Party Payments 4THIRD,470101,Purchase of Care,04/09/2018,3483634-2502550,"2,279.00",CARE UK COMMUNITY PARTNERSHIPS LTD.
Adult and Health Services,Head of Adults,Third Party Payments 4THIRD,470101,Purchase of Care,04/09/2018,3483634-2502551,"2,279.00",CARE UK COMMUNITY PARTNERSHIPS LTD.
Adult and Health Services,Head of Adults,Third Party Payments 4THIRD,470101,Purchase of Care,04/09/2018,3483634-2502552,"2,279.00",CARE UK COMMUNITY PARTNERSHIPS LTD.
Adult and Health Services,Head of Adults,Third Party Payments 4THIRD,470101,Purchase of Care,04/09/2018,3483634-2502553,"2,279.00",CARE UK COMMUNITY PARTNERSHIPS LTD.
Adult and Health Services,Head of Adults,Third Party Payments 4THIRD,470101,Purchase of Care,04/09/2018,3483634-2502554,"2,279.00",CARE UK COMMUNITY PARTNERSHIPS LTD.
Adult and Health Services,Head of Adults,Third Party Payments 4THIRD,470101,Purchase of Care,04/09/2018,3483634-2502555,"2,399.00",CARE UK COMMUNITY PARTNERSHIPS LTD.
Adult and Health Services,Head of Adults,Third Party Payments 4THIRD,470101,Purchase of Care,04/09/2018,3483636-2503956,"2,279.00",CARE UK COMMUNITY PARTNERSHIPS LTD.
Adult and Health Services,Head of Adults,Third Party Payments 4THIRD,470101,Purchase of Care,04/09/2018,3483636-2503957,"2,279.00",CARE UK COMMUNITY PARTNERSHIPS LTD.
Adult and Health Services,Head of Adults,Third Party Payments 4THIRD,470101,Purchase of Care,04/09/2018,3483636-2503958,"1,627.85",CARE UK COMMUNITY PARTNERSHIPS LTD.
Adult and Health Services,Head of Adults,Third Party Payments 4THIRD,470101,Purchase of Care,04/09/2018,3483636-2503969,"2,279.00",CARE UK COMMUNITY PARTNERSHIPS LTD.
Adult and Health Services,Head of Adults,Third Party Payments 4THIRD,470101,Purchase of Care,04/09/2018,3483636-2503970,"1,546.46",CARE UK COMMUNITY PARTNERSHIPS LTD.
Adult and Health Services,Head of Adults,Third Party Payments 4THIRD,470101,Purchase of Care,04/09/2018,3483636-2503971,"2,279.00",CARE UK COMMUNITY PARTNERSHIPS LTD.
Adult and Health Services,Head of Adults,Third Party Payments 4THIRD,470101,Purchase of Care,04/09/2018,3483636-2503973,"2,279.00",CARE UK COMMUNITY PARTNERSHIPS LTD.
Adult and Health Services,Head of Adults,Third Party Payments 4THIRD,470101,Purchase of Care,04/09/2018,3483636-2503974,"2,279.00",CARE UK COMMUNITY PARTNERSHIPS LTD.
Adult and Health Services,Head of Adults,Third Party Payments 4THIRD,470101,Purchase of Care,04/09/2018,3483636-2503975,"2,279.00",CARE UK COMMUNITY PARTNERSHIPS LTD.
Adult and Health Services,Head of Adults,Third Party Payments 4THIRD,470101,Purchase of Care,04/09/2018,3483636-2503977,"2,279.00",CARE UK COMMUNITY PARTNERSHIPS LTD.
Adult and Health Services,Head of Adults,Third Party Payments 4THIRD,470101,Purchase of Care,04/09/2018,3483636-2503978,"2,279.00",CARE UK COMMUNITY PARTNERSHIPS LTD.
Adult and Health Services,Head of Adults,Third Party Payments 4THIRD,470101,Purchase of Care,04/09/2018,3483636-2503980,"2,279.00",CARE UK COMMUNITY PARTNERSHIPS LTD.
Adult and Health Services,Head of Adults,Third Party Payments 4THIRD,470101,Purchase of Care,04/09/2018,3483636-2503981,"2,555.68",CARE UK COMMUNITY PARTNERSHIPS LTD.
Adult and Health Services,Head of Adults,Third Party Payments 4THIRD,470101,Purchase of Care,04/09/2018,3483636-2503987,"1,383.67",CARE UK COMMUNITY PARTNERSHIPS LTD.
Adult and Health Services,Head of Adults,Third Party Payments 4THIRD,470101,Purchase of Care,04/09/2018,3483636-2503993,"2,279.00",CARE UK COMMUNITY PARTNERSHIPS LTD.
Adult and Health Services,Head of Adults,Third Party Payments 4THIRD,470101,Purchase of Care,04/09/2018,3483636-2504001,"2,279.00",CARE UK COMMUNITY PARTNERSHIPS LTD.
Adult and Health Services,Head of Adults,Third Party Payments 4THIRD,470101,Purchase of Care,04/09/2018,3483636-2504004,"2,279.00",CARE UK COMMUNITY PARTNERSHIPS LTD.
Adult and Health Services,Head of Adults,Third Party Payments 4THIRD,470101,Purchase of Care,04/09/2018,3483636-2504005,"2,279.00",CARE UK COMMUNITY PARTNERSHIPS LTD.
Adult and Health Services,Head of Adults,Third Party Payments 4THIRD,470101,Purchase of Care,04/09/2018,3483636-2504006,"2,279.00",CARE UK COMMUNITY PARTNERSHIPS LTD.
Adult and Health Services,Head of Adults,Third Party Payments 4THIRD,470101,Purchase of Care,04/09/2018,3483636-2504007,"2,279.00",CARE UK COMMUNITY PARTNERSHIPS LTD.
Adult and Health Services,Head of Adults,Third Party Payments 4THIRD,470101,Purchase of Care,04/09/2018,3483636-2504008,"2,279.00",CARE UK COMMUNITY PARTNERSHIPS LTD.
Adult and Health Services,Head of Adults,Third Party Payments 4THIRD,470101,Purchase of Care,04/09/2018,3483637-2503792,"2,279.00",CARE UK COMMUNITY PARTNERSHIPS LTD.
Adult and Health Services,Head of Adults,Third Party Payments 4THIRD,470101,Purchase of Care,04/09/2018,3483637-2503795,"2,279.00",CARE UK COMMUNITY PARTNERSHIPS LTD.
Adult and Health Services,Head of Adults,Third Party Payments 4THIRD,470101,Purchase of Care,04/09/2018,3483637-2503798,"2,279.00",CARE UK COMMUNITY PARTNERSHIPS LTD.
Adult and Health Services,Head of Adults,Third Party Payments 4THIRD,470101,Purchase of Care,04/09/2018,3483637-2503801,"2,279.00",CARE UK COMMUNITY PARTNERSHIPS LTD.
Adult and Health Services,Head of Adults,Third Party Payments 4THIRD,470101,Purchase of Care,04/09/2018,3483637-2503804,"2,279.00",CARE UK COMMUNITY PARTNERSHIPS LTD.
Adult and Health Services,Head of Adults,Third Party Payments 4THIRD,470101,Purchase of Care,04/09/2018,3483637-2503805,"1,139.48",CARE UK COMMUNITY PARTNERSHIPS LTD.
Adult and Health Services,Head of Adults,Third Party Payments 4THIRD,470101,Purchase of Care,04/09/2018,3483637-2503809,"2,279.00",CARE UK COMMUNITY PARTNERSHIPS LTD.
Adult and Health Services,Head of Adults,Third Party Payments 4THIRD,470101,Purchase of Care,04/09/2018,3483637-2503812,"2,279.00",CARE UK COMMUNITY PARTNERSHIPS LTD.
Adult and Health Services,Head of Adults,Third Party Payments 4THIRD,470101,Purchase of Care,04/09/2018,3483637-2503813,"2,279.00",CARE UK COMMUNITY PARTNERSHIPS LTD.
Adult and Health Services,Head of Adults,Third Party Payments 4THIRD,470101,Purchase of Care,04/09/2018,3483637-2503817,"2,279.00",CARE UK COMMUNITY PARTNERSHIPS LTD.
Adult and Health Services,Head of Adults,Third Party Payments 4THIRD,470101,Purchase of Care,04/09/2018,3483637-2503818,"2,279.00",CARE UK COMMUNITY PARTNERSHIPS LTD.
Adult and Health Services,Head of Adults,Third Party Payments 4THIRD,470101,Purchase of Care,04/09/2018,3483637-2503819,"2,279.00",CARE UK COMMUNITY PARTNERSHIPS LTD.
Adult and Health Services,Head of Adults,Third Party Payments 4THIRD,470101,Purchase of Care,04/09/2018,3483637-2503822,"2,279.00",CARE UK COMMUNITY PARTNERSHIPS LTD.
Adult and Health Services,Head of Adults,Third Party Payments 4THIRD,471101,Purchase of Care,04/09/2018,3483631-2505137,"2,420.00",CARE UK COMMUNITY PARTNERSHIPS LTD.
Adult and Health Services,Head of Adults,Third Party Payments 4THIRD,471101,Purchase of Care,04/09/2018,3483631-2505138,"2,420.00",CARE UK COMMUNITY PARTNERSHIPS LTD.
Adult and Health Services,Head of Adults,Third Party Payments 4THIRD,471101,Purchase of Care,04/09/2018,3483633-2503825,"2,221.96",CARE UK COMMUNITY PARTNERSHIPS LTD.
Adult and Health Services,Head of Adults,Third Party Payments 4THIRD,471101,Purchase of Care,04/09/2018,3483633-2503826,"2,297.64",CARE UK COMMUNITY PARTNERSHIPS LTD.
Adult and Health Services,Head of Adults,Third Party Payments 4THIRD,471101,Purchase of Care,04/09/2018,3483633-2505688,"2,379.69",CARE UK COMMUNITY PARTNERSHIPS LTD.
Adult and Health Services,Head of Adults,Third Party Payments 4THIRD,471101,Purchase of Care,04/09/2018,3483635-2501214,"2,076.00",CARE UK COMMUNITY PARTNERSHIPS LTD.
Adult and Health Services,Head of Adults,Third Party Payments 4THIRD,471101,Purchase of Care,04/09/2018,3483636-2503953,"2,363.08",CARE UK COMMUNITY PARTNERSHIPS LTD.
Adult and Health Services,Head of Adults,Third Party Payments 4THIRD,471101,Purchase of Care,04/09/2018,3483636-2503959,"1,181.52",CARE UK COMMUNITY PARTNERSHIPS LTD.
Adult and Health Services,Head of Adults,Third Party Payments 4THIRD,471101,Purchase of Care,04/09/2018,3483636-2503962,675.16,CARE UK COMMUNITY PARTNERSHIPS LTD.
Adult and Health Services,Head of Adults,Third Party Payments 4THIRD,471101,Purchase of Care,04/09/2018,3483636-2503963,"2,363.08",CARE UK COMMUNITY PARTNERSHIPS LTD.
Adult and Health Services,Head of Adults,Third Party Payments 4THIRD,471101,Purchase of Care,04/09/2018,3483636-2503964,"2,363.08",CARE UK COMMUNITY PARTNERSHIPS LTD.
Adult and Health Services,Head of Adults,Third Party Payments 4THIRD,471101,Purchase of Care,04/09/2018,3483636-2503968,"2,363.08",CARE UK COMMUNITY PARTNERSHIPS LTD.
Adult and Health Services,Head of Adults,Third Party Payments 4THIRD,471101,Purchase of Care,04/09/2018,3483636-2503972,"2,363.08",CARE UK COMMUNITY PARTNERSHIPS LTD.
Adult and Health Services,Head of Adults,Third Party Payments 4THIRD,471101,Purchase of Care,04/09/2018,3483636-2503976,"2,363.08",CARE UK COMMUNITY PARTNERSHIPS LTD.
Adult and Health Services,Head of Adults,Third Party Payments 4THIRD,471101,Purchase of Care,04/09/2018,3483636-2503986,"2,363.08",CARE UK COMMUNITY PARTNERSHIPS LTD.
Adult and Health Services,Head of Adults,Third Party Payments 4THIRD,471101,Purchase of Care,04/09/2018,3483636-2503988,"2,363.08",CARE UK COMMUNITY PARTNERSHIPS LTD.
Adult and Health Services,Head of Adults,Third Party Payments 4THIRD,471101,Purchase of Care,04/09/2018,3483636-2503991,"2,363.08",CARE UK COMMUNITY PARTNERSHIPS LTD.
Adult and Health Services,Head of Adults,Third Party Payments 4THIRD,471101,Purchase of Care,04/09/2018,3483636-2503992,"2,363.08",CARE UK COMMUNITY PARTNERSHIPS LTD.
Adult and Health Services,Head of Adults,Third Party Payments 4THIRD,471101,Purchase of Care,04/09/2018,3483636-2503996,"2,363.08",CARE UK COMMUNITY PARTNERSHIPS LTD.
Adult and Health Services,Head of Adults,Third Party Payments 4THIRD,471101,Purchase of Care,04/09/2018,3483637-2503793,"1,265.93",CARE UK COMMUNITY PARTNERSHIPS LTD.
Adult and Health Services,Head of Adults,Third Party Payments 4THIRD,471101,Purchase of Care,04/09/2018,3483637-2503794,"2,363.08",CARE UK COMMUNITY PARTNERSHIPS LTD.
Adult and Health Services,Head of Adults,Third Party Payments 4THIRD,471101,Purchase of Care,04/09/2018,3483637-2503796,"1,097.14",CARE UK COMMUNITY PARTNERSHIPS LTD.
Adult and Health Services,Head of Adults,Third Party Payments 4THIRD,471101,Purchase of Care,04/09/2018,3483637-2503797,"2,363.08",CARE UK COMMUNITY PARTNERSHIPS LTD.
Adult and Health Services,Head of Adults,Third Party Payments 4THIRD,471101,Purchase of Care,04/09/2018,3483637-2503800,"2,363.08",CARE UK COMMUNITY PARTNERSHIPS LTD.
Adult and Health Services,Head of Adults,Third Party Payments 4THIRD,471101,Purchase of Care,04/09/2018,3483637-2503802,"2,363.08",CARE UK COMMUNITY PARTNERSHIPS LTD.
Adult and Health Services,Head of Adults,Third Party Payments 4THIRD,471101,Purchase of Care,04/09/2018,3483637-2503803,"2,363.08",CARE UK COMMUNITY PARTNERSHIPS LTD.
Adult and Health Services,Head of Adults,Third Party Payments 4THIRD,471101,Purchase of Care,04/09/2018,3483637-2503806,"2,363.08",CARE UK COMMUNITY PARTNERSHIPS LTD.
Adult and Health Services,Head of Adults,Third Party Payments 4THIRD,471101,Purchase of Care,04/09/2018,3483637-2503807,"2,363.08",CARE UK COMMUNITY PARTNERSHIPS LTD.
Adult and Health Services,Head of Adults,Third Party Payments 4THIRD,471101,Purchase of Care,04/09/2018,3483637-2503808,"2,363.08",CARE UK COMMUNITY PARTNERSHIPS LTD.
Adult and Health Services,Head of Adults,Third Party Payments 4THIRD,471101,Purchase of Care,04/09/2018,3483637-2503810,"2,363.08",CARE UK COMMUNITY PARTNERSHIPS LTD.
Adult and Health Services,Head of Adults,Third Party Payments 4THIRD,471101,Purchase of Care,04/09/2018,3483637-2503811,"2,363.08",CARE UK COMMUNITY PARTNERSHIPS LTD.
Adult and Health Services,Head of Adults,Third Party Payments 4THIRD,471101,Purchase of Care,04/09/2018,3483637-2503814,"2,363.08",CARE UK COMMUNITY PARTNERSHIPS LTD.
Adult and Health Services,Head of Adults,Third Party Payments 4THIRD,471101,Purchase of Care,04/09/2018,3483637-2503815,"2,363.08",CARE UK COMMUNITY PARTNERSHIPS LTD.
Adult and Health Services,Head of Adults,Third Party Payments 4THIRD,471101,Purchase of Care,04/09/2018,3483637-2503816,"2,363.08",CARE UK COMMUNITY PARTNERSHIPS LTD.
Adult and Health Services,Head of Adults,Third Party Payments 4THIRD,471101,Purchase of Care,04/09/2018,3483637-2503820,"2,363.08",CARE UK COMMUNITY PARTNERSHIPS LTD.
Adult and Health Services,Head of Adults,Third Party Payments 4THIRD,471101,Purchase of Care,04/09/2018,3483637-2503821,"2,363.08",CARE UK COMMUNITY PARTNERSHIPS LTD.
Adult and Health Services,Head of Adults,Third Party Payments 4THIRD,474101,Purchase of Care,04/09/2018,3483638-2505133,"4,103.40",CARELINE LIFESTYLES (UK) LTD.
Adult and Health Services,Head of Adults,Third Party Payments 4THIRD,474101,Purchase of Care,04/09/2018,3483638-2505134,"2,415.00",CARELINE LIFESTYLES (UK) LTD.
Adult and Health Services,Head of Adults,Third Party Payments 4THIRD,474101,Purchase of Care,04/09/2018,3483639-2504901,"2,808.00",CARELINE LIFESTYLES (UK) LTD.
Adult and Health Services,Head of Adults,Third Party Payments 4THIRD,470101,Purchase of Care,04/09/2018,3483638-2505135,740.88,CARELINE LIFESTYLES (UK) LTD.
Adult and Health Services,Head of Adults,Third Party Payments 4THIRD,470101,Purchase of Care,04/09/2018,3483640-2504138,"2,719.52",CARELINE LIFESTYLES (UK) LTD.
Adult and Health Services,Head of Adults,Third Party Payments 4THIRD,470101,Purchase of Care,04/09/2018,3483640-2504139,"2,016.00",CARELINE LIFESTYLES (UK) LTD.
Adult and Health Services,Head of Adults,Third Party Payments 4THIRD,470101,Purchase of Care,04/09/2018,3483641-2503823,"2,461.68",CARELINE LIFESTYLES (UK) LTD.
Adult and Health Services,Head of Adults,Third Party Payments 4THIRD,474101,Purchase of Care,04/09/2018,3483642-2505460,"3,299.68",CARELINE LIFESTYLES T/A DE BRUCE COURT.
Adult and Health Services,Head of Adults,Third Party Payments 4THIRD,474101,Purchase of Care,04/09/2018,3483642-2505462,"3,242.00",CARELINE LIFESTYLES T/A DE BRUCE COURT.
Adult and Health Services,Head of Adults,Third Party Payments 4THIRD,474101,Purchase of Care,04/09/2018,3483642-2505463,"3,088.00",CARELINE LIFESTYLES T/A DE BRUCE COURT.
Adult and Health Services,Head of Adults,Third Party Payments 4THIRD,474101,Purchase of Care,04/09/2018,3483642-2505464,"1,481.76",CARELINE LIFESTYLES T/A DE BRUCE COURT.
Adult and Health Services,Head of Adults,Third Party Payments 4THIRD,474101,Purchase of Care,04/09/2018,3483642-2505669,"2,925.68",CARELINE LIFESTYLES T/A DE BRUCE COURT.
Adult and Health Services,Head of Adults,Third Party Payments 4THIRD,474101,Purchase of Care,04/09/2018,3483643-2502103,"1,292.88",CAREWELL (HEALTH CARE) LTD.
Adult and Health Services,Head of Adults,Third Party Payments 4THIRD,474101,Purchase of Care,04/09/2018,3483643-2502111,"2,215.08",CAREWELL (HEALTH CARE) LTD.
Adult and Health Services,Head of Adults,Third Party Payments 4THIRD,474101,Purchase of Care,04/09/2018,3483643-2502129,"2,011.16",CAREWELL (HEALTH CARE) LTD.
Adult and Health Services,Head of Adults,Third Party Payments 4THIRD,474101,Purchase of Care,04/09/2018,3483643-2502132,"2,011.16",CAREWELL (HEALTH CARE) LTD.
Adult and Health Services,Head of Adults,Third Party Payments 4THIRD,474101,Purchase of Care,04/09/2018,3483643-2505825,502.79,CAREWELL (HEALTH CARE) LTD.
Adult and Health Services,Head of Adults,Third Party Payments 4THIRD,470102,Purchase of Care,04/09/2018,3483643-2505550,"1,139.50",CAREWELL (HEALTH CARE) LTD.
Adult and Health Services,Head of Adults,Third Party Payments 4THIRD,470102,Purchase of Care,04/09/2018,3483643-2505794,"1,790.64",CAREWELL (HEALTH CARE) LTD.
Adult and Health Services,Head of Adults,Third Party Payments 4THIRD,470101,Purchase of Care,04/09/2018,3483643-2502105,"1,919.00",CAREWELL (HEALTH CARE) LTD.
Adult and Health Services,Head of Adults,Third Party Payments 4THIRD,470101,Purchase of Care,04/09/2018,3483643-2502106,"1,919.00",CAREWELL (HEALTH CARE) LTD.
Adult and Health Services,Head of Adults,Third Party Payments 4THIRD,470101,Purchase of Care,04/09/2018,3483643-2502113,"1,919.00",CAREWELL (HEALTH CARE) LTD.
Adult and Health Services,Head of Adults,Third Party Payments 4THIRD,470101,Purchase of Care,04/09/2018,3483643-2502114,"1,919.00",CAREWELL (HEALTH CARE) LTD.
Adult and Health Services,Head of Adults,Third Party Payments 4THIRD,470101,Purchase of Care,04/09/2018,3483643-2502118,"1,919.00",CAREWELL (HEALTH CARE) LTD.
Adult and Health Services,Head of Adults,Third Party Payments 4THIRD,470101,Purchase of Care,04/09/2018,3483643-2502124,"1,919.00",CAREWELL (HEALTH CARE) LTD.
Adult and Health Services,Head of Adults,Third Party Payments 4THIRD,470101,Purchase of Care,04/09/2018,3483643-2502126,959.50,CAREWELL (HEALTH CARE) LTD.
Adult and Health Services,Head of Adults,Third Party Payments 4THIRD,470101,Purchase of Care,04/09/2018,3483643-2502128,"1,919.00",CAREWELL (HEALTH CARE) LTD.
Adult and Health Services,Head of Adults,Third Party Payments 4THIRD,470101,Purchase of Care,04/09/2018,3483643-2502131,"1,919.00",CAREWELL (HEALTH CARE) LTD.
Adult and Health Services,Head of Adults,Third Party Payments 4THIRD,470101,Purchase of Care,04/09/2018,3483643-2502135,"1,919.00",CAREWELL (HEALTH CARE) LTD.
Adult and Health Services,Head of Adults,Third Party Payments 4THIRD,470101,Purchase of Care,04/09/2018,3483643-2502136,"1,919.00",CAREWELL (HEALTH CARE) LTD.
Adult and Health Services,Head of Adults,Third Party Payments 4THIRD,470101,Purchase of Care,04/09/2018,3483643-2502137,"1,919.00",CAREWELL (HEALTH CARE) LTD.
Regeneration and Local Services,Direct Services,Supplies and Services,304259,Equipment and Materials,04/09/2018,3483473-488501,898.31,CARRS BILLINGTON AGRICULTURE.
Adult and Health Services,Head of Adults,Third Party Payments 4THIRD,474101,Purchase of Care,04/09/2018,3483644-2504593,"1,092.00",CLEVELAND ALZHEIMER`S RESIDENTIAL CENTRE LTD.
Adult and Health Services,Head of Adults,Third Party Payments 4THIRD,470101,Purchase of Care,04/09/2018,3483645-2475524,"9,104.36",COLEG ELIDYR CAMPHILL COMMUNITIES.
Adult and Health Services,Head of Adults,Third Party Payments 4THIRD,470101,Purchase of Care,04/09/2018,3483645-2490984,"8,454.05",COLEG ELIDYR CAMPHILL COMMUNITIES.
Regeneration and Local Services,EnvironmentHealth & Consumer Protection,Supplies and Services,304999,Equipment and Materials,04/09/2018,3483479-WEB36234,975.83,COLENA LTD T/A HELIGUY.
Adult and Health Services,Head of Adults,Third Party Payments 4THIRD,474101,Purchase of Care,04/09/2018,3483646-2503649,"2,221.96",CONAGS CARE LTD.
Adult and Health Services,Head of Adults,Third Party Payments 4THIRD,470101,Purchase of Care,04/09/2018,3483647-2504751,"7,621.36",CONSENSUS SUPPORT SERVICES LTD.
Adult and Health Services,Head of Adults,Third Party Payments 4THIRD,474101,Purchase of Care,04/09/2018,3483649-2501917,"2,381.52",COUNTRYWIDE CARE HOMES (2) LTD.
Adult and Health Services,Head of Adults,Third Party Payments 4THIRD,474101,Purchase of Care,04/09/2018,3483649-2501920,"2,371.44",COUNTRYWIDE CARE HOMES (2) LTD.
Adult and Health Services,Head of Adults,Third Party Payments 4THIRD,474101,Purchase of Care,04/09/2018,3483649-2501922,"1,185.72",COUNTRYWIDE CARE HOMES (2) LTD.
Adult and Health Services,Head of Adults,Third Party Payments 4THIRD,474101,Purchase of Care,04/09/2018,3483649-2501924,"2,371.44",COUNTRYWIDE CARE HOMES (2) LTD.
Adult and Health Services,Head of Adults,Third Party Payments 4THIRD,474101,Purchase of Care,04/09/2018,3483649-2501927,"2,371.44",COUNTRYWIDE CARE HOMES (2) LTD.
Adult and Health Services,Head of Adults,Third Party Payments 4THIRD,474101,Purchase of Care,04/09/2018,3483650-2503436,"1,815.12",COUNTRYWIDE CARE HOMES (2) LTD.
Adult and Health Services,Head of Adults,Third Party Payments 4THIRD,474101,Purchase of Care,04/09/2018,3483652-2502369,"1,185.72",COUNTRYWIDE CARE HOMES (2) LTD.
Adult and Health Services,Head of Adults,Third Party Payments 4THIRD,474101,Purchase of Care,04/09/2018,3483652-2502374,"2,371.44",COUNTRYWIDE CARE HOMES (2) LTD.
Adult and Health Services,Head of Adults,Third Party Payments 4THIRD,474101,Purchase of Care,04/09/2018,3483652-2502377,"1,185.72",COUNTRYWIDE CARE HOMES (2) LTD.
Adult and Health Services,Head of Adults,Third Party Payments 4THIRD,474101,Purchase of Care,04/09/2018,3483652-2502381,"2,156.96",COUNTRYWIDE CARE HOMES (2) LTD.
Adult and Health Services,Head of Adults,Third Party Payments 4THIRD,474101,Purchase of Care,04/09/2018,3483652-2502385,"2,371.44",COUNTRYWIDE CARE HOMES (2) LTD.
Adult and Health Services,Head of Adults,Third Party Payments 4THIRD,474101,Purchase of Care,04/09/2018,3483652-2502387,"2,371.44",COUNTRYWIDE CARE HOMES (2) LTD.
Adult and Health Services,Head of Adults,Third Party Payments 4THIRD,474101,Purchase of Care,04/09/2018,3483652-2502389,"2,371.44",COUNTRYWIDE CARE HOMES (2) LTD.
Adult and Health Services,Head of Adults,Third Party Payments 4THIRD,474101,Purchase of Care,04/09/2018,3483652-2502392,"1,185.72",COUNTRYWIDE CARE HOMES (2) LTD.
Adult and Health Services,Head of Adults,Third Party Payments 4THIRD,474101,Purchase of Care,04/09/2018,3483652-2502395,"2,371.44",COUNTRYWIDE CARE HOMES (2) LTD.
Adult and Health Services,Head of Adults,Third Party Payments 4THIRD,474101,Purchase of Care,04/09/2018,3483652-2502397,"2,371.44",COUNTRYWIDE CARE HOMES (2) LTD.
Adult and Health Services,Head of Adults,Third Party Payments 4THIRD,474101,Purchase of Care,04/09/2018,3483652-2502401,"1,185.72",COUNTRYWIDE CARE HOMES (2) LTD.
Adult and Health Services,Head of Adults,Third Party Payments 4THIRD,474101,Purchase of Care,04/09/2018,3483652-2502402,621.00,COUNTRYWIDE CARE HOMES (2) LTD.
Adult and Health Services,Head of Adults,Third Party Payments 4THIRD,474101,Purchase of Care,04/09/2018,3483652-2502405,"2,371.44",COUNTRYWIDE CARE HOMES (2) LTD.
Adult and Health Services,Head of Adults,Third Party Payments 4THIRD,474101,Purchase of Care,04/09/2018,3483652-2505864,551.84,COUNTRYWIDE CARE HOMES (2) LTD.
Adult and Health Services,Head of Adults,Third Party Payments 4THIRD,470101,Purchase of Care,04/09/2018,3483648-2504709,"1,542.21",COUNTRYWIDE CARE HOMES (2) LTD.
Adult and Health Services,Head of Adults,Third Party Payments 4THIRD,470101,Purchase of Care,04/09/2018,3483648-2504710,"2,399.00",COUNTRYWIDE CARE HOMES (2) LTD.
Adult and Health Services,Head of Adults,Third Party Payments 4THIRD,470101,Purchase of Care,04/09/2018,3483648-2504711,"2,399.00",COUNTRYWIDE CARE HOMES (2) LTD.
Adult and Health Services,Head of Adults,Third Party Payments 4THIRD,470101,Purchase of Care,04/09/2018,3483648-2504713,"2,279.00",COUNTRYWIDE CARE HOMES (2) LTD.
Adult and Health Services,Head of Adults,Third Party Payments 4THIRD,470101,Purchase of Care,04/09/2018,3483648-2504714,"2,399.00",COUNTRYWIDE CARE HOMES (2) LTD.
Adult and Health Services,Head of Adults,Third Party Payments 4THIRD,470101,Purchase of Care,04/09/2018,3483648-2504716,"2,399.00",COUNTRYWIDE CARE HOMES (2) LTD.
Adult and Health Services,Head of Adults,Third Party Payments 4THIRD,470101,Purchase of Care,04/09/2018,3483648-2504717,"2,399.00",COUNTRYWIDE CARE HOMES (2) LTD.
Adult and Health Services,Head of Adults,Third Party Payments 4THIRD,470101,Purchase of Care,04/09/2018,3483648-2504721,"2,399.00",COUNTRYWIDE CARE HOMES (2) LTD.
Adult and Health Services,Head of Adults,Third Party Payments 4THIRD,470101,Purchase of Care,04/09/2018,3483648-2504722,"2,379.00",COUNTRYWIDE CARE HOMES (2) LTD.
Adult and Health Services,Head of Adults,Third Party Payments 4THIRD,470101,Purchase of Care,04/09/2018,3483648-2504723,"2,399.00",COUNTRYWIDE CARE HOMES (2) LTD.
Adult and Health Services,Head of Adults,Third Party Payments 4THIRD,470101,Purchase of Care,04/09/2018,3483648-2504727,"2,579.00",COUNTRYWIDE CARE HOMES (2) LTD.
Adult and Health Services,Head of Adults,Third Party Payments 4THIRD,470101,Purchase of Care,04/09/2018,3483648-2504734,"1,139.52",COUNTRYWIDE CARE HOMES (2) LTD.
Adult and Health Services,Head of Adults,Third Party Payments 4THIRD,470101,Purchase of Care,04/09/2018,3483648-2504735,"2,279.00",COUNTRYWIDE CARE HOMES (2) LTD.
Adult and Health Services,Head of Adults,Third Party Payments 4THIRD,470101,Purchase of Care,04/09/2018,3483648-2504736,"2,379.00",COUNTRYWIDE CARE HOMES (2) LTD.
Adult and Health Services,Head of Adults,Third Party Payments 4THIRD,470101,Purchase of Care,04/09/2018,3483648-2504737,"2,399.00",COUNTRYWIDE CARE HOMES (2) LTD.
Adult and Health Services,Head of Adults,Third Party Payments 4THIRD,470101,Purchase of Care,04/09/2018,3483648-2504743,"2,279.00",COUNTRYWIDE CARE HOMES (2) LTD.
Adult and Health Services,Head of Adults,Third Party Payments 4THIRD,470101,Purchase of Care,04/09/2018,3483648-2504744,651.14,COUNTRYWIDE CARE HOMES (2) LTD.
Adult and Health Services,Head of Adults,Third Party Payments 4THIRD,470101,Purchase of Care,04/09/2018,3483648-2504745,"2,279.00",COUNTRYWIDE CARE HOMES (2) LTD.
Adult and Health Services,Head of Adults,Third Party Payments 4THIRD,470101,Purchase of Care,04/09/2018,3483648-2504746,"2,339.00",COUNTRYWIDE CARE HOMES (2) LTD.
Adult and Health Services,Head of Adults,Third Party Payments 4THIRD,470101,Purchase of Care,04/09/2018,3483648-2504748,"2,339.00",COUNTRYWIDE CARE HOMES (2) LTD.
Adult and Health Services,Head of Adults,Third Party Payments 4THIRD,470101,Purchase of Care,04/09/2018,3483648-2504749,"2,339.00",COUNTRYWIDE CARE HOMES (2) LTD.
Adult and Health Services,Head of Adults,Third Party Payments 4THIRD,470101,Purchase of Care,04/09/2018,3483648-2504750,"2,319.00",COUNTRYWIDE CARE HOMES (2) LTD.
Adult and Health Services,Head of Adults,Third Party Payments 4THIRD,470101,Purchase of Care,04/09/2018,3483648-2505595,813.92,COUNTRYWIDE CARE HOMES (2) LTD.
Adult and Health Services,Head of Adults,Third Party Payments 4THIRD,470101,Purchase of Care,04/09/2018,3483648-2505969,"6,267.58",COUNTRYWIDE CARE HOMES (2) LTD.
Adult and Health Services,Head of Adults,Third Party Payments 4THIRD,470101,Purchase of Care,04/09/2018,3483649-2501926,"2,350.84",COUNTRYWIDE CARE HOMES (2) LTD.
Adult and Health Services,Head of Adults,Third Party Payments 4THIRD,470101,Purchase of Care,04/09/2018,3483649-2501929,"2,350.84",COUNTRYWIDE CARE HOMES (2) LTD.
Adult and Health Services,Head of Adults,Third Party Payments 4THIRD,470101,Purchase of Care,04/09/2018,3483649-2501930,"2,350.84",COUNTRYWIDE CARE HOMES (2) LTD.
Adult and Health Services,Head of Adults,Third Party Payments 4THIRD,470101,Purchase of Care,04/09/2018,3483649-2501931,"2,350.84",COUNTRYWIDE CARE HOMES (2) LTD.
Adult and Health Services,Head of Adults,Third Party Payments 4THIRD,470101,Purchase of Care,04/09/2018,3483651-2503661,"2,279.00",COUNTRYWIDE CARE HOMES (2) LTD.
Adult and Health Services,Head of Adults,Third Party Payments 4THIRD,470101,Purchase of Care,04/09/2018,3483651-2503662,"2,279.00",COUNTRYWIDE CARE HOMES (2) LTD.
Adult and Health Services,Head of Adults,Third Party Payments 4THIRD,470101,Purchase of Care,04/09/2018,3483651-2503666,"2,279.00",COUNTRYWIDE CARE HOMES (2) LTD.
Adult and Health Services,Head of Adults,Third Party Payments 4THIRD,470101,Purchase of Care,04/09/2018,3483651-2503667,"2,279.00",COUNTRYWIDE CARE HOMES (2) LTD.
Adult and Health Services,Head of Adults,Third Party Payments 4THIRD,470101,Purchase of Care,04/09/2018,3483651-2503671,"2,279.00",COUNTRYWIDE CARE HOMES (2) LTD.
Adult and Health Services,Head of Adults,Third Party Payments 4THIRD,470101,Purchase of Care,04/09/2018,3483651-2503672,"2,279.00",COUNTRYWIDE CARE HOMES (2) LTD.
Adult and Health Services,Head of Adults,Third Party Payments 4THIRD,470101,Purchase of Care,04/09/2018,3483651-2503674,"2,279.00",COUNTRYWIDE CARE HOMES (2) LTD.
Adult and Health Services,Head of Adults,Third Party Payments 4THIRD,470101,Purchase of Care,04/09/2018,3483651-2503677,"2,279.00",COUNTRYWIDE CARE HOMES (2) LTD.
Adult and Health Services,Head of Adults,Third Party Payments 4THIRD,470101,Purchase of Care,04/09/2018,3483651-2503678,"2,279.00",COUNTRYWIDE CARE HOMES (2) LTD.
Adult and Health Services,Head of Adults,Third Party Payments 4THIRD,470101,Purchase of Care,04/09/2018,3483651-2503680,"2,279.00",COUNTRYWIDE CARE HOMES (2) LTD.
Adult and Health Services,Head of Adults,Third Party Payments 4THIRD,470101,Purchase of Care,04/09/2018,3483651-2503682,"2,279.00",COUNTRYWIDE CARE HOMES (2) LTD.
Adult and Health Services,Head of Adults,Third Party Payments 4THIRD,470101,Purchase of Care,04/09/2018,3483651-2503683,"2,279.00",COUNTRYWIDE CARE HOMES (2) LTD.
Adult and Health Services,Head of Adults,Third Party Payments 4THIRD,470101,Purchase of Care,04/09/2018,3483651-2503685,"2,279.00",COUNTRYWIDE CARE HOMES (2) LTD.
Adult and Health Services,Head of Adults,Third Party Payments 4THIRD,470101,Purchase of Care,04/09/2018,3483652-2502367,"2,279.00",COUNTRYWIDE CARE HOMES (2) LTD.
Adult and Health Services,Head of Adults,Third Party Payments 4THIRD,470101,Purchase of Care,04/09/2018,3483652-2502379,"2,279.00",COUNTRYWIDE CARE HOMES (2) LTD.
Adult and Health Services,Head of Adults,Third Party Payments 4THIRD,470101,Purchase of Care,04/09/2018,3483652-2502383,"2,279.00",COUNTRYWIDE CARE HOMES (2) LTD.
Adult and Health Services,Head of Adults,Third Party Payments 4THIRD,470101,Purchase of Care,04/09/2018,3483652-2502384,"2,279.00",COUNTRYWIDE CARE HOMES (2) LTD.
Adult and Health Services,Head of Adults,Third Party Payments 4THIRD,470101,Purchase of Care,04/09/2018,3483652-2502404,"1,139.48",COUNTRYWIDE CARE HOMES (2) LTD.
Adult and Health Services,Head of Adults,Third Party Payments 4THIRD,470101,Purchase of Care,04/09/2018,3483652-2502407,"2,279.00",COUNTRYWIDE CARE HOMES (2) LTD.
Adult and Health Services,Head of Adults,Third Party Payments 4THIRD,470101,Purchase of Care,04/09/2018,3483652-2502408,"2,279.00",COUNTRYWIDE CARE HOMES (2) LTD.
Adult and Health Services,Head of Adults,Third Party Payments 4THIRD,470101,Purchase of Care,04/09/2018,3483652-2505903,"1,460.38",COUNTRYWIDE CARE HOMES (2) LTD.
Adult and Health Services,Head of Adults,Third Party Payments 4THIRD,471101,Purchase of Care,04/09/2018,3483648-2504708,"2,363.08",COUNTRYWIDE CARE HOMES (2) LTD.
Adult and Health Services,Head of Adults,Third Party Payments 4THIRD,471101,Purchase of Care,04/09/2018,3483648-2504712,"1,241.54",COUNTRYWIDE CARE HOMES (2) LTD.
Adult and Health Services,Head of Adults,Third Party Payments 4THIRD,471101,Purchase of Care,04/09/2018,3483648-2504715,"2,483.08",COUNTRYWIDE CARE HOMES (2) LTD.
Adult and Health Services,Head of Adults,Third Party Payments 4THIRD,471101,Purchase of Care,04/09/2018,3483648-2504719,"81,950.92",COUNTRYWIDE CARE HOMES (2) LTD.
Adult and Health Services,Head of Adults,Third Party Payments 4THIRD,471101,Purchase of Care,04/09/2018,3483648-2504720,"2,363.08",COUNTRYWIDE CARE HOMES (2) LTD.
Adult and Health Services,Head of Adults,Third Party Payments 4THIRD,471101,Purchase of Care,04/09/2018,3483648-2504724,"2,363.08",COUNTRYWIDE CARE HOMES (2) LTD.
Adult and Health Services,Head of Adults,Third Party Payments 4THIRD,471101,Purchase of Care,04/09/2018,3483648-2504725,"2,483.08",COUNTRYWIDE CARE HOMES (2) LTD.
Adult and Health Services,Head of Adults,Third Party Payments 4THIRD,471101,Purchase of Care,04/09/2018,3483648-2504726,"2,463.08",COUNTRYWIDE CARE HOMES (2) LTD.
Adult and Health Services,Head of Adults,Third Party Payments 4THIRD,471101,Purchase of Care,04/09/2018,3483648-2504728,"2,483.08",COUNTRYWIDE CARE HOMES (2) LTD.
Adult and Health Services,Head of Adults,Third Party Payments 4THIRD,471101,Purchase of Care,04/09/2018,3483648-2504729,"2,483.08",COUNTRYWIDE CARE HOMES (2) LTD.
Adult and Health Services,Head of Adults,Third Party Payments 4THIRD,471101,Purchase of Care,04/09/2018,3483648-2504730,"1,181.56",COUNTRYWIDE CARE HOMES (2) LTD.
Adult and Health Services,Head of Adults,Third Party Payments 4THIRD,471101,Purchase of Care,04/09/2018,3483648-2504731,"2,363.08",COUNTRYWIDE CARE HOMES (2) LTD.
Adult and Health Services,Head of Adults,Third Party Payments 4THIRD,471101,Purchase of Care,04/09/2018,3483648-2504732,"2,363.08",COUNTRYWIDE CARE HOMES (2) LTD.
Adult and Health Services,Head of Adults,Third Party Payments 4THIRD,471101,Purchase of Care,04/09/2018,3483648-2504733,"2,363.08",COUNTRYWIDE CARE HOMES (2) LTD.
Adult and Health Services,Head of Adults,Third Party Payments 4THIRD,471101,Purchase of Care,04/09/2018,3483648-2504738,"2,363.08",COUNTRYWIDE CARE HOMES (2) LTD.
Adult and Health Services,Head of Adults,Third Party Payments 4THIRD,471101,Purchase of Care,04/09/2018,3483648-2504739,"2,363.08",COUNTRYWIDE CARE HOMES (2) LTD.
Adult and Health Services,Head of Adults,Third Party Payments 4THIRD,471101,Purchase of Care,04/09/2018,3483648-2504740,"2,363.08",COUNTRYWIDE CARE HOMES (2) LTD.
Adult and Health Services,Head of Adults,Third Party Payments 4THIRD,471101,Purchase of Care,04/09/2018,3483648-2504741,"2,363.08",COUNTRYWIDE CARE HOMES (2) LTD.
Adult and Health Services,Head of Adults,Third Party Payments 4THIRD,471101,Purchase of Care,04/09/2018,3483648-2504742,"2,363.08",COUNTRYWIDE CARE HOMES (2) LTD.
Adult and Health Services,Head of Adults,Third Party Payments 4THIRD,471101,Purchase of Care,04/09/2018,3483648-2504747,"2,363.08",COUNTRYWIDE CARE HOMES (2) LTD.
Adult and Health Services,Head of Adults,Third Party Payments 4THIRD,471101,Purchase of Care,04/09/2018,3483649-2501912,"1,181.52",COUNTRYWIDE CARE HOMES (2) LTD.
Adult and Health Services,Head of Adults,Third Party Payments 4THIRD,471101,Purchase of Care,04/09/2018,3483649-2501914,"2,363.08",COUNTRYWIDE CARE HOMES (2) LTD.
Adult and Health Services,Head of Adults,Third Party Payments 4THIRD,471101,Purchase of Care,04/09/2018,3483649-2501932,"2,363.08",COUNTRYWIDE CARE HOMES (2) LTD.
Adult and Health Services,Head of Adults,Third Party Payments 4THIRD,471101,Purchase of Care,04/09/2018,3483651-2503663,"2,363.08",COUNTRYWIDE CARE HOMES (2) LTD.
Adult and Health Services,Head of Adults,Third Party Payments 4THIRD,471101,Purchase of Care,04/09/2018,3483651-2503664,"2,363.08",COUNTRYWIDE CARE HOMES (2) LTD.
Adult and Health Services,Head of Adults,Third Party Payments 4THIRD,471101,Purchase of Care,04/09/2018,3483651-2503665,"2,363.08",COUNTRYWIDE CARE HOMES (2) LTD.
Adult and Health Services,Head of Adults,Third Party Payments 4THIRD,471101,Purchase of Care,04/09/2018,3483651-2503668,"2,363.08",COUNTRYWIDE CARE HOMES (2) LTD.
Adult and Health Services,Head of Adults,Third Party Payments 4THIRD,471101,Purchase of Care,04/09/2018,3483651-2503669,"2,363.08",COUNTRYWIDE CARE HOMES (2) LTD.
Adult and Health Services,Head of Adults,Third Party Payments 4THIRD,471101,Purchase of Care,04/09/2018,3483651-2503670,"2,363.08",COUNTRYWIDE CARE HOMES (2) LTD.
Adult and Health Services,Head of Adults,Third Party Payments 4THIRD,471101,Purchase of Care,04/09/2018,3483651-2503673,"2,363.08",COUNTRYWIDE CARE HOMES (2) LTD.
Adult and Health Services,Head of Adults,Third Party Payments 4THIRD,471101,Purchase of Care,04/09/2018,3483651-2503675,"2,563.08",COUNTRYWIDE CARE HOMES (2) LTD.
Adult and Health Services,Head of Adults,Third Party Payments 4THIRD,471101,Purchase of Care,04/09/2018,3483651-2503676,"2,463.08",COUNTRYWIDE CARE HOMES (2) LTD.
Adult and Health Services,Head of Adults,Third Party Payments 4THIRD,471101,Purchase of Care,04/09/2018,3483651-2503681,"2,363.08",COUNTRYWIDE CARE HOMES (2) LTD.
Adult and Health Services,Head of Adults,Third Party Payments 4THIRD,471101,Purchase of Care,04/09/2018,3483651-2503684,"2,363.08",COUNTRYWIDE CARE HOMES (2) LTD.
Adult and Health Services,Head of Adults,Third Party Payments 4THIRD,471101,Purchase of Care,04/09/2018,3483652-2502368,"1,181.52",COUNTRYWIDE CARE HOMES (2) LTD.
Adult and Health Services,Head of Adults,Third Party Payments 4THIRD,471101,Purchase of Care,04/09/2018,3483652-2502371,"2,483.08",COUNTRYWIDE CARE HOMES (2) LTD.
Adult and Health Services,Head of Adults,Third Party Payments 4THIRD,471101,Purchase of Care,04/09/2018,3483652-2502376,"2,363.08",COUNTRYWIDE CARE HOMES (2) LTD.
Adult and Health Services,Head of Adults,Third Party Payments 4THIRD,471101,Purchase of Care,04/09/2018,3483652-2502394,"2,363.08",COUNTRYWIDE CARE HOMES (2) LTD.
Adult and Health Services,Head of Adults,Third Party Payments 4THIRD,474101,Purchase of Care,04/09/2018,3483653-2502948,"1,185.72",CRAIGARRAN LTD.
Adult and Health Services,Head of Adults,Third Party Payments 4THIRD,474101,Purchase of Care,04/09/2018,3483653-2502951,"1,185.72",CRAIGARRAN LTD.
Adult and Health Services,Head of Adults,Third Party Payments 4THIRD,474101,Purchase of Care,04/09/2018,3483653-2502952,"2,371.44",CRAIGARRAN LTD.
Adult and Health Services,Head of Adults,Third Party Payments 4THIRD,474101,Purchase of Care,04/09/2018,3483653-2502955,"1,185.72",CRAIGARRAN LTD.
Adult and Health Services,Head of Adults,Third Party Payments 4THIRD,474101,Purchase of Care,04/09/2018,3483653-2502957,"2,371.44",CRAIGARRAN LTD.
Adult and Health Services,Head of Adults,Third Party Payments 4THIRD,474101,Purchase of Care,04/09/2018,3483653-2502959,"2,371.44",CRAIGARRAN LTD.
Adult and Health Services,Head of Adults,Third Party Payments 4THIRD,474101,Purchase of Care,04/09/2018,3483653-2502961,"2,371.44",CRAIGARRAN LTD.
Adult and Health Services,Head of Adults,Third Party Payments 4THIRD,474101,Purchase of Care,04/09/2018,3483653-2502963,"2,371.44",CRAIGARRAN LTD.
Adult and Health Services,Head of Adults,Third Party Payments 4THIRD,474101,Purchase of Care,04/09/2018,3483653-2502971,"2,371.44",CRAIGARRAN LTD.
Adult and Health Services,Head of Adults,Third Party Payments 4THIRD,470101,Purchase of Care,04/09/2018,3483653-2502941,"2,279.00",CRAIGARRAN LTD.
Adult and Health Services,Head of Adults,Third Party Payments 4THIRD,470101,Purchase of Care,04/09/2018,3483653-2502942,"2,279.00",CRAIGARRAN LTD.
Adult and Health Services,Head of Adults,Third Party Payments 4THIRD,470101,Purchase of Care,04/09/2018,3483653-2502943,"2,279.00",CRAIGARRAN LTD.
Adult and Health Services,Head of Adults,Third Party Payments 4THIRD,470101,Purchase of Care,04/09/2018,3483653-2502944,"1,383.67",CRAIGARRAN LTD.
Adult and Health Services,Head of Adults,Third Party Payments 4THIRD,470101,Purchase of Care,04/09/2018,3483653-2502966,651.14,CRAIGARRAN LTD.
Adult and Health Services,Head of Adults,Third Party Payments 4THIRD,470101,Purchase of Care,04/09/2018,3483653-2502967,"2,279.00",CRAIGARRAN LTD.
Adult and Health Services,Head of Adults,Third Party Payments 4THIRD,470101,Purchase of Care,04/09/2018,3483653-2502968,"2,279.00",CRAIGARRAN LTD.
Adult and Health Services,Head of Adults,Third Party Payments 4THIRD,470101,Purchase of Care,04/09/2018,3483653-2502969,"2,279.00",CRAIGARRAN LTD.
Adult and Health Services,Head of Adults,Third Party Payments 4THIRD,470101,Purchase of Care,04/09/2018,3483653-2502973,"2,279.00",CRAIGARRAN LTD.
Adult and Health Services,Head of Adults,Third Party Payments 4THIRD,471101,Purchase of Care,04/09/2018,3483653-2502946,"2,363.08",CRAIGARRAN LTD.
Adult and Health Services,Head of Adults,Third Party Payments 4THIRD,471101,Purchase of Care,04/09/2018,3483653-2502947,"2,363.08",CRAIGARRAN LTD.
Adult and Health Services,Head of Adults,Third Party Payments 4THIRD,471101,Purchase of Care,04/09/2018,3483653-2502954,"1,181.56",CRAIGARRAN LTD.
Adult and Health Services,Head of Adults,Third Party Payments 4THIRD,471101,Purchase of Care,04/09/2018,3483653-2502965,"2,363.08",CRAIGARRAN LTD.
Adult and Health Services,Head of Adults,Third Party Payments 4THIRD,471101,Purchase of Care,04/09/2018,3483653-2502970,"2,363.08",CRAIGARRAN LTD.
Adult and Health Services,Head of Adults,Third Party Payments 4THIRD,474101,Purchase of Care,04/09/2018,3483654-2504422,"1,185.72",CROFT HOUSE (CARE) LTD.
Adult and Health Services,Head of Adults,Third Party Payments 4THIRD,474101,Purchase of Care,04/09/2018,3483654-2504426,"2,371.44",CROFT HOUSE (CARE) LTD.
Adult and Health Services,Head of Adults,Third Party Payments 4THIRD,474101,Purchase of Care,04/09/2018,3483654-2504432,"2,371.44",CROFT HOUSE (CARE) LTD.
Adult and Health Services,Head of Adults,Third Party Payments 4THIRD,474101,Purchase of Care,04/09/2018,3483654-2504440,"2,371.44",CROFT HOUSE (CARE) LTD.
Adult and Health Services,Head of Adults,Third Party Payments 4THIRD,474101,Purchase of Care,04/09/2018,3483654-2504442,"1,185.72",CROFT HOUSE (CARE) LTD.
Adult and Health Services,Head of Adults,Third Party Payments 4THIRD,474101,Purchase of Care,04/09/2018,3483654-2504445,"1,185.72",CROFT HOUSE (CARE) LTD.
Adult and Health Services,Head of Adults,Third Party Payments 4THIRD,474101,Purchase of Care,04/09/2018,3483654-2504448,"2,371.44",CROFT HOUSE (CARE) LTD.
Adult and Health Services,Head of Adults,Third Party Payments 4THIRD,474101,Purchase of Care,04/09/2018,3483654-2505479,"2,117.36",CROFT HOUSE (CARE) LTD.
Adult and Health Services,Head of Adults,Third Party Payments 4THIRD,470101,Purchase of Care,04/09/2018,3483654-2504425,"2,279.00",CROFT HOUSE (CARE) LTD.
Adult and Health Services,Head of Adults,Third Party Payments 4THIRD,470101,Purchase of Care,04/09/2018,3483654-2504428,"2,279.00",CROFT HOUSE (CARE) LTD.
Adult and Health Services,Head of Adults,Third Party Payments 4THIRD,470101,Purchase of Care,04/09/2018,3483654-2504430,"2,279.00",CROFT HOUSE (CARE) LTD.
Adult and Health Services,Head of Adults,Third Party Payments 4THIRD,470101,Purchase of Care,04/09/2018,3483654-2504435,"2,279.00",CROFT HOUSE (CARE) LTD.
Adult and Health Services,Head of Adults,Third Party Payments 4THIRD,470101,Purchase of Care,04/09/2018,3483654-2504437,"2,279.00",CROFT HOUSE (CARE) LTD.
Adult and Health Services,Head of Adults,Third Party Payments 4THIRD,470101,Purchase of Care,04/09/2018,3483654-2504438,"2,279.00",CROFT HOUSE (CARE) LTD.
Adult and Health Services,Head of Adults,Third Party Payments 4THIRD,470101,Purchase of Care,04/09/2018,3483654-2504439,"2,279.00",CROFT HOUSE (CARE) LTD.
Adult and Health Services,Head of Adults,Third Party Payments 4THIRD,470101,Purchase of Care,04/09/2018,3483654-2504447,"2,555.68",CROFT HOUSE (CARE) LTD.
Adult and Health Services,Head of Adults,Third Party Payments 4THIRD,471101,Purchase of Care,04/09/2018,3483654-2504431,"2,363.08",CROFT HOUSE (CARE) LTD.
Adult and Health Services,Head of Adults,Third Party Payments 4THIRD,471101,Purchase of Care,04/09/2018,3483654-2504436,"2,363.08",CROFT HOUSE (CARE) LTD.
Adult and Health Services,Head of Adults,Third Party Payments 4THIRD,471101,Purchase of Care,04/09/2018,3483654-2504444,"1,181.52",CROFT HOUSE (CARE) LTD.
Adult and Health Services,Head of Adults,Third Party Payments 4THIRD,471101,Purchase of Care,04/09/2018,3483654-2505504,"1,355.10",CROFT HOUSE (CARE) LTD.
Adult and Health Services,Head of Adults,Third Party Payments 4THIRD,474101,Purchase of Care,04/09/2018,3483655-2503832,"2,371.44",CROWN CARE VI LTD.
Adult and Health Services,Head of Adults,Third Party Payments 4THIRD,474101,Purchase of Care,04/09/2018,3483655-2503835,"1,101.02",CROWN CARE VI LTD.
Adult and Health Services,Head of Adults,Third Party Payments 4THIRD,474101,Purchase of Care,04/09/2018,3483655-2503838,"2,371.44",CROWN CARE VI LTD.
Adult and Health Services,Head of Adults,Third Party Payments 4THIRD,474101,Purchase of Care,04/09/2018,3483655-2503840,"2,371.44",CROWN CARE VI LTD.
Adult and Health Services,Head of Adults,Third Party Payments 4THIRD,474101,Purchase of Care,04/09/2018,3483655-2503849,"2,371.44",CROWN CARE VI LTD.
Adult and Health Services,Head of Adults,Third Party Payments 4THIRD,474101,Purchase of Care,04/09/2018,3483655-2503854,"2,371.44",CROWN CARE VI LTD.
Adult and Health Services,Head of Adults,Third Party Payments 4THIRD,474101,Purchase of Care,04/09/2018,3483655-2503857,"2,371.44",CROWN CARE VI LTD.
Adult and Health Services,Head of Adults,Third Party Payments 4THIRD,474101,Purchase of Care,04/09/2018,3483655-2503861,"2,371.44",CROWN CARE VI LTD.
Adult and Health Services,Head of Adults,Third Party Payments 4THIRD,474101,Purchase of Care,04/09/2018,3483655-2503864,"2,371.44",CROWN CARE VI LTD.
Adult and Health Services,Head of Adults,Third Party Payments 4THIRD,474101,Purchase of Care,04/09/2018,3483655-2503867,"2,371.44",CROWN CARE VI LTD.
Adult and Health Services,Head of Adults,Third Party Payments 4THIRD,474101,Purchase of Care,04/09/2018,3483655-2503869,"1,120.20",CROWN CARE VI LTD.
Adult and Health Services,Head of Adults,Third Party Payments 4THIRD,474101,Purchase of Care,04/09/2018,3483655-2503871,"2,371.44",CROWN CARE VI LTD.
Adult and Health Services,Head of Adults,Third Party Payments 4THIRD,474101,Purchase of Care,04/09/2018,3483655-2503875,"1,185.72",CROWN CARE VI LTD.
Adult and Health Services,Head of Adults,Third Party Payments 4THIRD,474101,Purchase of Care,04/09/2018,3483655-2503879,"2,371.44",CROWN CARE VI LTD.
Adult and Health Services,Head of Adults,Third Party Payments 4THIRD,474101,Purchase of Care,04/09/2018,3483655-2503881,"1,185.72",CROWN CARE VI LTD.
Adult and Health Services,Head of Adults,Third Party Payments 4THIRD,474101,Purchase of Care,04/09/2018,3483655-2503884,"1,173.72",CROWN CARE VI LTD.
Adult and Health Services,Head of Adults,Third Party Payments 4THIRD,474101,Purchase of Care,04/09/2018,3483655-2503890,"2,371.44",CROWN CARE VI LTD.
Adult and Health Services,Head of Adults,Third Party Payments 4THIRD,474101,Purchase of Care,04/09/2018,3483655-2503896,"1,185.72",CROWN CARE VI LTD.
Adult and Health Services,Head of Adults,Third Party Payments 4THIRD,474101,Purchase of Care,04/09/2018,3483655-2503898,"2,371.44",CROWN CARE VI LTD.
Adult and Health Services,Head of Adults,Third Party Payments 4THIRD,474101,Purchase of Care,04/09/2018,3483655-2503901,"2,371.44",CROWN CARE VI LTD.
Adult and Health Services,Head of Adults,Third Party Payments 4THIRD,474101,Purchase of Care,04/09/2018,3483655-2503904,"2,371.44",CROWN CARE VI LTD.
Adult and Health Services,Head of Adults,Third Party Payments 4THIRD,474101,Purchase of Care,04/09/2018,3483655-2503909,"2,371.44",CROWN CARE VI LTD.
Adult and Health Services,Head of Adults,Third Party Payments 4THIRD,474101,Purchase of Care,04/09/2018,3483655-2503912,"2,371.44",CROWN CARE VI LTD.
Adult and Health Services,Head of Adults,Third Party Payments 4THIRD,474101,Purchase of Care,04/09/2018,3483655-2503914,"2,371.44",CROWN CARE VI LTD.
Adult and Health Services,Head of Adults,Third Party Payments 4THIRD,474101,Purchase of Care,04/09/2018,3483655-2503917,"2,371.44",CROWN CARE VI LTD.
Adult and Health Services,Head of Adults,Third Party Payments 4THIRD,470101,Purchase of Care,04/09/2018,3483655-2503828,"2,279.00",CROWN CARE VI LTD.
Adult and Health Services,Head of Adults,Third Party Payments 4THIRD,470101,Purchase of Care,04/09/2018,3483655-2503829,"2,197.60",CROWN CARE VI LTD.
Adult and Health Services,Head of Adults,Third Party Payments 4THIRD,470101,Purchase of Care,04/09/2018,3483655-2503830,"1,546.46",CROWN CARE VI LTD.
Adult and Health Services,Head of Adults,Third Party Payments 4THIRD,470101,Purchase of Care,04/09/2018,3483655-2503837,"1,058.10",CROWN CARE VI LTD.
Adult and Health Services,Head of Adults,Third Party Payments 4THIRD,470101,Purchase of Care,04/09/2018,3483655-2503856,"2,279.00",CROWN CARE VI LTD.
Adult and Health Services,Head of Adults,Third Party Payments 4THIRD,470101,Purchase of Care,04/09/2018,3483655-2503860,"2,279.00",CROWN CARE VI LTD.
Adult and Health Services,Head of Adults,Third Party Payments 4THIRD,470101,Purchase of Care,04/09/2018,3483655-2503866,"2,279.00",CROWN CARE VI LTD.
Adult and Health Services,Head of Adults,Third Party Payments 4THIRD,470101,Purchase of Care,04/09/2018,3483655-2503887,"2,279.00",CROWN CARE VI LTD.
Adult and Health Services,Head of Adults,Third Party Payments 4THIRD,470101,Purchase of Care,04/09/2018,3483655-2503889,"2,279.00",CROWN CARE VI LTD.
Adult and Health Services,Head of Adults,Third Party Payments 4THIRD,470101,Purchase of Care,04/09/2018,3483655-2503894,"1,139.48",CROWN CARE VI LTD.
Adult and Health Services,Head of Adults,Third Party Payments 4THIRD,470101,Purchase of Care,04/09/2018,3483655-2503900,"2,279.00",CROWN CARE VI LTD.
Adult and Health Services,Head of Adults,Third Party Payments 4THIRD,470101,Purchase of Care,04/09/2018,3483655-2503903,"2,279.00",CROWN CARE VI LTD.
Adult and Health Services,Head of Adults,Third Party Payments 4THIRD,470101,Purchase of Care,04/09/2018,3483655-2503907,"2,279.00",CROWN CARE VI LTD.
Adult and Health Services,Head of Adults,Third Party Payments 4THIRD,470101,Purchase of Care,04/09/2018,3483655-2503908,"2,279.00",CROWN CARE VI LTD.
Adult and Health Services,Head of Adults,Third Party Payments 4THIRD,470101,Purchase of Care,04/09/2018,3483655-2503916,"2,279.00",CROWN CARE VI LTD.
Adult and Health Services,Head of Adults,Third Party Payments 4THIRD,471101,Purchase of Care,04/09/2018,3483655-2503831,"2,363.08",CROWN CARE VI LTD.
Adult and Health Services,Head of Adults,Third Party Payments 4THIRD,471101,Purchase of Care,04/09/2018,3483655-2503842,"2,363.08",CROWN CARE VI LTD.
Adult and Health Services,Head of Adults,Third Party Payments 4THIRD,471101,Purchase of Care,04/09/2018,3483655-2503843,"2,363.08",CROWN CARE VI LTD.
Adult and Health Services,Head of Adults,Third Party Payments 4THIRD,471101,Purchase of Care,04/09/2018,3483655-2503844,"2,363.08",CROWN CARE VI LTD.
Adult and Health Services,Head of Adults,Third Party Payments 4THIRD,471101,Purchase of Care,04/09/2018,3483655-2503845,"2,363.08",CROWN CARE VI LTD.
Adult and Health Services,Head of Adults,Third Party Payments 4THIRD,471101,Purchase of Care,04/09/2018,3483655-2503847,"1,181.52",CROWN CARE VI LTD.
Adult and Health Services,Head of Adults,Third Party Payments 4THIRD,471101,Purchase of Care,04/09/2018,3483655-2503848,"2,363.08",CROWN CARE VI LTD.
Adult and Health Services,Head of Adults,Third Party Payments 4THIRD,471101,Purchase of Care,04/09/2018,3483655-2503851,"2,363.08",CROWN CARE VI LTD.
Adult and Health Services,Head of Adults,Third Party Payments 4THIRD,471101,Purchase of Care,04/09/2018,3483655-2503852,"2,363.08",CROWN CARE VI LTD.
Adult and Health Services,Head of Adults,Third Party Payments 4THIRD,471101,Purchase of Care,04/09/2018,3483655-2503853,"2,363.08",CROWN CARE VI LTD.
Adult and Health Services,Head of Adults,Third Party Payments 4THIRD,471101,Purchase of Care,04/09/2018,3483655-2503859,"2,363.08",CROWN CARE VI LTD.
Adult and Health Services,Head of Adults,Third Party Payments 4THIRD,471101,Purchase of Care,04/09/2018,3483655-2503863,"2,363.08",CROWN CARE VI LTD.
Adult and Health Services,Head of Adults,Third Party Payments 4THIRD,471101,Purchase of Care,04/09/2018,3483655-2503873,"2,363.08",CROWN CARE VI LTD.
Adult and Health Services,Head of Adults,Third Party Payments 4THIRD,471101,Purchase of Care,04/09/2018,3483655-2503874,"2,363.08",CROWN CARE VI LTD.
Adult and Health Services,Head of Adults,Third Party Payments 4THIRD,471101,Purchase of Care,04/09/2018,3483655-2503877,"2,363.08",CROWN CARE VI LTD.
Adult and Health Services,Head of Adults,Third Party Payments 4THIRD,471101,Purchase of Care,04/09/2018,3483655-2503878,"2,363.08",CROWN CARE VI LTD.
Adult and Health Services,Head of Adults,Third Party Payments 4THIRD,471101,Purchase of Care,04/09/2018,3483655-2503883,"2,363.08",CROWN CARE VI LTD.
Adult and Health Services,Head of Adults,Third Party Payments 4THIRD,471101,Purchase of Care,04/09/2018,3483655-2503886,"1,181.52",CROWN CARE VI LTD.
Adult and Health Services,Head of Adults,Third Party Payments 4THIRD,471101,Purchase of Care,04/09/2018,3483655-2503888,"1,181.52",CROWN CARE VI LTD.
Adult and Health Services,Head of Adults,Third Party Payments 4THIRD,471101,Purchase of Care,04/09/2018,3483655-2503892,"2,363.08",CROWN CARE VI LTD.
Adult and Health Services,Head of Adults,Third Party Payments 4THIRD,471101,Purchase of Care,04/09/2018,3483655-2503906,"2,363.08",CROWN CARE VI LTD.
Adult and Health Services,Head of Adults,Third Party Payments 4THIRD,471101,Purchase of Care,04/09/2018,3483655-2505876,"1,097.14",CROWN CARE VI LTD.
Adult and Health Services,Head of Adults,Third Party Payments 4THIRD,471101,Purchase of Care,04/09/2018,3483656-2452987,"2,484.00",CUMBRIA COUNTY COUNCIL..
Adult and Health Services,Head of Adults,Third Party Payments 4THIRD,471101,Purchase of Care,04/09/2018,3483656-2474313,"2,976.00",CUMBRIA COUNTY COUNCIL..
Adult and Health Services,Head of Adults,Third Party Payments 4THIRD,471101,Purchase of Care,04/09/2018,3483656-2492096,"2,976.00",CUMBRIA COUNTY COUNCIL..
Adult and Health Services,Head of Adults,Third Party Payments 4THIRD,471101,Purchase of Care,04/09/2018,3483656-2505336,"2,976.00",CUMBRIA COUNTY COUNCIL..
Adult and Health Services,Head of Adults,Third Party Payments 4THIRD,470101,Purchase of Care,04/09/2018,3483657-2443973,"3,082.80",DEAFWAY.
Adult and Health Services,Head of Adults,Third Party Payments 4THIRD,470101,Purchase of Care,04/09/2018,3483657-2471672,"3,082.80",DEAFWAY.
Adult and Health Services,Head of Adults,Third Party Payments 4THIRD,470101,Purchase of Care,04/09/2018,3483657-2503143,"3,082.80",DEAFWAY.
Regeneration and Local Services,Direct Services,Transport,210057,Repair and Maintenance of Vehicles,04/09/2018,3483487-96361245,525.67,DENNIS EAGLE LTD T/A TERBERG MATEC (UK) LTD.
Regeneration and Local Services,Direct Services,Transport,210057,Repair and Maintenance of Vehicles,04/09/2018,3483487-96361557,829.54,DENNIS EAGLE LTD T/A TERBERG MATEC (UK) LTD.
Regeneration and Local Services,Direct Services,Transport,210057,Repair and Maintenance of Vehicles,04/09/2018,3483487-96361758,678.98,DENNIS EAGLE LTD T/A TERBERG MATEC (UK) LTD.
Resources,Legal & Democratic Services,Supplies and Services,338042,Services,04/09/2018,3483489-341142/INVTD548,550.00,DERE STREET BARRISTERS.
Adult and Health Services,Head of Adults,Third Party Payments 4THIRD,470101,Purchase of Care,04/09/2018,3483658-2501314,"2,156.88",DEVONSHIRE HOUSE CARE LTD.
Adult and Health Services,Head of Adults,Third Party Payments 4THIRD,470101,Purchase of Care,04/09/2018,3483658-2501315,"2,156.88",DEVONSHIRE HOUSE CARE LTD.
Adult and Health Services,Head of Adults,Third Party Payments 4THIRD,470101,Purchase of Care,04/09/2018,3483658-2501317,"1,302.28",DEVONSHIRE HOUSE CARE LTD.
Adult and Health Services,Head of Adults,Third Party Payments 4THIRD,470101,Purchase of Care,04/09/2018,3483658-2501318,"2,231.20",DEVONSHIRE HOUSE CARE LTD.
Adult and Health Services,Head of Adults,Third Party Payments 4THIRD,470101,Purchase of Care,04/09/2018,3483658-2501319,924.37,DEVONSHIRE HOUSE CARE LTD.
Adult and Health Services,Head of Adults,Third Party Payments 4THIRD,470101,Purchase of Care,04/09/2018,3483658-2501320,"2,156.88",DEVONSHIRE HOUSE CARE LTD.
Adult and Health Services,Head of Adults,Third Party Payments 4THIRD,470101,Purchase of Care,04/09/2018,3483658-2501321,"2,156.88",DEVONSHIRE HOUSE CARE LTD.
Adult and Health Services,Head of Adults,Third Party Payments 4THIRD,470101,Purchase of Care,04/09/2018,3483658-2501322,"2,231.20",DEVONSHIRE HOUSE CARE LTD.
Adult and Health Services,Head of Adults,Third Party Payments 4THIRD,470101,Purchase of Care,04/09/2018,3483658-2501323,"1,490.00",DEVONSHIRE HOUSE CARE LTD.
Adult and Health Services,Head of Adults,Third Party Payments 4THIRD,470101,Purchase of Care,04/09/2018,3483658-2501324,"2,231.20",DEVONSHIRE HOUSE CARE LTD.
Adult and Health Services,Head of Adults,Third Party Payments 4THIRD,470101,Purchase of Care,04/09/2018,3483658-2501325,"2,156.88",DEVONSHIRE HOUSE CARE LTD.
Adult and Health Services,Head of Adults,Third Party Payments 4THIRD,470101,Purchase of Care,04/09/2018,3483658-2501326,"1,599.00",DEVONSHIRE HOUSE CARE LTD.
Adult and Health Services,Head of Adults,Third Party Payments 4THIRD,470101,Purchase of Care,04/09/2018,3483658-2501327,"2,156.88",DEVONSHIRE HOUSE CARE LTD.
Adult and Health Services,Head of Adults,Third Party Payments 4THIRD,470101,Purchase of Care,04/09/2018,3483658-2501328,"2,156.88",DEVONSHIRE HOUSE CARE LTD.
Adult and Health Services,Head of Adults,Third Party Payments 4THIRD,470101,Purchase of Care,04/09/2018,3483658-2501329,"2,156.88",DEVONSHIRE HOUSE CARE LTD.
Adult and Health Services,Head of Adults,Third Party Payments 4THIRD,474101,Purchase of Care,04/09/2018,3483659-2505150,"2,371.44",DIPTON CARE HOME LTD.
Adult and Health Services,Head of Adults,Third Party Payments 4THIRD,474101,Purchase of Care,04/09/2018,3483659-2505152,"1,185.72",DIPTON CARE HOME LTD.
Adult and Health Services,Head of Adults,Third Party Payments 4THIRD,474101,Purchase of Care,04/09/2018,3483659-2505156,"2,371.44",DIPTON CARE HOME LTD.
Adult and Health Services,Head of Adults,Third Party Payments 4THIRD,474101,Purchase of Care,04/09/2018,3483659-2505167,"2,371.44",DIPTON CARE HOME LTD.
Adult and Health Services,Head of Adults,Third Party Payments 4THIRD,474101,Purchase of Care,04/09/2018,3483659-2505775,"2,117.35",DIPTON CARE HOME LTD.
Adult and Health Services,Head of Adults,Third Party Payments 4THIRD,470101,Purchase of Care,04/09/2018,3483659-2505145,"2,279.00",DIPTON CARE HOME LTD.
Adult and Health Services,Head of Adults,Third Party Payments 4THIRD,470101,Purchase of Care,04/09/2018,3483659-2505149,"2,279.00",DIPTON CARE HOME LTD.
Adult and Health Services,Head of Adults,Third Party Payments 4THIRD,470101,Purchase of Care,04/09/2018,3483659-2505154,"2,279.00",DIPTON CARE HOME LTD.
Adult and Health Services,Head of Adults,Third Party Payments 4THIRD,470101,Purchase of Care,04/09/2018,3483659-2505158,813.92,DIPTON CARE HOME LTD.
Adult and Health Services,Head of Adults,Third Party Payments 4THIRD,470101,Purchase of Care,04/09/2018,3483659-2505164,"2,279.00",DIPTON CARE HOME LTD.
Adult and Health Services,Head of Adults,Third Party Payments 4THIRD,470101,Purchase of Care,04/09/2018,3483659-2505169,"2,279.00",DIPTON CARE HOME LTD.
Adult and Health Services,Head of Adults,Third Party Payments 4THIRD,470101,Purchase of Care,04/09/2018,3483659-2505174,"2,279.00",DIPTON CARE HOME LTD.
Adult and Health Services,Head of Adults,Third Party Payments 4THIRD,470101,Purchase of Care,04/09/2018,3483659-2505178,"2,279.00",DIPTON CARE HOME LTD.
Adult and Health Services,Head of Adults,Third Party Payments 4THIRD,470101,Purchase of Care,04/09/2018,3483659-2505181,"2,279.00",DIPTON CARE HOME LTD.
Adult and Health Services,Head of Adults,Third Party Payments 4THIRD,470101,Purchase of Care,04/09/2018,3483659-2505182,"2,279.00",DIPTON CARE HOME LTD.
Adult and Health Services,Head of Adults,Third Party Payments 4THIRD,470101,Purchase of Care,04/09/2018,3483659-2505589,"1,220.89",DIPTON CARE HOME LTD.
Adult and Health Services,Head of Adults,Third Party Payments 4THIRD,470101,Purchase of Care,04/09/2018,3483659-2505830,"1,790.64",DIPTON CARE HOME LTD.
Adult and Health Services,Head of Adults,Third Party Payments 4THIRD,470101,Purchase of Care,04/09/2018,3483659-2505843,"2,116.21",DIPTON CARE HOME LTD.
Adult and Health Services,Head of Adults,Third Party Payments 4THIRD,471101,Purchase of Care,04/09/2018,3483659-2505155,"1,687.91",DIPTON CARE HOME LTD.
Adult and Health Services,Head of Adults,Third Party Payments 4THIRD,471101,Purchase of Care,04/09/2018,3483659-2505159,"2,363.08",DIPTON CARE HOME LTD.
Adult and Health Services,Head of Adults,Third Party Payments 4THIRD,471101,Purchase of Care,04/09/2018,3483659-2505160,"2,363.08",DIPTON CARE HOME LTD.
Adult and Health Services,Head of Adults,Third Party Payments 4THIRD,471101,Purchase of Care,04/09/2018,3483659-2505161,675.16,DIPTON CARE HOME LTD.
Adult and Health Services,Head of Adults,Third Party Payments 4THIRD,471101,Purchase of Care,04/09/2018,3483659-2505162,"2,363.08",DIPTON CARE HOME LTD.
Adult and Health Services,Head of Adults,Third Party Payments 4THIRD,471101,Purchase of Care,04/09/2018,3483659-2505163,"2,363.08",DIPTON CARE HOME LTD.
Adult and Health Services,Head of Adults,Third Party Payments 4THIRD,471101,Purchase of Care,04/09/2018,3483659-2505165,"2,363.08",DIPTON CARE HOME LTD.
Adult and Health Services,Head of Adults,Third Party Payments 4THIRD,471101,Purchase of Care,04/09/2018,3483659-2505170,"2,363.08",DIPTON CARE HOME LTD.
Adult and Health Services,Head of Adults,Third Party Payments 4THIRD,471101,Purchase of Care,04/09/2018,3483659-2505171,"2,363.08",DIPTON CARE HOME LTD.
Adult and Health Services,Head of Adults,Third Party Payments 4THIRD,471101,Purchase of Care,04/09/2018,3483659-2505172,"2,363.08",DIPTON CARE HOME LTD.
Adult and Health Services,Head of Adults,Third Party Payments 4THIRD,471101,Purchase of Care,04/09/2018,3483659-2505173,"2,363.08",DIPTON CARE HOME LTD.
Adult and Health Services,Head of Adults,Third Party Payments 4THIRD,471101,Purchase of Care,04/09/2018,3483659-2505175,"2,363.08",DIPTON CARE HOME LTD.
Adult and Health Services,Head of Adults,Third Party Payments 4THIRD,471101,Purchase of Care,04/09/2018,3483659-2505176,"2,363.08",DIPTON CARE HOME LTD.
Adult and Health Services,Head of Adults,Third Party Payments 4THIRD,471101,Purchase of Care,04/09/2018,3483659-2505177,"2,363.08",DIPTON CARE HOME LTD.
Adult and Health Services,Head of Adults,Third Party Payments 4THIRD,471101,Purchase of Care,04/09/2018,3483659-2505179,"2,363.08",DIPTON CARE HOME LTD.
Regeneration and Local Services,Direct Services,Third Party Payments 4THIRD,430101,Rendered by Private Contractors,04/09/2018,3483490-IV1026369,896.26,DIRECT TYRE MANAGEMENT LTD (DTM).
Adult and Health Services,Head of Adults,Third Party Payments 4THIRD,470101,Purchase of Care,04/09/2018,3483660-2504011,"1,378.08",DOVE CARE LTD.
Regeneration and Local Services,Spatial Policy Planning Assets & Environment,Supplies and Services,384199,Miscellaneous Expenses,04/09/2018,3483491-12THAUGUST2018,"10,313.75",DR HEATHER SUGDEN T/A ECOTEKNICA UK LTD.
Adult and Health Services,Head of Adults,Third Party Payments 4THIRD,474101,Purchase of Care,04/09/2018,3483661-2505335,"9,085.44",DUNLUCE HOUSE T/A BOHILL BUNGALOWS.
Adult and Health Services,Head of Adults,Third Party Payments 4THIRD,470101,Purchase of Care,04/09/2018,3483662-2501841,"2,156.88",DURHAM AGED MINEWORKERS HOMES ASSOCIATION.
Adult and Health Services,Head of Adults,Third Party Payments 4THIRD,470101,Purchase of Care,04/09/2018,3483662-2501844,"2,156.88",DURHAM AGED MINEWORKERS HOMES ASSOCIATION.
Adult and Health Services,Head of Adults,Third Party Payments 4THIRD,470101,Purchase of Care,04/09/2018,3483662-2501845,"2,156.88",DURHAM AGED MINEWORKERS HOMES ASSOCIATION.
Adult and Health Services,Head of Adults,Third Party Payments 4THIRD,470101,Purchase of Care,04/09/2018,3483662-2501846,"2,156.88",DURHAM AGED MINEWORKERS HOMES ASSOCIATION.
Adult and Health Services,Head of Adults,Third Party Payments 4THIRD,470101,Purchase of Care,04/09/2018,3483662-2501849,"2,156.88",DURHAM AGED MINEWORKERS HOMES ASSOCIATION.
Adult and Health Services,Head of Adults,Third Party Payments 4THIRD,470101,Purchase of Care,04/09/2018,3483662-2501853,"2,156.88",DURHAM AGED MINEWORKERS HOMES ASSOCIATION.
Adult and Health Services,Head of Adults,Third Party Payments 4THIRD,470101,Purchase of Care,04/09/2018,3483662-2501855,"2,156.88",DURHAM AGED MINEWORKERS HOMES ASSOCIATION.
Adult and Health Services,Head of Adults,Third Party Payments 4THIRD,470101,Purchase of Care,04/09/2018,3483662-2501856,"2,156.88",DURHAM AGED MINEWORKERS HOMES ASSOCIATION.
Adult and Health Services,Head of Adults,Third Party Payments 4THIRD,470101,Purchase of Care,04/09/2018,3483662-2501857,"2,156.88",DURHAM AGED MINEWORKERS HOMES ASSOCIATION.
Adult and Health Services,Head of Adults,Third Party Payments 4THIRD,470101,Purchase of Care,04/09/2018,3483662-2501858,"2,156.88",DURHAM AGED MINEWORKERS HOMES ASSOCIATION.
Adult and Health Services,Head of Adults,Third Party Payments 4THIRD,470101,Purchase of Care,04/09/2018,3483662-2505800,"2,156.88",DURHAM AGED MINEWORKERS HOMES ASSOCIATION.
Adult and Health Services,Head of Adults,Third Party Payments 4THIRD,471101,Purchase of Care,04/09/2018,3483662-2501840,"2,242.24",DURHAM AGED MINEWORKERS HOMES ASSOCIATION.
Adult and Health Services,Head of Adults,Third Party Payments 4THIRD,471101,Purchase of Care,04/09/2018,3483662-2501842,"2,242.24",DURHAM AGED MINEWORKERS HOMES ASSOCIATION.
Adult and Health Services,Head of Adults,Third Party Payments 4THIRD,471101,Purchase of Care,04/09/2018,3483662-2501850,"2,242.24",DURHAM AGED MINEWORKERS HOMES ASSOCIATION.
Adult and Health Services,Head of Adults,Third Party Payments 4THIRD,471101,Purchase of Care,04/09/2018,3483662-2501851,"2,242.24",DURHAM AGED MINEWORKERS HOMES ASSOCIATION.
Adult and Health Services,Head of Adults,Third Party Payments 4THIRD,471101,Purchase of Care,04/09/2018,3483662-2501852,"2,242.24",DURHAM AGED MINEWORKERS HOMES ASSOCIATION.
Adult and Health Services,Head of Adults,Third Party Payments 4THIRD,471101,Purchase of Care,04/09/2018,3483662-2501854,"2,242.24",DURHAM AGED MINEWORKERS HOMES ASSOCIATION.
Adult and Health Services,Head of Adults,Third Party Payments 4THIRD,474101,Purchase of Care,04/09/2018,3483663-2504218,"2,371.44",DURHAM CARELINE LTD.
Adult and Health Services,Head of Adults,Third Party Payments 4THIRD,474101,Purchase of Care,04/09/2018,3483663-2504220,"2,371.44",DURHAM CARELINE LTD.
Adult and Health Services,Head of Adults,Third Party Payments 4THIRD,474101,Purchase of Care,04/09/2018,3483663-2504222,"1,439.80",DURHAM CARELINE LTD.
Adult and Health Services,Head of Adults,Third Party Payments 4THIRD,474101,Purchase of Care,04/09/2018,3483663-2504223,"2,371.44",DURHAM CARELINE LTD.
Adult and Health Services,Head of Adults,Third Party Payments 4THIRD,474101,Purchase of Care,04/09/2018,3483663-2504227,"2,982.00",DURHAM CARELINE LTD.
Adult and Health Services,Head of Adults,Third Party Payments 4THIRD,474101,Purchase of Care,04/09/2018,3483663-2504232,"2,982.00",DURHAM CARELINE LTD.
Adult and Health Services,Head of Adults,Third Party Payments 4THIRD,474101,Purchase of Care,04/09/2018,3483663-2504234,"2,371.44",DURHAM CARELINE LTD.
Adult and Health Services,Head of Adults,Third Party Payments 4THIRD,474101,Purchase of Care,04/09/2018,3483663-2504236,"2,371.44",DURHAM CARELINE LTD.
Adult and Health Services,Head of Adults,Third Party Payments 4THIRD,474101,Purchase of Care,04/09/2018,3483663-2504239,"5,680.00",DURHAM CARELINE LTD.
Adult and Health Services,Head of Adults,Third Party Payments 4THIRD,474101,Purchase of Care,04/09/2018,3483663-2504242,"2,680.00",DURHAM CARELINE LTD.
Adult and Health Services,Head of Adults,Third Party Payments 4THIRD,474101,Purchase of Care,04/09/2018,3483663-2504244,"2,982.00",DURHAM CARELINE LTD.
Adult and Health Services,Head of Adults,Third Party Payments 4THIRD,474101,Purchase of Care,04/09/2018,3483663-2504249,"1,185.72",DURHAM CARELINE LTD.
Adult and Health Services,Head of Adults,Third Party Payments 4THIRD,474101,Purchase of Care,04/09/2018,3483663-2504251,"2,371.44",DURHAM CARELINE LTD.
Adult and Health Services,Head of Adults,Third Party Payments 4THIRD,474101,Purchase of Care,04/09/2018,3483663-2504253,"2,371.44",DURHAM CARELINE LTD.
Adult and Health Services,Head of Adults,Third Party Payments 4THIRD,474101,Purchase of Care,04/09/2018,3483664-2504012,"3,041.64",DURHAM CARELINE LTD.
Adult and Health Services,Head of Adults,Third Party Payments 4THIRD,474101,Purchase of Care,04/09/2018,3483664-2504014,"4,896.00",DURHAM CARELINE LTD.
Adult and Health Services,Head of Adults,Third Party Payments 4THIRD,474101,Purchase of Care,04/09/2018,3483664-2504020,"3,041.64",DURHAM CARELINE LTD.
Adult and Health Services,Head of Adults,Third Party Payments 4THIRD,474101,Purchase of Care,04/09/2018,3483664-2504022,"3,041.64",DURHAM CARELINE LTD.
Adult and Health Services,Head of Adults,Third Party Payments 4THIRD,474101,Purchase of Care,04/09/2018,3483664-2504030,"3,041.64",DURHAM CARELINE LTD.
Adult and Health Services,Head of Adults,Third Party Payments 4THIRD,474101,Purchase of Care,04/09/2018,3483664-2504032,"3,041.64",DURHAM CARELINE LTD.
Adult and Health Services,Head of Adults,Third Party Payments 4THIRD,474101,Purchase of Care,04/09/2018,3483664-2504036,"3,080.32",DURHAM CARELINE LTD.
Adult and Health Services,Head of Adults,Third Party Payments 4THIRD,474101,Purchase of Care,04/09/2018,3483664-2505570,"3,011.30",DURHAM CARELINE LTD.
Adult and Health Services,Head of Adults,Third Party Payments 4THIRD,474101,Purchase of Care,04/09/2018,3483666-2504160,"6,260.00",DURHAM CARELINE LTD.
Adult and Health Services,Head of Adults,Third Party Payments 4THIRD,474101,Purchase of Care,04/09/2018,3483666-2504162,"3,674.37",DURHAM CARELINE LTD.
Adult and Health Services,Head of Adults,Third Party Payments 4THIRD,474101,Purchase of Care,04/09/2018,3483666-2504169,"4,896.00",DURHAM CARELINE LTD.
Adult and Health Services,Head of Adults,Third Party Payments 4THIRD,474101,Purchase of Care,04/09/2018,3483666-2504170,"4,896.00",DURHAM CARELINE LTD.
Adult and Health Services,Head of Adults,Third Party Payments 4THIRD,470101,Purchase of Care,04/09/2018,3483663-2504248,"2,279.00",DURHAM CARELINE LTD.
Adult and Health Services,Head of Adults,Third Party Payments 4THIRD,470101,Purchase of Care,04/09/2018,3483663-2504256,"2,279.00",DURHAM CARELINE LTD.
Adult and Health Services,Head of Adults,Third Party Payments 4THIRD,470101,Purchase of Care,04/09/2018,3483663-2505730,976.71,DURHAM CARELINE LTD.
Adult and Health Services,Head of Adults,Third Party Payments 4THIRD,470101,Purchase of Care,04/09/2018,3483663-2505836,"2,279.00",DURHAM CARELINE LTD.
Adult and Health Services,Head of Adults,Third Party Payments 4THIRD,470101,Purchase of Care,04/09/2018,3483664-2504016,"2,246.12",DURHAM CARELINE LTD.
Adult and Health Services,Head of Adults,Third Party Payments 4THIRD,470101,Purchase of Care,04/09/2018,3483664-2504017,"4,896.00",DURHAM CARELINE LTD.
Adult and Health Services,Head of Adults,Third Party Payments 4THIRD,470101,Purchase of Care,04/09/2018,3483664-2504024,"2,519.40",DURHAM CARELINE LTD.
Adult and Health Services,Head of Adults,Third Party Payments 4THIRD,470101,Purchase of Care,04/09/2018,3483664-2504025,"1,234.80",DURHAM CARELINE LTD.
Adult and Health Services,Head of Adults,Third Party Payments 4THIRD,470101,Purchase of Care,04/09/2018,3483664-2504026,"2,184.52",DURHAM CARELINE LTD.
Adult and Health Services,Head of Adults,Third Party Payments 4THIRD,470101,Purchase of Care,04/09/2018,3483664-2504027,"2,003.84",DURHAM CARELINE LTD.
Adult and Health Services,Head of Adults,Third Party Payments 4THIRD,470101,Purchase of Care,04/09/2018,3483664-2504028,"2,184.52",DURHAM CARELINE LTD.
Adult and Health Services,Head of Adults,Third Party Payments 4THIRD,470101,Purchase of Care,04/09/2018,3483664-2504029,"2,003.84",DURHAM CARELINE LTD.
Adult and Health Services,Head of Adults,Third Party Payments 4THIRD,470101,Purchase of Care,04/09/2018,3483664-2504033,"2,963.52",DURHAM CARELINE LTD.
Adult and Health Services,Head of Adults,Third Party Payments 4THIRD,470101,Purchase of Care,04/09/2018,3483664-2504034,648.28,DURHAM CARELINE LTD.
Adult and Health Services,Head of Adults,Third Party Payments 4THIRD,470101,Purchase of Care,04/09/2018,3483664-2504038,"2,231.76",DURHAM CARELINE LTD.
Adult and Health Services,Head of Adults,Third Party Payments 4THIRD,470101,Purchase of Care,04/09/2018,3483664-2504040,"2,640.80",DURHAM CARELINE LTD.
Adult and Health Services,Head of Adults,Third Party Payments 4THIRD,470101,Purchase of Care,04/09/2018,3483664-2504041,"3,049.80",DURHAM CARELINE LTD.
Adult and Health Services,Head of Adults,Third Party Payments 4THIRD,470101,Purchase of Care,04/09/2018,3483664-2505872,529.20,DURHAM CARELINE LTD.
Adult and Health Services,Head of Adults,Third Party Payments 4THIRD,470101,Purchase of Care,04/09/2018,3483664-2505874,"1,764.00",DURHAM CARELINE LTD.
Adult and Health Services,Head of Adults,Third Party Payments 4THIRD,470101,Purchase of Care,04/09/2018,3483665-2504956,"2,558.16",DURHAM CARELINE LTD.
Adult and Health Services,Head of Adults,Third Party Payments 4THIRD,470101,Purchase of Care,04/09/2018,3483666-2504165,"2,724.00",DURHAM CARELINE LTD.
Adult and Health Services,Head of Adults,Third Party Payments 4THIRD,470101,Purchase of Care,04/09/2018,3483666-2504166,"2,645.88",DURHAM CARELINE LTD.
Adult and Health Services,Head of Adults,Third Party Payments 4THIRD,470101,Purchase of Care,04/09/2018,3483666-2504167,"2,266.44",DURHAM CARELINE LTD.
Adult and Health Services,Head of Adults,Third Party Payments 4THIRD,471101,Purchase of Care,04/09/2018,3483663-2504225,"2,363.08",DURHAM CARELINE LTD.
Adult and Health Services,Head of Adults,Third Party Payments 4THIRD,471101,Purchase of Care,04/09/2018,3483663-2504238,"2,363.08",DURHAM CARELINE LTD.
Adult and Health Services,Head of Adults,Third Party Payments 4THIRD,471101,Purchase of Care,04/09/2018,3483663-2504241,"2,363.08",DURHAM CARELINE LTD.
Adult and Health Services,Head of Adults,Third Party Payments 4THIRD,471101,Purchase of Care,04/09/2018,3483663-2504246,"2,363.08",DURHAM CARELINE LTD.
Adult and Health Services,Head of Adults,Third Party Payments 4THIRD,471101,Purchase of Care,04/09/2018,3483663-2504247,"2,363.08",DURHAM CARELINE LTD.
Regeneration and Local Services,Culture & Sport,Supplies and Services,384999,Miscellaneous Expenses,04/09/2018,3483492-RES-08-2018-066,"90,000.00",DURHAM MINERS` ASSOCIATION.
Adult and Health Services,Head of Adults,Third Party Payments 4THIRD,474101,Purchase of Care,04/09/2018,3483667-2503132,"1,620.48",EAST CLEVELAND M S HOME.
Adult and Health Services,Head of Adults,Third Party Payments 4THIRD,470101,Purchase of Care,04/09/2018,3483668-2502535,"9,450.00",EDEN COTTAGE CARE HOME LTD.
Adult and Health Services,Head of Adults,Third Party Payments 4THIRD,470101,Purchase of Care,04/09/2018,3483669-2505078,"10,200.24",EDUCATION & SERVICES FOR PEOPLE WITH AUTISM (ESPA) LTD.
Adult and Health Services,Head of Adults,Third Party Payments 4THIRD,470101,Purchase of Care,04/09/2018,3483670-2490990,"6,489.84",EDUCATION & SERVICES FOR PEOPLE WITH AUTISM (ESPA) LTD.
Adult and Health Services,Head of Adults,Third Party Payments 4THIRD,470101,Purchase of Care,04/09/2018,3483670-2491096,"5,047.92",EDUCATION & SERVICES FOR PEOPLE WITH AUTISM (ESPA) LTD.
Adult and Health Services,Head of Adults,Third Party Payments 4THIRD,470101,Purchase of Care,04/09/2018,3483670-2491151,"6,489.92",EDUCATION & SERVICES FOR PEOPLE WITH AUTISM (ESPA) LTD.
Adult and Health Services,Head of Adults,Third Party Payments 4THIRD,470101,Purchase of Care,04/09/2018,3483670-2491152,"4,655.88",EDUCATION & SERVICES FOR PEOPLE WITH AUTISM (ESPA) LTD.
Adult and Health Services,Head of Adults,Third Party Payments 4THIRD,470101,Purchase of Care,04/09/2018,3483670-2491153,"4,737.88",EDUCATION & SERVICES FOR PEOPLE WITH AUTISM (ESPA) LTD.
Adult and Health Services,Head of Adults,Third Party Payments 4THIRD,470101,Purchase of Care,04/09/2018,3483670-2491154,"8,386.12",EDUCATION & SERVICES FOR PEOPLE WITH AUTISM (ESPA) LTD.
Adult and Health Services,Head of Adults,Third Party Payments 4THIRD,470101,Purchase of Care,04/09/2018,3483670-2491155,"10,200.24",EDUCATION & SERVICES FOR PEOPLE WITH AUTISM (ESPA) LTD.
Adult and Health Services,Head of Adults,Third Party Payments 4THIRD,470101,Purchase of Care,04/09/2018,3483670-2505077,"6,489.84",EDUCATION & SERVICES FOR PEOPLE WITH AUTISM (ESPA) LTD.
Adult and Health Services,Head of Adults,Third Party Payments 4THIRD,470101,Purchase of Care,04/09/2018,3483670-2505132,"5,047.92",EDUCATION & SERVICES FOR PEOPLE WITH AUTISM (ESPA) LTD.
Adult and Health Services,Head of Adults,Third Party Payments 4THIRD,470101,Purchase of Care,04/09/2018,3483671-2503137,"6,489.92",EDUCATION & SERVICES FOR PEOPLE WITH AUTISM (ESPA) LTD.
Adult and Health Services,Head of Adults,Third Party Payments 4THIRD,470101,Purchase of Care,04/09/2018,3483671-2503138,"4,655.88",EDUCATION & SERVICES FOR PEOPLE WITH AUTISM (ESPA) LTD.
Adult and Health Services,Head of Adults,Third Party Payments 4THIRD,470101,Purchase of Care,04/09/2018,3483671-2503139,"4,737.88",EDUCATION & SERVICES FOR PEOPLE WITH AUTISM (ESPA) LTD.
Adult and Health Services,Head of Adults,Third Party Payments 4THIRD,470101,Purchase of Care,04/09/2018,3483672-2503462,"8,386.12",EDUCATION & SERVICES FOR PEOPLE WITH AUTISM (ESPA) LTD.
Adult and Health Services,Head of Adults,Third Party Payments 4THIRD,470101,Purchase of Care,04/09/2018,3483673-2490945,"3,038.48",EDUCATION & SERVICES FOR PEOPLE WITH AUTISM (ESPA) LTD.
Adult and Health Services,Head of Adults,Third Party Payments 4THIRD,470101,Purchase of Care,04/09/2018,3483673-2505081,"3,038.48",EDUCATION & SERVICES FOR PEOPLE WITH AUTISM (ESPA) LTD.
Adult and Health Services,Head of Adults,Third Party Payments 4THIRD,474101,Purchase of Care,04/09/2018,3483674-2505215,"2,371.44",ELBA CARE LTD.
Adult and Health Services,Head of Adults,Third Party Payments 4THIRD,474101,Purchase of Care,04/09/2018,3483674-2505217,"2,371.44",ELBA CARE LTD.
Adult and Health Services,Head of Adults,Third Party Payments 4THIRD,474101,Purchase of Care,04/09/2018,3483674-2505674,"2,371.44",ELBA CARE LTD.
Adult and Health Services,Head of Adults,Third Party Payments 4THIRD,470101,Purchase of Care,04/09/2018,3483674-2505194,"2,279.00",ELBA CARE LTD.
Adult and Health Services,Head of Adults,Third Party Payments 4THIRD,470101,Purchase of Care,04/09/2018,3483674-2505195,"2,279.00",ELBA CARE LTD.
Adult and Health Services,Head of Adults,Third Party Payments 4THIRD,470101,Purchase of Care,04/09/2018,3483674-2505198,569.75,ELBA CARE LTD.
Adult and Health Services,Head of Adults,Third Party Payments 4THIRD,470101,Purchase of Care,04/09/2018,3483674-2505201,"2,279.00",ELBA CARE LTD.
Adult and Health Services,Head of Adults,Third Party Payments 4THIRD,470101,Purchase of Care,04/09/2018,3483674-2505202,"2,279.00",ELBA CARE LTD.
Adult and Health Services,Head of Adults,Third Party Payments 4THIRD,470101,Purchase of Care,04/09/2018,3483674-2505210,"2,279.00",ELBA CARE LTD.
Adult and Health Services,Head of Adults,Third Party Payments 4THIRD,470101,Purchase of Care,04/09/2018,3483674-2505212,"1,709.25",ELBA CARE LTD.
Adult and Health Services,Head of Adults,Third Party Payments 4THIRD,470101,Purchase of Care,04/09/2018,3483674-2505213,"2,279.00",ELBA CARE LTD.
Adult and Health Services,Head of Adults,Third Party Payments 4THIRD,470101,Purchase of Care,04/09/2018,3483674-2505214,"2,279.00",ELBA CARE LTD.
Adult and Health Services,Head of Adults,Third Party Payments 4THIRD,470101,Purchase of Care,04/09/2018,3483674-2505221,"2,279.00",ELBA CARE LTD.
Adult and Health Services,Head of Adults,Third Party Payments 4THIRD,470101,Purchase of Care,04/09/2018,3483674-2505222,"2,279.00",ELBA CARE LTD.
Adult and Health Services,Head of Adults,Third Party Payments 4THIRD,470101,Purchase of Care,04/09/2018,3483674-2505226,"2,279.00",ELBA CARE LTD.
Adult and Health Services,Head of Adults,Third Party Payments 4THIRD,470101,Purchase of Care,04/09/2018,3483674-2505227,"2,279.00",ELBA CARE LTD.
Adult and Health Services,Head of Adults,Third Party Payments 4THIRD,470101,Purchase of Care,04/09/2018,3483674-2505228,"2,279.00",ELBA CARE LTD.
Adult and Health Services,Head of Adults,Third Party Payments 4THIRD,470101,Purchase of Care,04/09/2018,3483674-2505230,"2,279.00",ELBA CARE LTD.
Adult and Health Services,Head of Adults,Third Party Payments 4THIRD,470101,Purchase of Care,04/09/2018,3483674-2505676,895.32,ELBA CARE LTD.
Adult and Health Services,Head of Adults,Third Party Payments 4THIRD,471101,Purchase of Care,04/09/2018,3483674-2505192,"1,687.91",ELBA CARE LTD.
Adult and Health Services,Head of Adults,Third Party Payments 4THIRD,471101,Purchase of Care,04/09/2018,3483674-2505197,675.16,ELBA CARE LTD.
Adult and Health Services,Head of Adults,Third Party Payments 4THIRD,471101,Purchase of Care,04/09/2018,3483674-2505219,"2,363.08",ELBA CARE LTD.
Adult and Health Services,Head of Adults,Third Party Payments 4THIRD,471101,Purchase of Care,04/09/2018,3483674-2505220,"2,363.08",ELBA CARE LTD.
Adult and Health Services,Head of Adults,Third Party Payments 4THIRD,471101,Purchase of Care,04/09/2018,3483674-2505223,"2,363.08",ELBA CARE LTD.
Adult and Health Services,Head of Adults,Third Party Payments 4THIRD,471101,Purchase of Care,04/09/2018,3483674-2505224,"2,363.08",ELBA CARE LTD.
Adult and Health Services,Head of Adults,Third Party Payments 4THIRD,471101,Purchase of Care,04/09/2018,3483674-2505225,"2,363.08",ELBA CARE LTD.
Adult and Health Services,Head of Adults,Third Party Payments 4THIRD,471101,Purchase of Care,04/09/2018,3483674-2505229,"2,363.08",ELBA CARE LTD.
Adult and Health Services,Head of Adults,Third Party Payments 4THIRD,470101,Purchase of Care,04/09/2018,3483676-2503686,"5,511.60",ELLERSHAW HOUSE LTD.
Adult and Health Services,Head of Adults,Third Party Payments 4THIRD,470101,Purchase of Care,04/09/2018,3483677-2503144,"2,574.60",ELPHA LODGE RESIDENTIAL CARE HOME  LTD.
Adult and Health Services,Head of Adults,Third Party Payments 4THIRD,474101,Purchase of Care,04/09/2018,3483678-2503470,"2,371.44",EMBRACE (UK) LTD.
Adult and Health Services,Head of Adults,Third Party Payments 4THIRD,474101,Purchase of Care,04/09/2018,3483678-2503474,"2,371.44",EMBRACE (UK) LTD.
Adult and Health Services,Head of Adults,Third Party Payments 4THIRD,474101,Purchase of Care,04/09/2018,3483678-2503482,"2,286.74",EMBRACE (UK) LTD.
Adult and Health Services,Head of Adults,Third Party Payments 4THIRD,474101,Purchase of Care,04/09/2018,3483678-2503493,"2,371.44",EMBRACE (UK) LTD.
Adult and Health Services,Head of Adults,Third Party Payments 4THIRD,474101,Purchase of Care,04/09/2018,3483678-2503495,"2,371.44",EMBRACE (UK) LTD.
Adult and Health Services,Head of Adults,Third Party Payments 4THIRD,474101,Purchase of Care,04/09/2018,3483678-2503501,"2,371.44",EMBRACE (UK) LTD.
Adult and Health Services,Head of Adults,Third Party Payments 4THIRD,474101,Purchase of Care,04/09/2018,3483678-2503508,"2,371.44",EMBRACE (UK) LTD.
Adult and Health Services,Head of Adults,Third Party Payments 4THIRD,474101,Purchase of Care,04/09/2018,3483678-2503513,"2,371.44",EMBRACE (UK) LTD.
Adult and Health Services,Head of Adults,Third Party Payments 4THIRD,474101,Purchase of Care,04/09/2018,3483678-2503516,"1,185.72",EMBRACE (UK) LTD.
Adult and Health Services,Head of Adults,Third Party Payments 4THIRD,474101,Purchase of Care,04/09/2018,3483678-2503518,"2,371.44",EMBRACE (UK) LTD.
Adult and Health Services,Head of Adults,Third Party Payments 4THIRD,474101,Purchase of Care,04/09/2018,3483678-2503520,"2,371.44",EMBRACE (UK) LTD.
Adult and Health Services,Head of Adults,Third Party Payments 4THIRD,474101,Purchase of Care,04/09/2018,3483678-2503523,"2,371.44",EMBRACE (UK) LTD.
Adult and Health Services,Head of Adults,Third Party Payments 4THIRD,474101,Purchase of Care,04/09/2018,3483678-2503525,"2,371.44",EMBRACE (UK) LTD.
Adult and Health Services,Head of Adults,Third Party Payments 4THIRD,474101,Purchase of Care,04/09/2018,3483678-2505844,592.86,EMBRACE (UK) LTD.
Adult and Health Services,Head of Adults,Third Party Payments 4THIRD,474101,Purchase of Care,04/09/2018,3483679-2504911,"1,185.72",EMBRACE (UK) LTD.
Adult and Health Services,Head of Adults,Third Party Payments 4THIRD,474101,Purchase of Care,04/09/2018,3483679-2504913,"1,185.72",EMBRACE (UK) LTD.
Adult and Health Services,Head of Adults,Third Party Payments 4THIRD,474101,Purchase of Care,04/09/2018,3483679-2504915,"2,371.44",EMBRACE (UK) LTD.
Adult and Health Services,Head of Adults,Third Party Payments 4THIRD,474101,Purchase of Care,04/09/2018,3483679-2504917,"1,185.72",EMBRACE (UK) LTD.
Adult and Health Services,Head of Adults,Third Party Payments 4THIRD,474101,Purchase of Care,04/09/2018,3483679-2504919,"2,371.44",EMBRACE (UK) LTD.
Adult and Health Services,Head of Adults,Third Party Payments 4THIRD,474101,Purchase of Care,04/09/2018,3483679-2504923,"1,185.72",EMBRACE (UK) LTD.
Adult and Health Services,Head of Adults,Third Party Payments 4THIRD,474101,Purchase of Care,04/09/2018,3483679-2504931,"2,371.44",EMBRACE (UK) LTD.
Adult and Health Services,Head of Adults,Third Party Payments 4THIRD,474101,Purchase of Care,04/09/2018,3483679-2504937,"1,185.72",EMBRACE (UK) LTD.
Adult and Health Services,Head of Adults,Third Party Payments 4THIRD,474101,Purchase of Care,04/09/2018,3483679-2504939,"2,371.44",EMBRACE (UK) LTD.
Adult and Health Services,Head of Adults,Third Party Payments 4THIRD,474101,Purchase of Care,04/09/2018,3483680-2504761,"1,185.72",EMBRACE (UK) LTD.
Adult and Health Services,Head of Adults,Third Party Payments 4THIRD,474101,Purchase of Care,04/09/2018,3483680-2504776,"2,371.44",EMBRACE (UK) LTD.
Adult and Health Services,Head of Adults,Third Party Payments 4THIRD,474101,Purchase of Care,04/09/2018,3483680-2504778,"2,371.44",EMBRACE (UK) LTD.
Adult and Health Services,Head of Adults,Third Party Payments 4THIRD,474101,Purchase of Care,04/09/2018,3483680-2504780,"2,371.44",EMBRACE (UK) LTD.
Adult and Health Services,Head of Adults,Third Party Payments 4THIRD,474101,Purchase of Care,04/09/2018,3483680-2504783,"1,185.72",EMBRACE (UK) LTD.
Adult and Health Services,Head of Adults,Third Party Payments 4THIRD,474101,Purchase of Care,04/09/2018,3483680-2504785,"2,371.44",EMBRACE (UK) LTD.
Adult and Health Services,Head of Adults,Third Party Payments 4THIRD,474101,Purchase of Care,04/09/2018,3483680-2504791,"2,371.44",EMBRACE (UK) LTD.
Adult and Health Services,Head of Adults,Third Party Payments 4THIRD,474101,Purchase of Care,04/09/2018,3483680-2504796,"2,371.44",EMBRACE (UK) LTD.
Adult and Health Services,Head of Adults,Third Party Payments 4THIRD,474101,Purchase of Care,04/09/2018,3483680-2504800,"2,371.44",EMBRACE (UK) LTD.
Adult and Health Services,Head of Adults,Third Party Payments 4THIRD,474101,Purchase of Care,04/09/2018,3483680-2504804,"1,185.72",EMBRACE (UK) LTD.
Adult and Health Services,Head of Adults,Third Party Payments 4THIRD,474101,Purchase of Care,04/09/2018,3483680-2504806,"2,371.44",EMBRACE (UK) LTD.
Adult and Health Services,Head of Adults,Third Party Payments 4THIRD,474101,Purchase of Care,04/09/2018,3483680-2504808,"2,371.44",EMBRACE (UK) LTD.
Adult and Health Services,Head of Adults,Third Party Payments 4THIRD,474101,Purchase of Care,04/09/2018,3483680-2504811,"2,371.44",EMBRACE (UK) LTD.
Adult and Health Services,Head of Adults,Third Party Payments 4THIRD,474101,Purchase of Care,04/09/2018,3483680-2504813,"1,185.72",EMBRACE (UK) LTD.
Adult and Health Services,Head of Adults,Third Party Payments 4THIRD,474101,Purchase of Care,04/09/2018,3483680-2504819,"2,371.44",EMBRACE (UK) LTD.
Adult and Health Services,Head of Adults,Third Party Payments 4THIRD,474101,Purchase of Care,04/09/2018,3483680-2505976,"1,863.27",EMBRACE (UK) LTD.
Adult and Health Services,Head of Adults,Third Party Payments 4THIRD,470102,Purchase of Care,04/09/2018,3483680-2504764,976.71,EMBRACE (UK) LTD.
Adult and Health Services,Head of Adults,Third Party Payments 4THIRD,470101,Purchase of Care,04/09/2018,3483678-2503464,"2,279.00",EMBRACE (UK) LTD.
Adult and Health Services,Head of Adults,Third Party Payments 4THIRD,470101,Purchase of Care,04/09/2018,3483678-2503465,"2,279.00",EMBRACE (UK) LTD.
Adult and Health Services,Head of Adults,Third Party Payments 4THIRD,470101,Purchase of Care,04/09/2018,3483678-2503469,"2,279.00",EMBRACE (UK) LTD.
Adult and Health Services,Head of Adults,Third Party Payments 4THIRD,470101,Purchase of Care,04/09/2018,3483678-2503477,"2,197.60",EMBRACE (UK) LTD.
Adult and Health Services,Head of Adults,Third Party Payments 4THIRD,470101,Purchase of Care,04/09/2018,3483678-2503478,"2,279.00",EMBRACE (UK) LTD.
Adult and Health Services,Head of Adults,Third Party Payments 4THIRD,470101,Purchase of Care,04/09/2018,3483678-2503479,"2,279.00",EMBRACE (UK) LTD.
Adult and Health Services,Head of Adults,Third Party Payments 4THIRD,470101,Purchase of Care,04/09/2018,3483678-2503485,"2,279.00",EMBRACE (UK) LTD.
Adult and Health Services,Head of Adults,Third Party Payments 4THIRD,470101,Purchase of Care,04/09/2018,3483678-2503487,"2,279.00",EMBRACE (UK) LTD.
Adult and Health Services,Head of Adults,Third Party Payments 4THIRD,470101,Purchase of Care,04/09/2018,3483678-2503489,"2,279.00",EMBRACE (UK) LTD.
Adult and Health Services,Head of Adults,Third Party Payments 4THIRD,470101,Purchase of Care,04/09/2018,3483678-2503499,"2,279.00",EMBRACE (UK) LTD.
Adult and Health Services,Head of Adults,Third Party Payments 4THIRD,470101,Purchase of Care,04/09/2018,3483678-2503510,"2,279.00",EMBRACE (UK) LTD.
Adult and Health Services,Head of Adults,Third Party Payments 4THIRD,470101,Purchase of Care,04/09/2018,3483678-2503522,"2,279.00",EMBRACE (UK) LTD.
Adult and Health Services,Head of Adults,Third Party Payments 4THIRD,470101,Purchase of Care,04/09/2018,3483679-2504906,"2,279.00",EMBRACE (UK) LTD.
Adult and Health Services,Head of Adults,Third Party Payments 4THIRD,470101,Purchase of Care,04/09/2018,3483679-2504909,"2,279.00",EMBRACE (UK) LTD.
Adult and Health Services,Head of Adults,Third Party Payments 4THIRD,470101,Purchase of Care,04/09/2018,3483679-2504910,813.92,EMBRACE (UK) LTD.
Adult and Health Services,Head of Adults,Third Party Payments 4THIRD,470101,Purchase of Care,04/09/2018,3483679-2504921,"2,279.00",EMBRACE (UK) LTD.
Adult and Health Services,Head of Adults,Third Party Payments 4THIRD,470101,Purchase of Care,04/09/2018,3483679-2504922,"2,279.00",EMBRACE (UK) LTD.
Adult and Health Services,Head of Adults,Third Party Payments 4THIRD,470101,Purchase of Care,04/09/2018,3483679-2504925,"2,279.00",EMBRACE (UK) LTD.
Adult and Health Services,Head of Adults,Third Party Payments 4THIRD,470101,Purchase of Care,04/09/2018,3483679-2504926,"2,279.00",EMBRACE (UK) LTD.
Adult and Health Services,Head of Adults,Third Party Payments 4THIRD,470101,Purchase of Care,04/09/2018,3483679-2504930,"2,279.00",EMBRACE (UK) LTD.
Adult and Health Services,Head of Adults,Third Party Payments 4THIRD,470101,Purchase of Care,04/09/2018,3483679-2504933,"2,279.00",EMBRACE (UK) LTD.
Adult and Health Services,Head of Adults,Third Party Payments 4THIRD,470101,Purchase of Care,04/09/2018,3483679-2504934,"2,279.00",EMBRACE (UK) LTD.
Adult and Health Services,Head of Adults,Third Party Payments 4THIRD,470101,Purchase of Care,04/09/2018,3483679-2504935,"2,279.00",EMBRACE (UK) LTD.
Adult and Health Services,Head of Adults,Third Party Payments 4THIRD,470101,Purchase of Care,04/09/2018,3483680-2504756,"2,279.00",EMBRACE (UK) LTD.
Adult and Health Services,Head of Adults,Third Party Payments 4THIRD,470101,Purchase of Care,04/09/2018,3483680-2504758,"2,279.00",EMBRACE (UK) LTD.
Adult and Health Services,Head of Adults,Third Party Payments 4THIRD,470101,Purchase of Care,04/09/2018,3483680-2504765,"2,350.84",EMBRACE (UK) LTD.
Adult and Health Services,Head of Adults,Third Party Payments 4THIRD,470101,Purchase of Care,04/09/2018,3483680-2504768,"1,465.07",EMBRACE (UK) LTD.
Adult and Health Services,Head of Adults,Third Party Payments 4THIRD,470101,Purchase of Care,04/09/2018,3483680-2504772,"1,139.50",EMBRACE (UK) LTD.
Adult and Health Services,Head of Adults,Third Party Payments 4THIRD,470101,Purchase of Care,04/09/2018,3483680-2504774,"2,279.00",EMBRACE (UK) LTD.
Adult and Health Services,Head of Adults,Third Party Payments 4THIRD,470101,Purchase of Care,04/09/2018,3483680-2504779,"1,546.46",EMBRACE (UK) LTD.
Adult and Health Services,Head of Adults,Third Party Payments 4THIRD,470101,Purchase of Care,04/09/2018,3483680-2504790,"2,279.00",EMBRACE (UK) LTD.
Adult and Health Services,Head of Adults,Third Party Payments 4THIRD,470101,Purchase of Care,04/09/2018,3483680-2504794,"2,279.00",EMBRACE (UK) LTD.
Adult and Health Services,Head of Adults,Third Party Payments 4THIRD,470101,Purchase of Care,04/09/2018,3483680-2504798,"2,279.00",EMBRACE (UK) LTD.
Adult and Health Services,Head of Adults,Third Party Payments 4THIRD,470101,Purchase of Care,04/09/2018,3483680-2504799,"2,279.00",EMBRACE (UK) LTD.
Adult and Health Services,Head of Adults,Third Party Payments 4THIRD,470101,Purchase of Care,04/09/2018,3483680-2504803,"2,279.00",EMBRACE (UK) LTD.
Adult and Health Services,Head of Adults,Third Party Payments 4THIRD,470101,Purchase of Care,04/09/2018,3483680-2504810,"2,279.00",EMBRACE (UK) LTD.
Adult and Health Services,Head of Adults,Third Party Payments 4THIRD,470101,Purchase of Care,04/09/2018,3483680-2504815,"2,279.00",EMBRACE (UK) LTD.
Adult and Health Services,Head of Adults,Third Party Payments 4THIRD,470101,Purchase of Care,04/09/2018,3483680-2504816,"2,350.84",EMBRACE (UK) LTD.
Adult and Health Services,Head of Adults,Third Party Payments 4THIRD,470101,Purchase of Care,04/09/2018,3483680-2504817,"2,279.00",EMBRACE (UK) LTD.
Adult and Health Services,Head of Adults,Third Party Payments 4THIRD,470101,Purchase of Care,04/09/2018,3483680-2504818,"2,279.00",EMBRACE (UK) LTD.
Adult and Health Services,Head of Adults,Third Party Payments 4THIRD,470101,Purchase of Care,04/09/2018,3483680-2504821,"2,279.00",EMBRACE (UK) LTD.
Adult and Health Services,Head of Adults,Third Party Payments 4THIRD,470101,Purchase of Care,04/09/2018,3483680-2504822,"2,555.68",EMBRACE (UK) LTD.
Adult and Health Services,Head of Adults,Third Party Payments 4THIRD,470101,Purchase of Care,04/09/2018,3483681-2503591,"2,279.00",EMBRACE (UK) LTD.
Adult and Health Services,Head of Adults,Third Party Payments 4THIRD,470101,Purchase of Care,04/09/2018,3483681-2503593,"2,279.00",EMBRACE (UK) LTD.
Adult and Health Services,Head of Adults,Third Party Payments 4THIRD,470101,Purchase of Care,04/09/2018,3483681-2503594,"2,279.00",EMBRACE (UK) LTD.
Adult and Health Services,Head of Adults,Third Party Payments 4THIRD,470101,Purchase of Care,04/09/2018,3483681-2503595,"1,627.85",EMBRACE (UK) LTD.
Adult and Health Services,Head of Adults,Third Party Payments 4THIRD,470101,Purchase of Care,04/09/2018,3483681-2503596,"2,279.00",EMBRACE (UK) LTD.
Adult and Health Services,Head of Adults,Third Party Payments 4THIRD,470101,Purchase of Care,04/09/2018,3483681-2503597,"2,279.00",EMBRACE (UK) LTD.
Adult and Health Services,Head of Adults,Third Party Payments 4THIRD,470101,Purchase of Care,04/09/2018,3483681-2503598,"2,279.00",EMBRACE (UK) LTD.
Adult and Health Services,Head of Adults,Third Party Payments 4THIRD,470101,Purchase of Care,04/09/2018,3483681-2503600,"2,279.00",EMBRACE (UK) LTD.
Adult and Health Services,Head of Adults,Third Party Payments 4THIRD,470101,Purchase of Care,04/09/2018,3483681-2503601,"2,279.00",EMBRACE (UK) LTD.
Adult and Health Services,Head of Adults,Third Party Payments 4THIRD,470101,Purchase of Care,04/09/2018,3483681-2503603,651.14,EMBRACE (UK) LTD.
Adult and Health Services,Head of Adults,Third Party Payments 4THIRD,470101,Purchase of Care,04/09/2018,3483681-2503604,"2,279.00",EMBRACE (UK) LTD.
Adult and Health Services,Head of Adults,Third Party Payments 4THIRD,470101,Purchase of Care,04/09/2018,3483681-2503605,"2,279.00",EMBRACE (UK) LTD.
Adult and Health Services,Head of Adults,Third Party Payments 4THIRD,470101,Purchase of Care,04/09/2018,3483681-2503606,"2,279.00",EMBRACE (UK) LTD.
Adult and Health Services,Head of Adults,Third Party Payments 4THIRD,470101,Purchase of Care,04/09/2018,3483681-2503607,"2,279.00",EMBRACE (UK) LTD.
Adult and Health Services,Head of Adults,Third Party Payments 4THIRD,470101,Purchase of Care,04/09/2018,3483681-2503608,"2,279.00",EMBRACE (UK) LTD.
Adult and Health Services,Head of Adults,Third Party Payments 4THIRD,470101,Purchase of Care,04/09/2018,3483681-2503609,"2,279.00",EMBRACE (UK) LTD.
Adult and Health Services,Head of Adults,Third Party Payments 4THIRD,470101,Purchase of Care,04/09/2018,3483681-2503610,"2,279.00",EMBRACE (UK) LTD.
Adult and Health Services,Head of Adults,Third Party Payments 4THIRD,470101,Purchase of Care,04/09/2018,3483681-2503612,"2,279.00",EMBRACE (UK) LTD.
Adult and Health Services,Head of Adults,Third Party Payments 4THIRD,470101,Purchase of Care,04/09/2018,3483681-2503614,"2,279.00",EMBRACE (UK) LTD.
Adult and Health Services,Head of Adults,Third Party Payments 4THIRD,470101,Purchase of Care,04/09/2018,3483681-2503615,"2,279.00",EMBRACE (UK) LTD.
Adult and Health Services,Head of Adults,Third Party Payments 4THIRD,470101,Purchase of Care,04/09/2018,3483681-2503617,"2,279.00",EMBRACE (UK) LTD.
Adult and Health Services,Head of Adults,Third Party Payments 4THIRD,470101,Purchase of Care,04/09/2018,3483681-2503619,"2,279.00",EMBRACE (UK) LTD.
Adult and Health Services,Head of Adults,Third Party Payments 4THIRD,470101,Purchase of Care,04/09/2018,3483681-2503620,"2,279.00",EMBRACE (UK) LTD.
Adult and Health Services,Head of Adults,Third Party Payments 4THIRD,470101,Purchase of Care,04/09/2018,3483681-2503621,"2,279.00",EMBRACE (UK) LTD.
Adult and Health Services,Head of Adults,Third Party Payments 4THIRD,470101,Purchase of Care,04/09/2018,3483681-2503622,"2,279.00",EMBRACE (UK) LTD.
Adult and Health Services,Head of Adults,Third Party Payments 4THIRD,470101,Purchase of Care,04/09/2018,3483681-2503623,"2,279.00",EMBRACE (UK) LTD.
Adult and Health Services,Head of Adults,Third Party Payments 4THIRD,470101,Purchase of Care,04/09/2018,3483681-2503624,"2,279.00",EMBRACE (UK) LTD.
Adult and Health Services,Head of Adults,Third Party Payments 4THIRD,470101,Purchase of Care,04/09/2018,3483681-2503625,"2,279.00",EMBRACE (UK) LTD.
Adult and Health Services,Head of Adults,Third Party Payments 4THIRD,470101,Purchase of Care,04/09/2018,3483681-2503626,"2,279.00",EMBRACE (UK) LTD.
Adult and Health Services,Head of Adults,Third Party Payments 4THIRD,470101,Purchase of Care,04/09/2018,3483681-2503627,"2,279.00",EMBRACE (UK) LTD.
Adult and Health Services,Head of Adults,Third Party Payments 4THIRD,471101,Purchase of Care,04/09/2018,3483678-2503491,"2,363.08",EMBRACE (UK) LTD.
Adult and Health Services,Head of Adults,Third Party Payments 4THIRD,471101,Purchase of Care,04/09/2018,3483678-2503498,"2,363.08",EMBRACE (UK) LTD.
Adult and Health Services,Head of Adults,Third Party Payments 4THIRD,471101,Purchase of Care,04/09/2018,3483678-2503503,"2,363.08",EMBRACE (UK) LTD.
Adult and Health Services,Head of Adults,Third Party Payments 4THIRD,471101,Purchase of Care,04/09/2018,3483678-2503504,"2,363.08",EMBRACE (UK) LTD.
Adult and Health Services,Head of Adults,Third Party Payments 4THIRD,471101,Purchase of Care,04/09/2018,3483678-2503505,"2,363.08",EMBRACE (UK) LTD.
Adult and Health Services,Head of Adults,Third Party Payments 4THIRD,471101,Purchase of Care,04/09/2018,3483678-2503507,"2,363.08",EMBRACE (UK) LTD.
Adult and Health Services,Head of Adults,Third Party Payments 4THIRD,471101,Purchase of Care,04/09/2018,3483678-2503511,"2,363.08",EMBRACE (UK) LTD.
Adult and Health Services,Head of Adults,Third Party Payments 4THIRD,471101,Purchase of Care,04/09/2018,3483678-2503512,"2,363.08",EMBRACE (UK) LTD.
Adult and Health Services,Head of Adults,Third Party Payments 4THIRD,471101,Purchase of Care,04/09/2018,3483678-2503515,"2,363.08",EMBRACE (UK) LTD.
Adult and Health Services,Head of Adults,Third Party Payments 4THIRD,471101,Purchase of Care,04/09/2018,3483678-2503527,"2,363.08",EMBRACE (UK) LTD.
Adult and Health Services,Head of Adults,Third Party Payments 4THIRD,471101,Purchase of Care,04/09/2018,3483679-2504908,"2,363.08",EMBRACE (UK) LTD.
Adult and Health Services,Head of Adults,Third Party Payments 4THIRD,471101,Purchase of Care,04/09/2018,3483679-2504929,"2,363.08",EMBRACE (UK) LTD.
Adult and Health Services,Head of Adults,Third Party Payments 4THIRD,471101,Purchase of Care,04/09/2018,3483679-2504936,"2,363.08",EMBRACE (UK) LTD.
Adult and Health Services,Head of Adults,Third Party Payments 4THIRD,471101,Purchase of Care,04/09/2018,3483679-2505899,506.37,EMBRACE (UK) LTD.
Adult and Health Services,Head of Adults,Third Party Payments 4THIRD,471101,Purchase of Care,04/09/2018,3483680-2504753,"2,363.08",EMBRACE (UK) LTD.
Adult and Health Services,Head of Adults,Third Party Payments 4THIRD,471101,Purchase of Care,04/09/2018,3483680-2504771,"2,363.08",EMBRACE (UK) LTD.
Adult and Health Services,Head of Adults,Third Party Payments 4THIRD,471101,Purchase of Care,04/09/2018,3483680-2504775,"2,109.89",EMBRACE (UK) LTD.
Adult and Health Services,Head of Adults,Third Party Payments 4THIRD,471101,Purchase of Care,04/09/2018,3483680-2504793,"2,363.08",EMBRACE (UK) LTD.
Adult and Health Services,Head of Adults,Third Party Payments 4THIRD,471101,Purchase of Care,04/09/2018,3483680-2504795,"2,363.08",EMBRACE (UK) LTD.
Adult and Health Services,Head of Adults,Third Party Payments 4THIRD,471101,Purchase of Care,04/09/2018,3483680-2504823,"2,363.08",EMBRACE (UK) LTD.
Adult and Health Services,Head of Adults,Third Party Payments 4THIRD,471101,Purchase of Care,04/09/2018,3483680-2505947,"1,941.10",EMBRACE (UK) LTD.
Adult and Health Services,Head of Adults,Third Party Payments 4THIRD,471101,Purchase of Care,04/09/2018,3483680-2505948,843.95,EMBRACE (UK) LTD.
Adult and Health Services,Head of Adults,Third Party Payments 4THIRD,471101,Purchase of Care,04/09/2018,3483681-2503592,590.77,EMBRACE (UK) LTD.
Adult and Health Services,Head of Adults,Third Party Payments 4THIRD,471101,Purchase of Care,04/09/2018,3483681-2503599,"2,363.08",EMBRACE (UK) LTD.
Adult and Health Services,Head of Adults,Third Party Payments 4THIRD,471101,Purchase of Care,04/09/2018,3483681-2503602,"2,363.08",EMBRACE (UK) LTD.
Adult and Health Services,Head of Adults,Third Party Payments 4THIRD,471101,Purchase of Care,04/09/2018,3483681-2503611,"2,363.08",EMBRACE (UK) LTD.
Adult and Health Services,Head of Adults,Third Party Payments 4THIRD,471101,Purchase of Care,04/09/2018,3483681-2503613,"2,363.08",EMBRACE (UK) LTD.
Adult and Health Services,Head of Adults,Third Party Payments 4THIRD,471101,Purchase of Care,04/09/2018,3483681-2503616,"2,363.08",EMBRACE (UK) LTD.
Adult and Health Services,Head of Adults,Third Party Payments 4THIRD,471101,Purchase of Care,04/09/2018,3483681-2503618,"2,363.08",EMBRACE (UK) LTD.
Adult and Health Services,Head of Adults,Third Party Payments 4THIRD,470101,Purchase of Care,04/09/2018,3483682-2504705,"2,370.36",ENHANCED ELDERLEY CARE LTD.
Regeneration and Local Services,Direct Services,Transport,230005,Contract Hire,04/09/2018,3483493-8146771,"1,173.35",ENTERPRISE FLEX-E-RENT T/A BURNT TREE GROUP LTD.
Regeneration and Local Services,Direct Services,Transport,230005,Contract Hire,04/09/2018,3483493-8146773,"1,173.35",ENTERPRISE FLEX-E-RENT T/A BURNT TREE GROUP LTD.
Regeneration and Local Services,Direct Services,Transport,230005,Contract Hire,04/09/2018,3483493-8146774,"1,173.35",ENTERPRISE FLEX-E-RENT T/A BURNT TREE GROUP LTD.
Regeneration and Local Services,Direct Services,Transport,230005,Contract Hire,04/09/2018,3483493-8146787,"1,135.50",ENTERPRISE FLEX-E-RENT T/A BURNT TREE GROUP LTD.
Adult and Health Services,Head of Adults,Third Party Payments 4THIRD,470101,Purchase of Care,04/09/2018,3483684-2503590,"2,370.36",EOTHEN HOMES LTD.
Adult and Health Services,Head of Adults,Third Party Payments 4THIRD,471101,Purchase of Care,04/09/2018,3483683-2505379,"1,077.28",EOTHEN HOMES LTD.
Regeneration and Local Services,Technical Services,Supplies and Services,304221,Equipment and Materials,04/09/2018,3483494-1808\099,"1,052.54",EPPLETON QUARRY PRODUCTS LTD.
